Department Family,Entity,Date of Payment,Expense Type,Expense Area,Supplier,Voluntary & Community Sector,SME Class,Sole Trader,D-U-N-S Number,Transaction number,PSPES Level 2,Narrative,Postal Code,Amount in Sterling,Grant?
"Housing, Communities & Local Government",MHCLG,01/07/2021,ERDF Work in Progress � Capital,Stronger Places,BENNAMANN LTD,,,,,7700009126,,ERDF grant payment,TR4 9DG,"20,169.21",Yes
"Housing, Communities & Local Government",MHCLG,01/07/2021,ERDF Work in Progress � Capital,Stronger Places,DEVON COUNTY COUNCIL,,Large,,,7700009127,,ERDF grant payment,EX2 4QD,"132,686.36",Yes
"Housing, Communities & Local Government",MHCLG,01/07/2021,ERDF Work in Progress � Capital,Stronger Places,FALMOUTH UNIVERSITY,,Large,,,7700009123,,ERDF grant payment,TR10 9FE,"70,672.33",Yes
"Housing, Communities & Local Government",MHCLG,01/07/2021,ERDF Work in Progress � Resource,Stronger Places,BENNAMANN LTD,,,,,7700009126,,ERDF grant payment,TR4 9DG,"84,717.29",Yes
"Housing, Communities & Local Government",MHCLG,01/07/2021,ERDF Work in Progress � Resource,Stronger Places,DEVON COUNTY COUNCIL,,Large,,,7700009127,,ERDF grant payment,EX2 4QD,"11,517.23",Yes
"Housing, Communities & Local Government",MHCLG,01/07/2021,ERDF Work in Progress � Resource,Stronger Places,FALMOUTH UNIVERSITY,,Large,,,7700009123,,ERDF grant payment,TR10 9FE,"83,231.37",Yes
"Housing, Communities & Local Government",MHCLG,01/07/2021,ERDF Work in Progress � Resource,Stronger Places,GATESHEAD COUNCIL,,Large,,,7700009124,,ERDF grant payment,NE8 1HH,"17,984.62",Yes
"Housing, Communities & Local Government",MHCLG,01/07/2021,ERDF Work in Progress � Resource,Stronger Places,LIVERPOOL CITY REGION COMB AUTH,,,,,7700009125,,ERDF grant payment,L3 1FZ,"8,329.33",Yes
"Housing, Communities & Local Government",MHCLG,01/07/2021,ERDF Work in Progress � Resource,Stronger Places,TEESSIDE UNIVERSITY,,Large,,,7700009121,,ERDF grant payment,TS1 3BA,"89,986.08",Yes
"Housing, Communities & Local Government",MHCLG,01/07/2021,ERDF Work in Progress � Resource,Stronger Places,TWI LIMITED,,,,,7700009122,,ERDF grant payment,CB21 6AL,"80,537.06",Yes
"Housing, Communities & Local Government",MHCLG,01/07/2021,EXP � PURCHASE OF GOODS /SERVICES R & D,Housing & Planning,SHEFFIELD HALLAM UNIVERSITY,,Large,,211278783,5106272962,Research,Property Guardianship Research (England),S1 1WB,"21,640.00",
"Housing, Communities & Local Government",MHCLG,01/07/2021,EXP � PURCHASE OF GOODS /SERVICES R & D,Housing & Planning,SHEFFIELD HALLAM UNIVERSITY,,Large,,211278783,5106272963,Research,Property Guardianship Research (England),S1 1WB,"10,425.00",
"Housing, Communities & Local Government",MHCLG,01/07/2021,EXP � PURCHASE OF GOODS /SERVICES R & D,Local Government Strategy and Analysis,BLOOMBERG FINANCE L.P,,Large,,,5106272955,Research,Subscription Charges ,10022,"5,721.92",
"Housing, Communities & Local Government",MHCLG,01/07/2021,Professional services,Housing & Planning,VALUATION OFFICE AGENCY,,Public Bodies,,215253886,5106272977,Financial,Community Infrastructure Levy,W1D 5BU,"1,757.44",
"Housing, Communities & Local Government",MHCLG,01/07/2021,Publications,CFO and Corporate,CHERRON INKO-TARIAH,,Micro,,,5106272949,Learning and Development Materials,The Incredible Power of Staff Networks B,N5 2SZ,387.50,
"Housing, Communities & Local Government",MHCLG,01/07/2021,Repayments of Private Sect Grant (Curr),Stronger Places,Teledyne UK Limited,,Large,,217053131,2300003238,,RGF Grant Recovery,CM1 2QU,"-132,013.50",
"Housing, Communities & Local Government",MHCLG,01/07/2021,Training,CFO and Corporate,ALLNET LAW LIMITED,,Micro,,,5106272954,Development and Training,Civil Service Training,EC1V 2NX,704.17,
"Housing, Communities & Local Government",MHCLG,01/07/2021,Training,CFO and Corporate,ALLNET LAW LIMITED,,Micro,,,5106272954,Development and Training,Civil Service Training,EC1V 2NX,480.25,
"Housing, Communities & Local Government",MHCLG,01/07/2021,Training,CFO and Corporate,ALLNET LAW LIMITED,,Micro,,,5106272957,Development and Training,Civil Service Training,EC1V 2NX,704.17,
"Housing, Communities & Local Government",MHCLG,01/07/2021,Training,CFO and Corporate,ALLNET LAW LIMITED,,Micro,,,5106272957,Development and Training,Civil Service Training,EC1V 2NX,350.00,
"Housing, Communities & Local Government",MHCLG,01/07/2021,Training,CFO and Corporate,DODS GROUP LTD,,Large,,290673748,5106272985,Development and Training,Civil Service Training,SE1 9SG,"1,450.00",
"Housing, Communities & Local Government",MHCLG,01/07/2021,Training,CFO and Corporate,KPMG LLP (CSL),,Large,,,5106272894,Development and Training,Civil Service Training,E14 5GL,"2,808.00",
"Housing, Communities & Local Government",MHCLG,01/07/2021,Training,CFO and Corporate,KPMG LLP (CSL),,Large,,,5106272895,Development and Training,Civil Service Training,E14 5GL,"2,500.00",
"Housing, Communities & Local Government",MHCLG,01/07/2021,Training,CFO and Corporate,KPMG LLP (CSL),,Large,,,5106272897,Development and Training,Civil Service Training,E14 5GL,"2,500.00",
"Housing, Communities & Local Government",MHCLG,01/07/2021,Training,CFO and Corporate,KPMG LLP (CSL),,Large,,,5106272908,Development and Training,Civil Service Training,E14 5GL,"2,500.00",
"Housing, Communities & Local Government",MHCLG,01/07/2021,Training,CFO and Corporate,KPMG LLP (CSL),,Large,,,5106272953,Development and Training,Civil Service Training,E14 5GL,249.00,
"Housing, Communities & Local Government",MHCLG,01/07/2021,Training,CFO and Corporate,KPMG LLP (CSL),,Large,,,5106272987,Development and Training,Civil Service Training,E14 5GL,325.00,
"Housing, Communities & Local Government",MHCLG,01/07/2021,Training,CFO and Corporate,Saleha K Islam,,Micro,,,5106272950,Development and Training,Civil Service Training,E1 1PB,250.00,
"Housing, Communities & Local Government",MHCLG,01/07/2021,Training,Housing & Planning,DODS GROUP LTD,,Large,,290673748,5106272958,Development and Training,Civil Service Training,SE1 9SG,"1,450.00",
"Housing, Communities & Local Government",MHCLG,01/07/2021,Training,Local Government Strategy and Analysis,Regent's Park College,,Medium,,,5106272980,Development and Training,Bursary Payment,OX1 2LB,"22,050.00",
"Housing, Communities & Local Government",MHCLG,01/07/2021,Web Services,Stronger Places,PULSION TECHNOLOGY LTD,,Small,,,5106272978,ICT Services,Support and hosting for Right to Buy Web,G4 9XA,"5,251.18",
"Housing, Communities & Local Government",MHCLG,02/07/2021,Agency Staff,Stronger Places,ALEXANDER MANN SOLUTIONS LTD,,Large,,,5106273008,Contingent Labour,Contingent Labour,EC2N 3AQ,"3,150.30",
"Housing, Communities & Local Government",MHCLG,02/07/2021,Agency Staff,Stronger Places,ALEXANDER MANN SOLUTIONS LTD,,Large,,,5106273009,Contingent Labour,Contingent Labour,EC2N 3AQ,"5,670.54",
"Housing, Communities & Local Government",MHCLG,02/07/2021,Agency Staff,Stronger Places,ALEXANDER MANN SOLUTIONS LTD,,Large,,,5106273010,Contingent Labour,Contingent Labour,EC2N 3AQ,"3,150.30",
"Housing, Communities & Local Government",MHCLG,02/07/2021,Current (non AEF) Grants to Local Authorities,Stronger Places,CANNOCK CHASE DC,,,,215064770,3700105651,,Grant payable by the Exchequer,WS11 1BG,"18,986.00",Yes
"Housing, Communities & Local Government",MHCLG,02/07/2021,Current (non AEF) Grants to Local Authorities,Stronger Places,CANTERBURY CITY CNCL,,,,,3700105652,,Grant payable by the Exchequer,CT1 1YW,"47,428.00",Yes
"Housing, Communities & Local Government",MHCLG,02/07/2021,Current (non AEF) Grants to Local Authorities,Stronger Places,CHORLEY BOROUGH COUNCIL,,,,236415576,3700105665,,Grant payable by the Exchequer,PR7 1DP,"57,117.00",Yes
"Housing, Communities & Local Government",MHCLG,02/07/2021,Current (non AEF) Grants to Local Authorities,Stronger Places,DORSET COUNCIL,,,,,3700105656,,Grant payable by the Exchequer,DT1 1XJ,599.00,Yes
"Housing, Communities & Local Government",MHCLG,02/07/2021,Current (non AEF) Grants to Local Authorities,Stronger Places,EAST DEVON DC,,,,,3700105650,,Grant payable by the Exchequer,EX10 8HL,"57,002.00",Yes
"Housing, Communities & Local Government",MHCLG,02/07/2021,Current (non AEF) Grants to Local Authorities,Stronger Places,HARROGATE BC,,,,236660031,3700105655,,Grant payable by the Exchequer,HG1 2SG,"28,961.00",Yes
"Housing, Communities & Local Government",MHCLG,02/07/2021,Current (non AEF) Grants to Local Authorities,Stronger Places,HIGH PEAK BC,,,,239967771,3700105659,,Grant payable by the Exchequer,SK17 6EL,"5,608.00",Yes
"Housing, Communities & Local Government",MHCLG,02/07/2021,Current (non AEF) Grants to Local Authorities,Stronger Places,LONDON BOROUGH OF NEWHAM,,,,211381004,3700105657,,Grant payable by the Exchequer,E16 2QU,"50,741.00",Yes
"Housing, Communities & Local Government",MHCLG,02/07/2021,Current (non AEF) Grants to Local Authorities,Stronger Places,MEDWAY TOWNS D C (HSG),,,,,3700105653,,Grant payable by the Exchequer,ME4 4TR,"58,451.00",Yes
"Housing, Communities & Local Government",MHCLG,02/07/2021,Current (non AEF) Grants to Local Authorities,Stronger Places,NORTH EAST LINCOLN DC (HSG),,,,211242737,3700105649,,Grant payable by the Exchequer,DN31 1HU,"21,344.00",Yes
"Housing, Communities & Local Government",MHCLG,02/07/2021,Current (non AEF) Grants to Local Authorities,Stronger Places,SWALE BC,,,,239842768,3700105654,,Grant payable by the Exchequer,ME10 3HT,"25,073.00",Yes
"Housing, Communities & Local Government",MHCLG,02/07/2021,Current (non AEF) Grants to Local Authorities,Stronger Places,TORBAY BC,,,,,3700105662,,Grant payable by the Exchequer,TQ1 3DR,"37,404.00",Yes
"Housing, Communities & Local Government",MHCLG,02/07/2021,ERDF Work in Progress � Capital,Stronger Places,OXFORD INNOVATION SERVICES LTD(MGP2,,,,,7700009130,,ERDF grant payment,OX1 1BY,"70,321.49",Yes
"Housing, Communities & Local Government",MHCLG,02/07/2021,ERDF Work in Progress � Capital,Stronger Places,SOUTH HOLLAND DISTRICT COUNCIL,,,,,7700009136,,ERDF grant payment,PE11 2XE,"156,713.30",Yes
"Housing, Communities & Local Government",MHCLG,02/07/2021,ERDF Work in Progress � Capital,Stronger Places,SUNDERLAND CITY COUNCIL,,,,,7700009131,,ERDF grant payment,SR2 7DN,655.00,Yes
"Housing, Communities & Local Government",MHCLG,02/07/2021,ERDF Work in Progress � Capital,Stronger Places,UNIVERSITY OF WOLVERHAMPTON,,,,,7700009133,,ERDF grant payment,WV1 1LY,"35,644.58",Yes
"Housing, Communities & Local Government",MHCLG,02/07/2021,ERDF Work in Progress � Resource,Stronger Places,NORTH EAST ENTERPRISE AGENCY LTD,,,,,7700009134,,ERDF grant payment,SR5 2TA,"65,365.53",Yes
"Housing, Communities & Local Government",MHCLG,02/07/2021,ERDF Work in Progress � Resource,Stronger Places,NORTHERN FILM & MEDIA LIMITED,,Micro,,,7700009132,,ERDF grant payment,NE8 3BA,"30,792.09",Yes
"Housing, Communities & Local Government",MHCLG,02/07/2021,ERDF Work in Progress � Resource,Stronger Places,NORTHUMBERLAND BUSINESS SERVICE LTD,,Small,,,7700009128,,ERDF grant payment,NE63 8AP,"504,259.75",Yes
"Housing, Communities & Local Government",MHCLG,02/07/2021,ERDF Work in Progress � Resource,Stronger Places,NORTHUMBERLAND BUSINESS SERVICE LTD,,Small,,,7700009129,,ERDF grant payment,NE63 8AP,"24,676.46",Yes
"Housing, Communities & Local Government",MHCLG,02/07/2021,ERDF Work in Progress � Resource,Stronger Places,OXFORD INNOVATION SERVICES LTD(MGP2,,,,,7700009130,,ERDF grant payment,OX1 1BY,"314,127.14",Yes
"Housing, Communities & Local Government",MHCLG,02/07/2021,ERDF Work in Progress � Resource,Stronger Places,OXFORD INNOVATION SERVICES LTD(MGP2,,,,,7700009135,,ERDF grant offset,OX1 1BY,-399.71,Yes
"Housing, Communities & Local Government",MHCLG,02/07/2021,ERDF Work in Progress � Resource,Stronger Places,SOUTH HOLLAND DISTRICT COUNCIL,,,,,7700009136,,ERDF grant payment,PE11 2XE,"26,862.78",Yes
"Housing, Communities & Local Government",MHCLG,02/07/2021,ERDF Work in Progress � Resource,Stronger Places,SUNDERLAND CITY COUNCIL,,,,,7700009131,,ERDF grant payment,SR2 7DN,"8,306.83",Yes
"Housing, Communities & Local Government",MHCLG,02/07/2021,ERDF Work in Progress � Resource,Stronger Places,UNIVERSITY OF WOLVERHAMPTON,,,,,7700009133,,ERDF grant payment,WV1 1LY,"97,775.36",Yes
"Housing, Communities & Local Government",MHCLG,02/07/2021,IT - Service Contracts,CFO and Corporate,VODAFONE BUSINESS SOLUTIONS,,Large,,397467572,2100309921,Managed / Outsourced Services,Vodafone MiFi devices for Ministers,RG14 5FF,403.20,
"Housing, Communities & Local Government",MHCLG,02/07/2021,IT - Software Maintenance,CFO and Corporate,ARCH CONSULTING LTD,,Small,,543735104,5106272997,IT Managed / Outsourced Services,eForm Maintenance & Development 12mths,W4 1PF,"2,220.00",
"Housing, Communities & Local Government",MHCLG,02/07/2021,Management Consultancy,Local Government Strategy and Analysis,Greenway Associates Limited,,Small,,210023449,5106273012,Consultancy,UKHMF Content Cost Consultancy,CR2 1PQ,"7,200.00",
"Housing, Communities & Local Government",MHCLG,02/07/2021,Recruitment,Stronger Places,CABINET OFFICE,,Public Bodies,,232159186,5106272143,Business Process Outsourcing Services,GRS Sifting of recruitment campaigns,FY1 9JN,"3,242.40",
"Housing, Communities & Local Government",MHCLG,02/07/2021,Recruitment,Stronger Places,CABINET OFFICE,,Public Bodies,,232159186,5106272144,Business Process Outsourcing Services,GRS Sifting of recruitment campaigns,FY1 9JN,"3,165.60",
"Housing, Communities & Local Government",MHCLG,02/07/2021,Recruitment,Stronger Places,CABINET OFFICE,,Public Bodies,,232159186,5106272148,Business Process Outsourcing Services,GRS Sifting of recruitment campaigns,FY1 9JN,"9,348.00",
"Housing, Communities & Local Government",MHCLG,02/07/2021,Steady State Service Provision,CFO and Corporate,GOVERNMENT PROPERTY AGENCY,,Medium,,,5106273011,Business Support,Citygate FM,B2 5LS,"16,986.73",
"Housing, Communities & Local Government",MHCLG,02/07/2021,Steady State Service Provision,CFO and Corporate,GOVERNMENT PROPERTY AGENCY,,Medium,,,5106273011,Business Support,Citygate Managment Charge,B2 5LS,"14,918.21",
"Housing, Communities & Local Government",MHCLG,02/07/2021,Steady State Service Provision,Housing & Planning,R H ENVIROMENTAL LTD T/A RHE GLOBAL,,Small,,,5106273018,Business Process Outsourcing Services,Phase 2 of Housing Health and Safety Rating System,SA44 5WX,"117,206.00",
"Housing, Communities & Local Government",MHCLG,02/07/2021,Training,CFO and Corporate,INSIGHTS LEARNING & DEVELOPMENT LTD,,Large,,,5106273017,Development and Training,Civil Service Training,DD2 1EG,"3,095.30",
"Housing, Communities & Local Government",MHCLG,02/07/2021,Training,CFO and Corporate,KPMG LLP (CSL),,Large,,,5106273014,Development and Training,Civil Service Training,E14 5GL,249.00,
"Housing, Communities & Local Government",MHCLG,02/07/2021,Training,CFO and Corporate,KPMG LLP (CSL),,Large,,,5106273015,Development and Training,Civil Service Training,E14 5GL,249.00,
"Housing, Communities & Local Government",MHCLG,02/07/2021,Training,CFO and Corporate,KPMG LLP (CSL),,Large,,,5106273016,Development and Training,Civil Service Training,E14 5GL,249.00,
"Housing, Communities & Local Government",MHCLG,02/07/2021,Training,CFO and Corporate,WHITEHALL & INDUSTRY GROUP,,Small,,385853957,5106273013,Development and Training,Civil Service Training,SW1H 9EX,450.00,
"Housing, Communities & Local Government",MHCLG,02/07/2021,Utilisation of Provi - Cap Grant to LA,Safer and Greener Buildings,PINSENT MASONS LLP,,Large,,215580626,5106273007,Office Supplies,Legal Support for Grenfell,EC2A 4ES,"9,849.60",
"Housing, Communities & Local Government",MHCLG,05/07/2021,Agency Staff,CFO and Corporate,ALEXANDER MANN SOLUTIONS LTD,,Large,,,5106273023,Contingent Labour,Contingent Labour,EC2N 3AQ,"4,003.56",
"Housing, Communities & Local Government",MHCLG,05/07/2021,Agency Staff,CFO and Corporate,ALEXANDER MANN SOLUTIONS LTD,,Large,,,5106273024,Contingent Labour,Contingent Labour,EC2N 3AQ,"4,267.80",
"Housing, Communities & Local Government",MHCLG,05/07/2021,Agency Staff,CFO and Corporate,ALEXANDER MANN SOLUTIONS LTD,,Large,,,5106273026,Contingent Labour,Contingent Labour,EC2N 3AQ,"4,311.48",
"Housing, Communities & Local Government",MHCLG,05/07/2021,Agency Staff,CFO and Corporate,ALEXANDER MANN SOLUTIONS LTD,,Large,,,5106273027,Contingent Labour,Contingent Labour,EC2N 3AQ,"4,109.70",
"Housing, Communities & Local Government",MHCLG,05/07/2021,Agency Staff,CFO and Corporate,ALEXANDER MANN SOLUTIONS LTD,,Large,,,5106273034,Contingent Labour,Contingent Labour,EC2N 3AQ,948.36,
"Housing, Communities & Local Government",MHCLG,05/07/2021,Agency Staff,CFO and Corporate,ALEXANDER MANN SOLUTIONS LTD,,Large,,,5106273035,Contingent Labour,Interim staff,EC2N 3AQ,842.32,
"Housing, Communities & Local Government",MHCLG,05/07/2021,Agency Staff,CFO and Corporate,ALEXANDER MANN SOLUTIONS LTD,,Large,,,5106273040,Contingent Labour,interim manager,EC2N 3AQ,977.40,
"Housing, Communities & Local Government",MHCLG,05/07/2021,Agency Staff,CFO and Corporate,ALEXANDER MANN SOLUTIONS LTD,,Large,,,5106273043,Contingent Labour,Contingent Labour,EC2N 3AQ,"2,463.72",
"Housing, Communities & Local Government",MHCLG,05/07/2021,Agency Staff,CFO and Corporate,ALEXANDER MANN SOLUTIONS LTD,,Large,,,5106273061,Contingent Labour,Contingent Labour,EC2N 3AQ,"1,856.52",
"Housing, Communities & Local Government",MHCLG,05/07/2021,Agency Staff,Housing & Planning,ALEXANDER MANN SOLUTIONS LTD,,Large,,,5106273028,Contingent Labour,Contingent Labour,EC2N 3AQ,"7,560.72",
"Housing, Communities & Local Government",MHCLG,05/07/2021,Agency Staff,Housing & Planning,ALEXANDER MANN SOLUTIONS LTD,,Large,,,5106273029,Contingent Labour,Contingent Labour,EC2N 3AQ,"6,300.60",
"Housing, Communities & Local Government",MHCLG,05/07/2021,Agency Staff,Housing & Planning,ALEXANDER MANN SOLUTIONS LTD,,Large,,,5106273038,Contingent Labour,Agency Staff,EC2N 3AQ,"1,043.22",
"Housing, Communities & Local Government",MHCLG,05/07/2021,Agency Staff,Local Government Strategy and Analysis,ALEXANDER MANN SOLUTIONS LTD,,Large,,,5106273042,Contingent Labour,Contingent Labour,EC2N 3AQ,693.06,
"Housing, Communities & Local Government",MHCLG,05/07/2021,Agency Staff,Local Government Strategy and Analysis,ALEXANDER MANN SOLUTIONS LTD,,Large,,,5106273044,Contingent Labour,Contingent Labour,EC2N 3AQ,371.17,
"Housing, Communities & Local Government",MHCLG,05/07/2021,Agency Staff,Local Government Strategy and Analysis,ALEXANDER MANN SOLUTIONS LTD,,Large,,,5106273045,Contingent Labour,Contingent Labour,EC2N 3AQ,"1,231.85",
"Housing, Communities & Local Government",MHCLG,05/07/2021,Agency Staff,Safer and Greener Buildings,ALEXANDER MANN SOLUTIONS LTD,,Large,,,5106273020,Contingent Labour,Contingent Labour,EC2N 3AQ,"4,644.36",
"Housing, Communities & Local Government",MHCLG,05/07/2021,Agency Staff,Safer and Greener Buildings,ALEXANDER MANN SOLUTIONS LTD,,Large,,,5106273030,Contingent Labour,Contingent Labour,EC2N 3AQ,"3,780.36",
"Housing, Communities & Local Government",MHCLG,05/07/2021,Agency Staff,Safer and Greener Buildings,ALEXANDER MANN SOLUTIONS LTD,,Large,,,5106273031,Contingent Labour,Contingent Labour,EC2N 3AQ,"4,743.90",
"Housing, Communities & Local Government",MHCLG,05/07/2021,Agency Staff,Safer and Greener Buildings,ALEXANDER MANN SOLUTIONS LTD,,Large,,,5106273036,Contingent Labour,Contingent Labour,EC2N 3AQ,"4,681.10",
"Housing, Communities & Local Government",MHCLG,05/07/2021,Agency Staff,Safer and Greener Buildings,ALEXANDER MANN SOLUTIONS LTD,,Large,,,5106273042,Contingent Labour,Contingent Labour,EC2N 3AQ,693.06,
"Housing, Communities & Local Government",MHCLG,05/07/2021,Agency Staff,Safer and Greener Buildings,ALEXANDER MANN SOLUTIONS LTD,,Large,,,5106273046,Contingent Labour,Contingent Labour,EC2N 3AQ,"2,199.42",
"Housing, Communities & Local Government",MHCLG,05/07/2021,Agency Staff,Safer and Greener Buildings,ALEXANDER MANN SOLUTIONS LTD,,Large,,,5106273062,Contingent Labour,Secondee Costs,EC2N 3AQ,"3,880.37",
"Housing, Communities & Local Government",MHCLG,05/07/2021,Agency Staff,Stronger Places,ALEXANDER MANN SOLUTIONS LTD,,Large,,,5106273032,Contingent Labour,Contingent Labour,EC2N 3AQ,"3,150.30",
"Housing, Communities & Local Government",MHCLG,05/07/2021,Agency Staff,Stronger Places,ALEXANDER MANN SOLUTIONS LTD,,Large,,,5106273041,Contingent Labour,Contingent Labour,EC2N 3AQ,"4,952.10",
"Housing, Communities & Local Government",MHCLG,05/07/2021,Agency Staff,Stronger Places,ALEXANDER MANN SOLUTIONS LTD,,Large,,,5106273047,Contingent Labour,Contingent Labour,EC2N 3AQ,"1,709.22",
"Housing, Communities & Local Government",MHCLG,05/07/2021,Cap Grants to Private Sector Companies,Safer and Greener Buildings,Castle Exchange Rtm Ltd,,,,,3700106398,,Grant payable by the Exchequer,LN2 1QA,"126,851.00",Yes
"Housing, Communities & Local Government",MHCLG,05/07/2021,Cap Grants to Private Sector Companies,Safer and Greener Buildings,Concord Street Management Company L,,,,,3700106395,,Grant payable by the Exchequer,LS2 7QB,"101,070.00",Yes
"Housing, Communities & Local Government",MHCLG,05/07/2021,Cap Grants to Private Sector Companies,Safer and Greener Buildings,FirstPort Limited,,Large,,,3700106396,,Grant payable by the Exchequer,BH25 5NR,"29,815.00",Yes
"Housing, Communities & Local Government",MHCLG,05/07/2021,Cap Grants to Private Sector Companies,Safer and Greener Buildings,Mainstay Residential Limited,,Large,,,3700106400,,Grant payable by the Exchequer,WR5 2ZX,"112,082.00",Yes
"Housing, Communities & Local Government",MHCLG,05/07/2021,Cap Grants to Private Sector Companies,Safer and Greener Buildings,SAPPHIRE COURT/COBALT QUATER MGMT C,,,,,3700106399,,Grant payable by the Exchequer,SP6 1BZ,"163,248.00",Yes
"Housing, Communities & Local Government",MHCLG,05/07/2021,Cap Grants to Private Sector Companies,Safer and Greener Buildings,Theatro Tower RTM Company Limited,,,,,3700106397,,Grant payable by the Exchequer,BR1 1LT,"61,537.00",Yes
"Housing, Communities & Local Government",MHCLG,05/07/2021,Conferences and Meeting Facilities,Local Government Strategy and Analysis,CALDER CONFERENCES  LTD,,Small,,,2100309934,Business Travel Accommodation,Conferences,LS16 6RF,"7,700.00",
"Housing, Communities & Local Government",MHCLG,05/07/2021,Current (non AEF) Grants to Local Authorities,Stronger Places,BRENT LB (HSG),,,,,3700106295,,Grant payable by the Exchequer,HA9 0FJ,"135,714.00",Yes
"Housing, Communities & Local Government",MHCLG,05/07/2021,ERDF Work in Progress � Capital,Stronger Places,ANGLIA RUSKIN UNIVERSITY,,,,,7700009140,,ERDF grant payment,CM1 1SQ,"85,729.83",Yes
"Housing, Communities & Local Government",MHCLG,05/07/2021,ERDF Work in Progress � Resource,Stronger Places,ANGLIA RUSKIN UNIVERSITY,,,,,7700009140,,ERDF grant payment,CM1 1SQ,"197,354.19",Yes
"Housing, Communities & Local Government",MHCLG,05/07/2021,ERDF Work in Progress � Resource,Stronger Places,E-Factor Group Ltd,,,,,7700009139,,ERDF grant payment,DN31 3AT,"97,492.94",Yes
"Housing, Communities & Local Government",MHCLG,05/07/2021,EXP � PURCHASE OF GOODS /SERVICES R & D,Housing & Planning,ICF CONSULTING LTD,,Large,,,5106272994,Research,Housing First Evaluation,EC4M 5SB,"28,840.00",
"Housing, Communities & Local Government",MHCLG,05/07/2021,"IT - PC, Network & Hardware",CFO and Corporate,ALEXANDER MANN SOLUTIONS LTD,,Large,,,5106273022,Contingent Labour,Contingent Labour,EC2N 3AQ,"4,619.52",
"Housing, Communities & Local Government",MHCLG,05/07/2021,"IT - PC, Network & Hardware",CFO and Corporate,ALEXANDER MANN SOLUTIONS LTD,,Large,,,5106273025,Contingent Labour,Contingent Labour,EC2N 3AQ,"4,311.48",
"Housing, Communities & Local Government",MHCLG,05/07/2021,"IT - PC, Network & Hardware",CFO and Corporate,VOKHUS LTD,,Large,,221235125,5106272971,ICT Hardware,9VF96AT  ABU - LED monitors,PO15 5TT,"11,551.50",
"Housing, Communities & Local Government",MHCLG,05/07/2021,"IT - PC, Network & Hardware",CFO and Corporate,VOKHUS LTD,,Large,,221235125,5106272971,ICT Hardware,Delivery,PO15 5TT,6.00,
"Housing, Communities & Local Government",MHCLG,05/07/2021,"IT - PC, Network & Hardware",CFO and Corporate,VOKHUS LTD,,Large,,221235125,5106273096,ICT Hardware,Delivery,PO15 5TT,6.00,
"Housing, Communities & Local Government",MHCLG,05/07/2021,"IT - PC, Network & Hardware",CFO and Corporate,VOKHUS LTD,,Large,,221235125,5106273096,ICT Hardware,MDP2DPMM6 - Mini DisplayPort to DisplayP,PO15 5TT,535.20,
"Housing, Communities & Local Government",MHCLG,05/07/2021,IT - Service Contracts,CFO and Corporate,DAISY CORPORATE SERVICES TRADING LT,,Large,,,5106273093,IT Managed / Outsourced Services,Telephony administration costs ,BB9 5SR,"12,000.00",
"Housing, Communities & Local Government",MHCLG,05/07/2021,IT - Service Contracts,CFO and Corporate,DAISY CORPORATE SERVICES TRADING LT,,Large,,,5106273094,IT Managed / Outsourced Services,LAN Mgt and Support,BB9 5SR,"14,000.00",
"Housing, Communities & Local Government",MHCLG,05/07/2021,IT - Service Contracts,CFO and Corporate,LITTLE FISH(UK)T/A LITTLE FISH,,Medium,,,5106273091,IT Managed / Outsourced Services,Servicedesk/Tier2 provision 2020/21,NG1 1LS,"72,996.30",
"Housing, Communities & Local Government",MHCLG,05/07/2021,IT - Service Contracts,CFO and Corporate,X M A LTD,,Large,,298484148,5106273089,IT Managed / Outsourced Services,Hardware Supp Services 2020/21,NG11 7EP,"8,228.77",
"Housing, Communities & Local Government",MHCLG,05/07/2021,IT - Service Contracts,CFO and Corporate,X M A LTD,,Large,,298484148,5106273090,IT Managed / Outsourced Services,Hardware Supp Services 2020/21,NG11 7EP,"10,753.45",
"Housing, Communities & Local Government",MHCLG,05/07/2021,IT - Service Contracts,Local Government Strategy and Analysis,SWIRRL IT LIMITED,,Micro,,211074993,5106273078,IT Managed / Outsourced Services,Open Data Communities Development work,FK7 7WT,"19,015.20",
"Housing, Communities & Local Government",MHCLG,05/07/2021,Management Consultancy,Safer and Greener Buildings,VERACITY OSI UK LTD,,Medium,,,5106273097,Business Process Outsourcing Services,Business Analyst Support,EC3R 8LJ,"22,458.00",
"Housing, Communities & Local Government",MHCLG,05/07/2021,Property/Estates Consultancy,Safer and Greener Buildings,JACOBS UK LTD,,Large,,,5106272959,Consultancy,Peer Review of Engineering Advice,SE1 2QG,"7,720.24",
"Housing, Communities & Local Government",MHCLG,05/07/2021,Provision Utilisation Other,Safer and Greener Buildings,ALEXANDER MANN SOLUTIONS LTD,,Large,,,5106273039,Contingent Labour,Contingent Labour,EC2N 3AQ,"1,847.76",
"Housing, Communities & Local Government",MHCLG,05/07/2021,Recruitment,CFO and Corporate,ALEXANDER MANN SOLUTIONS LTD,,Large,,,5106273021,Contingent Labour,Contingent Labour,EC2N 3AQ,"1,512.14",
"Housing, Communities & Local Government",MHCLG,05/07/2021,Recruitment,CFO and Corporate,ALEXANDER MANN SOLUTIONS LTD,,Large,,,5106273037,Contingent Labour,Contingent Labour,EC2N 3AQ,995.22,
"Housing, Communities & Local Government",MHCLG,05/07/2021,Repayments of Private Sect Grant (Cap),Stronger Places,Alpek Polyester UK Limited,,,,,2300003256,,RGF Grant Recovery 1241C July 2021 instalment,TS10 4XN,"-89,361.47",
"Housing, Communities & Local Government",MHCLG,05/07/2021,Software Licences,CFO and Corporate,BYTES SOFTWARE SERVICES LTD,,Medium,,225273754,5106273100,Software,Assistive Software licences - Reasonable,KT22 7TW,414.00,
"Housing, Communities & Local Government",MHCLG,05/07/2021,Software Licences,CFO and Corporate,DAISY CORPORATE SERVICES TRADING LT,,Large,,,5106273095,Software,CCN16 7Signal Sapphire Cloud Subs 1yr,BB9 5SR,"2,361.60",
"Housing, Communities & Local Government",MHCLG,05/07/2021,Steady State Service Provision,CFO and Corporate,ALEXANDER MANN SOLUTIONS LTD,,Large,,,5106273060,Contingent Labour,Contingent Labour,EC2N 3AQ,"11,086.74",
"Housing, Communities & Local Government",MHCLG,05/07/2021,Telecoms equipment (non-capitalised),CFO and Corporate,VOKHUS LTD,,Large,,221235125,5106272970,Telecoms,Apple EarPods - MMTN2ZM/A,PO15 5TT,"3,759.00",
"Housing, Communities & Local Government",MHCLG,05/07/2021,Telecoms equipment (non-capitalised),CFO and Corporate,VOKHUS LTD,,Large,,221235125,5106272970,Telecoms,Delivery,PO15 5TT,6.00,
"Housing, Communities & Local Government",MHCLG,05/07/2021,Training,CFO and Corporate,KNOWLEDGEPOOL GROUP LIMITED,,Medium,,737096441,5106273098,Development and Training,Civil Service Training,RG1 8LS,"2,436.84",
"Housing, Communities & Local Government",MHCLG,05/07/2021,Utilisation of Unfunded Pension Scheme,CFO and Corporate,LONDON PENSIONS FUND AUTHORITY,,Public Bodies,,236915880,5106273086,Financial,Pension fund management,SE1 0LL,405.91,
"Housing, Communities & Local Government",MHCLG,06/07/2021,Agency Staff,Stronger Places,ALEXANDER MANN SOLUTIONS LTD,,Large,,,5106273108,Contingent Labour,Contingent Labour,EC2N 3AQ,"1,592.35",
"Housing, Communities & Local Government",MHCLG,06/07/2021,Conferences and Meeting Facilities,Safer and Greener Buildings,MUSEUM OF BRANDS,,Small,,,5106273111,Business Travel Accommodation,Conference space hire,W11 1QT,"6,813.60",
"Housing, Communities & Local Government",MHCLG,06/07/2021,Current (non AEF) Grants to Local Authorities,Stronger Places,NOTTINGHAMSHIRE CC,,,,214657947,2300003248,,Claw back LRF MHCLG funding due to being paid to i,NG2 7QZ,"-200,097.00",Yes
"Housing, Communities & Local Government",MHCLG,06/07/2021,ERDF Work in Progress � Capital,Stronger Places,MAGNA 34 BUSINESS PARK LTD,,Micro,,,7700009150,,ERDF grant payment,S35 9XB,"293,189.75",Yes
"Housing, Communities & Local Government",MHCLG,06/07/2021,ERDF Work in Progress � Capital,Stronger Places,QUEEN MARY UNIVERSITY OF LONDON,,,,,7700009146,,ERDF grant payment,E1 4NS,"8,348.16",Yes
"Housing, Communities & Local Government",MHCLG,06/07/2021,ERDF Work in Progress � Capital,Stronger Places,SUNDERLAND CITY COUNCIL,,,,,7700009145,,ERDF grant payment,SR2 7DN,"14,105.00",Yes
"Housing, Communities & Local Government",MHCLG,06/07/2021,ERDF Work in Progress � Resource,Stronger Places,BRITISH LIBRARY,,,,,7700009147,,ERDF grant payment,NW1 2DB,"85,787.89",Yes
"Housing, Communities & Local Government",MHCLG,06/07/2021,ERDF Work in Progress � Resource,Stronger Places,BRITISH LIBRARY,,,,,7700009148,,ERDF grant payment,NW1 2DB,"93,603.97",Yes
"Housing, Communities & Local Government",MHCLG,06/07/2021,ERDF Work in Progress � Resource,Stronger Places,CENTRAL RESEARCH LABORATORY,,Micro,,,7700009143,,ERDF grant payment,SW1P 1DZ,"65,830.12",Yes
"Housing, Communities & Local Government",MHCLG,06/07/2021,ERDF Work in Progress � Resource,Stronger Places,GREATER LONDON AUTHORITY,,Large,,,7700009149,,ERDF grant payment,SE1 2AA,"899,409.12",Yes
"Housing, Communities & Local Government",MHCLG,06/07/2021,ERDF Work in Progress � Resource,Stronger Places,GREATER LONDON AUTHORITY,,Large,,,7700009153,,ERDF grant payment,SE1 2AA,"178,316.17",Yes
"Housing, Communities & Local Government",MHCLG,06/07/2021,ERDF Work in Progress � Resource,Stronger Places,HUDDERSFIELD UNIVERSITY,,,,,7700009151,,ERDF grant payment,HD1 3DH,"140,242.96",Yes
"Housing, Communities & Local Government",MHCLG,06/07/2021,ERDF Work in Progress � Resource,Stronger Places,NEWCASTLE UNIVERSITY,,,,,7700009152,,ERDF grant payment,NE1 7RU,"99,554.58",Yes
"Housing, Communities & Local Government",MHCLG,06/07/2021,ERDF Work in Progress � Resource,Stronger Places,QUEEN MARY UNIVERSITY OF LONDON,,,,,7700009144,,ERDF grant offset,E1 4NS,"-1,538.43",Yes
"Housing, Communities & Local Government",MHCLG,06/07/2021,ERDF Work in Progress � Resource,Stronger Places,QUEEN MARY UNIVERSITY OF LONDON,,,,,7700009146,,ERDF grant payment,E1 4NS,"151,199.62",Yes
"Housing, Communities & Local Government",MHCLG,06/07/2021,ERDF Work in Progress � Resource,Stronger Places,SUNDERLAND CITY COUNCIL,,,,,7700009145,,ERDF grant payment,SR2 7DN,"12,201.87",Yes
"Housing, Communities & Local Government",MHCLG,06/07/2021,EXP � PURCHASE OF GOODS /SERVICES R & D,Housing & Planning,CACI  INFORMATION SOLUTIONS LTD,,Large,,227141413,5106273114,Research,Acorn Data for Housing Health and Safety Rating System,W14 8TS,"1,500.00",
"Housing, Communities & Local Government",MHCLG,06/07/2021,EXP � PURCHASE OF GOODS /SERVICES R & D,Safer and Greener Buildings,BUILDING RESEARCH ESTABLISHMENT,,Large,,896495033,5106273122,Research,investigation of real fires,WD25 9XX,"8,550.00",
"Housing, Communities & Local Government",MHCLG,06/07/2021,IT - Service Contracts,CFO and Corporate,VELOCITII DIGITAL SOLUTIONS LTD,,Micro,,,5106273129,IT Managed / Outsourced Services,Digital Design Support,SW10 0RJ�,"72,600.00",
"Housing, Communities & Local Government",MHCLG,06/07/2021,IT - Service Contracts,Stronger Places,AGENTO DIGITAL LTD,,Micro,,222937959,5106273079,IT Managed / Outsourced Services,Intranet Hosting and Support for 2yrs,IG8 7RF,"3,204.00",
"Housing, Communities & Local Government",MHCLG,06/07/2021,Physical Storage,CFO and Corporate,IRON MOUNTAIN (UK) LIMITED,,Large,,501338354,5106273132,Warehousing and Storage,Secure Offsite Tape Storage U051 2021/22,EH54 7DF,746.46,
"Housing, Communities & Local Government",MHCLG,06/07/2021,Recruitment,CFO and Corporate,CABINET OFFICE,,Public Bodies,,232159186,5106272918,Business Process Outsourcing Services,20/21 CSJ Test Charges,FY1 9JN,"2,095.80",
"Housing, Communities & Local Government",MHCLG,06/07/2021,Services provided by other Govt Orgs,Housing & Planning,VALUATION OFFICE AGENCY,,Public Bodies,,215253886,2100309942,Financial,Communities & Local Government Fair Rent- Quarterly Invoice,W1D 5BU,"461,088.75",Yes
"Housing, Communities & Local Government",MHCLG,06/07/2021,Steady State Service Provision,CFO and Corporate,CABINET OFFICE,,Public Bodies,,232159186,5106273121,Financial,Contribution to QEII workplace�testing centre�for COVID-19,FY1 9JN,"19,000.00",
"Housing, Communities & Local Government",MHCLG,06/07/2021,Steady State Service Provision,Housing & Planning,LOCALITY,,Medium,,347998312,5106273124,Business Process Outsourcing Services,Neighbourhood Planning Technical Support 2021/22,N1 6DR,"144,868.12",
"Housing, Communities & Local Government",MHCLG,06/07/2021,Utilisation of Provi - Cap Grant to LA,Safer and Greener Buildings,RSK Environment Ltd,,Large,,,5106273077,Operation of Industrial Facilities,Health and Safety Inspection Works,WA6 0AR,"3,600.00",
"Housing, Communities & Local Government",MHCLG,06/07/2021,Utilisation of Provi - Cap Grant to LA,Safer and Greener Buildings,RSK Environment Ltd,,Large,,,5106273126,Operation of Industrial Facilities,Health and Safety Inspection Works,WA6 0AR,900.00,
"Housing, Communities & Local Government",MHCLG,07/07/2021,Accommodation - actuals,Local Government Strategy and Analysis,MINISTRY OF JUSTICE,,,,211860841,5106272511,Business Support,Rental Costs - MOJ,NP20 9BB,-444.00,
"Housing, Communities & Local Government",MHCLG,07/07/2021,Advertising,CFO and Corporate,APS GROUP,,Micro,,212228001,5106273139,Advertising,Design and Creation of D&I Strategy Docu,SK3 02P,"2,145.00",
"Housing, Communities & Local Government",MHCLG,07/07/2021,ERDF Work in Progress � Capital,Stronger Places,MANCHESTER UNIVERSITY,,Large,,,7700009163,,ERDF grant payment,M13 9PL,"356,188.78",Yes
"Housing, Communities & Local Government",MHCLG,07/07/2021,ERDF Work in Progress � Capital,Stronger Places,NORTH EAST LINCOLNSHIRE COUNCIL,,Large,,,7700009154,,ERDF grant payment,DN31 1HU,"8,009.99",Yes
"Housing, Communities & Local Government",MHCLG,07/07/2021,ERDF Work in Progress � Capital,Stronger Places,STOKE-ON-TRENT CITY COUNCIL,,,,,7700009156,,ERDF grant payment,ST4 1HH,"40,049.18",Yes
"Housing, Communities & Local Government",MHCLG,07/07/2021,ERDF Work in Progress � Resource,Stronger Places,ART SERVICES GRANTS LTD T/A SPACE,,Small,,,7700009160,,ERDF grant payment,E8 3RH,"102,767.82",Yes
"Housing, Communities & Local Government",MHCLG,07/07/2021,ERDF Work in Progress � Resource,Stronger Places,ART SERVICES GRANTS LTD T/A SPACE,,Small,,,7700009161,,ERDF grant offset,E8 3RH,"-3,171.49",Yes
"Housing, Communities & Local Government",MHCLG,07/07/2021,ERDF Work in Progress � Resource,Stronger Places,COMMUNITY MEDIA SOLUTIONS LTD,,Micro,,,7700009155,,ERDF grant payment,S1 2BX,"89,317.65",Yes
"Housing, Communities & Local Government",MHCLG,07/07/2021,ERDF Work in Progress � Resource,Stronger Places,MANCHESTER UNIVERSITY,,Large,,,7700009163,,ERDF grant payment,M13 9PL,"185,056.34",Yes
"Housing, Communities & Local Government",MHCLG,07/07/2021,ERDF Work in Progress � Resource,Stronger Places,NORTH WEST UNI EUROP UNIT LTD,,Micro,,,7700009158,,ERDF grant payment,M1 3HZ,"146,513.59",Yes
"Housing, Communities & Local Government",MHCLG,07/07/2021,ERDF Work in Progress � Resource,Stronger Places,NORTHUMBERLAND BUSINESS SERVICE LTD,,Small,,,7700009157,,ERDF grant payment,NE63 8AP,"27,097.44",Yes
"Housing, Communities & Local Government",MHCLG,07/07/2021,ERDF Work in Progress � Resource,Stronger Places,STOKE-ON-TRENT CITY COUNCIL,,,,,7700009156,,ERDF grant payment,ST4 1HH,"23,543.32",Yes
"Housing, Communities & Local Government",MHCLG,07/07/2021,ERDF Work in Progress � Resource,Stronger Places,UNIVERSITY OF CENTRAL LANCASHIRE,,Large,,,7700009159,,ERDF grant payment,PR7 7DL,648.91,Yes
"Housing, Communities & Local Government",MHCLG,07/07/2021,ERDF Work in Progress � Resource,Stronger Places,UNIVERSITY OF CENTRAL LANCASHIRE,,Large,,,7700009162,,ERDF grant payment,PR7 7DL,"63,809.49",Yes
"Housing, Communities & Local Government",MHCLG,07/07/2021,ERDF Work in Progress � Resource,Stronger Places,UNIVERSITY OF CENTRAL LANCASHIRE,,Large,,,7700009164,,ERDF grant payment,PR7 7DL,"1,627.14",Yes
"Housing, Communities & Local Government",MHCLG,07/07/2021,EXP � PURCHASE OF GOODS /SERVICES R & D,Safer and Greener Buildings,BUILDING RESEARCH ESTABLISHMENT,,Large,,896495033,5106273166,Research,investigation of real fires,WD25 9XX,"21,689.00",
"Housing, Communities & Local Government",MHCLG,07/07/2021,"Furniture, Fittings and carpets",CFO and Corporate,21st CENTURY OFFICE CONCEPTS LTD,,Small,,,5106273113,"Furniture, Fixtures and Fittings",CV-19 Home Working Requirements Ext 6,SG12 0SS,"3,098.16",
"Housing, Communities & Local Government",MHCLG,07/07/2021,Grant in Aid to NDPBs (non budget),Local Government Strategy and Analysis,VALUATION TRIBUNAL SERVICE,,,,211218366,2100309950,,GIA to VTS,E1 8EU,"400,000.00",Yes
"Housing, Communities & Local Government",MHCLG,07/07/2021,IT - Service Contracts,CFO and Corporate,DAISY CORPORATE SERVICES TRADING LT,,Large,,,5106273157,IT Managed / Outsourced Services,Managed IP Telephony Service 1 year,BB9 5SR,"39,566.05",
"Housing, Communities & Local Government",MHCLG,07/07/2021,IT - Service Contracts,CFO and Corporate,DAISY CORPORATE SERVICES TRADING LT,,Large,,,5106273158,IT Managed / Outsourced Services,Managed IP Telephony Service 1 year,BB9 5SR,"38,685.61",
"Housing, Communities & Local Government",MHCLG,07/07/2021,IT - Service Contracts,CFO and Corporate,HOME OFFICE,,,,,5106273176,IT Managed / Outsourced Services,ACN18660-Ground floor Fry Agile Space,NP20 9BB,"276,163.87",
"Housing, Communities & Local Government",MHCLG,07/07/2021,IT - Service Contracts,CFO and Corporate,HOME OFFICE ACCOUNTS,,Public Bodies,,,5106273167,IT Managed / Outsourced Services,Work Spaces - Fry Building,UB3 5EY,"413,030.99",
"Housing, Communities & Local Government",MHCLG,07/07/2021,IT - Service Contracts,CFO and Corporate,HOME OFFICE ACCOUNTS,,Public Bodies,,,5106273171,IT Managed / Outsourced Services,Booths - Fry Building,UB3 5EY,"127,512.95",
"Housing, Communities & Local Government",MHCLG,07/07/2021,IT - Service Contracts,CFO and Corporate,LITTLE FISH(UK)T/A LITTLE FISH,,Medium,,,5106273155,IT Managed / Outsourced Services,Servicedesk/Tier2 provision to Nov 2021,NG1 1LS,"72,996.30",
"Housing, Communities & Local Government",MHCLG,07/07/2021,IT - Service Contracts,CFO and Corporate,LITTLE FISH(UK)T/A LITTLE FISH,,Medium,,,5106273156,IT Managed / Outsourced Services,Servicedesk/Tier2 provision to Nov 2021,NG1 1LS,"72,996.30",
"Housing, Communities & Local Government",MHCLG,07/07/2021,IT - Service Contracts,CFO and Corporate,MADE TECH LTD,,Medium,,,5106273109,IT Managed / Outsourced Services,Case Level Data Submission Alpha,EC2A 4NE,"59,669.50",
"Housing, Communities & Local Government",MHCLG,07/07/2021,IT - Service Contracts,CFO and Corporate,STATIONERY OFFICE LTD,,Large,,779375633,5106273170,IT Managed / Outsourced Services,Development work 2021/22,W1F 8PR,"120,048.00",
"Housing, Communities & Local Government",MHCLG,07/07/2021,IT - Service Contracts,CFO and Corporate,VELOCITII DIGITAL SOLUTIONS LTD,,Micro,,,5106273112,IT Managed / Outsourced Services,Digital Land Team Support 3mth extension,SW10 0RJ�,"53,580.00",
"Housing, Communities & Local Government",MHCLG,07/07/2021,IT Consultancy,CFO and Corporate,AirWalk Consulting Reply Ltd,,,,,5106273173,Consultancy,Charges relating to Digital Projects,EH2 3ES,"181,833.00",
"Housing, Communities & Local Government",MHCLG,07/07/2021,Legal Fees,Safer and Greener Buildings,MINISTRY OF JUSTICE,,,,211860841,5106273164,Legal,Legal Advice,NP20 9BB,"2,607.60",
"Housing, Communities & Local Government",MHCLG,07/07/2021,Management Consultancy,Safer and Greener Buildings,CABINET OFFICE,,Public Bodies,,232159186,5106273152,Consultancy,Cabinet Office Complex Transactions Team,FY1 9JN,"12,888.00",
"Housing, Communities & Local Government",MHCLG,07/07/2021,Management Consultancy,Safer and Greener Buildings,CABINET OFFICE,,Public Bodies,,232159186,5106273152,Consultancy,EWS 1 Fire Panel - Complex Transactions,FY1 9JN,"26,850.00",
"Housing, Communities & Local Government",MHCLG,07/07/2021,Printing,Stronger Places,STATIONERY OFFICE LTD,,Large,,779375633,5106272976,Printing Services,Statutory Instru NON VAT(21-22),W1F 8PR,-915.00,
"Housing, Communities & Local Government",MHCLG,07/07/2021,Printing,Stronger Places,STATIONERY OFFICE LTD,,Large,,779375633,5106272976,Printing Services,Statutory Instruments Print - VAT(21-22),W1F 8PR,-522.00,
"Housing, Communities & Local Government",MHCLG,07/07/2021,Professional services,Safer and Greener Buildings,FAITHFUL&GOULD LTD,,Large,,,5106273177,Technical Services,Provision of Client Side Support Service,KT18 5BW,"78,856.57",
"Housing, Communities & Local Government",MHCLG,07/07/2021,Professional services,Safer and Greener Buildings,PAUL MORRELL CONSULTING,,Large,,,5106273117,Financial,Paul Morrell - Testing of Building Produ,W14 0JB,"6,250.00",
"Housing, Communities & Local Government",MHCLG,07/07/2021,Professional services,Safer and Greener Buildings,URBANTIDE LIMITED,,Medium,,,5106273080,Financial,Data science pilot (11m-18m),EH8 9BT,"30,473.26",
"Housing, Communities & Local Government",MHCLG,07/07/2021,Publicity,Safer and Greener Buildings,Paragon Customer Communications Ltd,,Large,,,5106273137,Advertising,Letters to GT residents,SR4 6ST,870.00,
"Housing, Communities & Local Government",MHCLG,07/07/2021,Removals and Porterage,CFO and Corporate,21st CENTURY OFFICE CONCEPTS LTD,,Small,,,5106273165,Transport,Crates - extension,SG12 0SS,288.00,
"Housing, Communities & Local Government",MHCLG,07/07/2021,Services provided by other Govt Orgs,Stronger Places,ENVIRONMENT AGENCY,,Public Bodies,,,5106273175,Financial,Environmental Assessment Work,PE2 8YD,"20,797.50",Yes
"Housing, Communities & Local Government",MHCLG,07/07/2021,Software Licences,CFO and Corporate,BYTES SOFTWARE SERVICES LTD,,Medium,,225273754,5106273162,Software,Assistive Software licences - Reasonable,KT22 7TW,251.94,
"Housing, Communities & Local Government",MHCLG,07/07/2021,Software Licences,CFO and Corporate,BYTES SOFTWARE SERVICES LTD,,Medium,,225273754,5106273163,Software,Assistive Software licences - Reasonable,KT22 7TW,251.94,
"Housing, Communities & Local Government",MHCLG,07/07/2021,Steady State Service Provision,CFO and Corporate,ALLPAY LIMITED,,Medium,,738359918,5106273049,Business Process Outsourcing Services,BACS Bureau Service 12 months,HR1 3SE,"1,211.76",
"Housing, Communities & Local Government",MHCLG,07/07/2021,Steady State Service Provision,CFO and Corporate,EDENRED (UK GROUP) LTD,,Large,,210186342,5106273147,Business Process Outsourcing Services,EPS Vouchers 2021/22,SW1V 2RS,"20,190.00",
"Housing, Communities & Local Government",MHCLG,07/07/2021,Training,CFO and Corporate,KNOWLEDGEPOOL GROUP LIMITED,,Medium,,737096441,5106271811,Development and Training,Civil Service Training,RG1 8LS,"1,827.63",
"Housing, Communities & Local Government",MHCLG,07/07/2021,Training,CFO and Corporate,KPMG LLP (CSL),,Large,,,5106273159,Development and Training,Civil Service Training,E14 5GL,472.00,
"Housing, Communities & Local Government",MHCLG,07/07/2021,Training,Safer and Greener Buildings,KPMG LLP (CSL),,Large,,,5106271855,Development and Training,Civil Service Training,E14 5GL,"1,960.80",
"Housing, Communities & Local Government",MHCLG,07/07/2021,Web Services,Stronger Places,DESTINATION CMS LTD,,Small,,,5106273160,ICT Services,Great British High Streets Website updat,EX4 3SR,360.00,
"Housing, Communities & Local Government",MHCLG,08/07/2021,Current (non AEF) Grants to Local Authorities,Housing & Planning,SOUTH YORKS PENSIONS AUTHORITY,,,,232568295,2100309964,,Local authority Private Rented Sector refund ,S70 2HG,"3,872.50",Yes
"Housing, Communities & Local Government",MHCLG,08/07/2021,ERDF Work in Progress � Capital,Stronger Places,BLUE DEER LTD,,Small,,,7700009165,,ERDF grant payment,SK11 6PL,"352,728.68",Yes
"Housing, Communities & Local Government",MHCLG,08/07/2021,ERDF Work in Progress � Capital,Stronger Places,EDEN GEOTHERMAL LTD,,,,,7700009168,,ERDF grant payment,PI24 2SG,"240,078.66",Yes
"Housing, Communities & Local Government",MHCLG,08/07/2021,ERDF Work in Progress � Capital,Stronger Places,ESSEX COUNTY COUNCIL,,Large,,,7700009170,,ERDF grant payment,CM1 1LX,"80,000.00",Yes
"Housing, Communities & Local Government",MHCLG,08/07/2021,ERDF Work in Progress � Capital,Stronger Places,NORFOLK COUNTY COUNCIL,,,,,7700009167,,ERDF grant payment,NR1 2DH,"2,821,438.50",Yes
"Housing, Communities & Local Government",MHCLG,08/07/2021,ERDF Work in Progress � Resource,Stronger Places,BRADFORD UNIVERSITY,,,,,7700009169,,ERDF grant payment,BD7 1DP,"20,770.27",Yes
"Housing, Communities & Local Government",MHCLG,08/07/2021,ERDF Work in Progress � Resource,Stronger Places,DEVON COUNTY COUNCIL,,Large,,,7700009166,,ERDF grant payment,EX2 4QD,"90,782.66",Yes
"Housing, Communities & Local Government",MHCLG,08/07/2021,ERDF Work in Progress � Resource,Stronger Places,ESSEX COUNTY COUNCIL,,Large,,,7700009170,,ERDF grant payment,CM1 1LX,"73,952.61",Yes
"Housing, Communities & Local Government",MHCLG,08/07/2021,Grant in Aid to NDPBs (non budget),Local Government Strategy and Analysis,COMMISSION LOCAL ADMINISTRATION,,,,215271508,2100309924,,DCLG DEL 21/22 budget contribution for the CLAE,CV1 3BH,"890,000.00",Yes
"Housing, Communities & Local Government",MHCLG,08/07/2021,IT - Service Contracts,CFO and Corporate,CENTURYLINK COMMUNICATIONS UK LTD,,Large,,,5106273212,IT Managed / Outsourced Services,PSN Assured Cloud Connect AWS Yr2 20/21,EC4M 7RB,"1,367.00",
"Housing, Communities & Local Government",MHCLG,08/07/2021,IT - Service Contracts,CFO and Corporate,CENTURYLINK COMMUNICATIONS UK LTD,,Large,,,5106273213,IT Managed / Outsourced Services,PSN Assured Cloud Connect AWS Yr2 20/21,EC4M 7RB,"1,367.00",
"Housing, Communities & Local Government",MHCLG,08/07/2021,IT - Service Contracts,CFO and Corporate,STATIONERY OFFICE LTD,,Large,,779375633,5106273195,IT Managed / Outsourced Services,Development work 2021/22,W1F 8PR,"34,200.00",
"Housing, Communities & Local Government",MHCLG,08/07/2021,IT - Service Contracts,Local Government Strategy and Analysis,ARCUS CLOUD SERVICES LTD,,Medium,,,5106273183,IT Managed / Outsourced Services,Data Analytics Platform,NG24 2AG,"53,612.88",
"Housing, Communities & Local Government",MHCLG,08/07/2021,IT - Service Contracts,Local Government Strategy and Analysis,ARCUS CLOUD SERVICES LTD,,Medium,,,5106273184,IT Managed / Outsourced Services,Data Analytics Platform,NG24 2AG,"1,916.25",
"Housing, Communities & Local Government",MHCLG,08/07/2021,IT - Software Maintenance,Safer and Greener Buildings,AECOM LTD,,Large,,214127604,5106273118,IT Managed / Outsourced Services,Lot 7 - energy assessment models,AL1 3ER,"1,162.20",
"Housing, Communities & Local Government",MHCLG,08/07/2021,Services provided by other Govt Orgs,Stronger Places,MINISTRY OF DEFENCE,,Public Bodies,,,5106273201,Financial,Military Aid to Civil Authorities,L2 3YL,"3,146.72",Yes
"Housing, Communities & Local Government",MHCLG,08/07/2021,Steady State Service Provision,Housing & Planning,GROUNDWORK UK,Yes,,,739193758,5106273203,Business Process Outsourcing Services,Grant admin costs,B1 2RR,"3,184.00",
"Housing, Communities & Local Government",MHCLG,08/07/2021,Steady State Service Provision,Housing & Planning,GROUNDWORK UK,Yes,,,739193758,5106273206,Business Process Outsourcing Services,Grant admin costs,B1 2RR,"6,522.00",
"Housing, Communities & Local Government",MHCLG,08/07/2021,Steady State Service Provision,Housing & Planning,LOCALITY,,Medium,,347998312,5106273207,Business Process Outsourcing Services,Neighbourhood Planning Fixed Costs 2021/22,N1 6DR,"34,722.23",
"Housing, Communities & Local Government",MHCLG,08/07/2021,Training,CFO and Corporate,KPMG LLP (CSL),,Large,,,5106273218,Development and Training,Civil Service Training,E14 5GL,936.00,
"Housing, Communities & Local Government",MHCLG,08/07/2021,Training,CFO and Corporate,Public Speaking London,,Micro,,,5106273190,Development and Training,Civil Service Training,NW6 2DA,498.00,
"Housing, Communities & Local Government",MHCLG,08/07/2021,Training,CFO and Corporate,UNIVERSITY COLLEGE OF ESTATE MANAGE,,Medium,,,5106273202,Development and Training,Civil Service Training,RG1 4BS,"1,525.00",
"Housing, Communities & Local Government",MHCLG,08/07/2021,Training,Housing & Planning,KNOWLEDGEPOOL GROUP LIMITED,,Medium,,737096441,5106273217,Development and Training,Civil Service Training,RG1 8LS,508.01,
"Housing, Communities & Local Government",MHCLG,08/07/2021,Training,Local Government Strategy and Analysis,LSR TRAINING AND DEVELOPMENT LTD,,Micro,,,5106273204,Development and Training,Civil Service Training,YO42 4RE,495.00,
"Housing, Communities & Local Government",MHCLG,08/07/2021,Training,Local Government Strategy and Analysis,WISE OWL BUSINESS SOLUTIONS LTD,,Micro,,738553754,5106273196,Development and Training,Civil Service Training,SK13 2AA,595.00,
"Housing, Communities & Local Government",MHCLG,08/07/2021,Utilisation of Provi - Cap Grant to LA,Safer and Greener Buildings,ACADEMY CONSULTING SOLUTIONS LTD,,Small,,423486641,5106273198,Business Process Outsourcing Services,Specialist Contractors for Grenfell,TN2 5AL,"10,080.00",
"Housing, Communities & Local Government",MHCLG,08/07/2021,Utilisation of Provi - Cap Grant to LA,Safer and Greener Buildings,ACADEMY CONSULTING SOLUTIONS LTD,,Small,,423486641,5106273199,Business Process Outsourcing Services,Specialist Contractors for Grenfell,TN2 5AL,"6,012.00",
"Housing, Communities & Local Government",MHCLG,08/07/2021,Utilisation of Provi - Cap Grant to LA,Safer and Greener Buildings,PLOWMAN CRAVEN LIMITED,,Medium,,,5106273205,Business Process Outsourcing Services,Specialist Contractors for Grenfell,AL5 5EQ,"20,247.20",
"Housing, Communities & Local Government",MHCLG,09/07/2021,Accommodation - actuals,Housing & Planning,CORPORATE TRAVEL MANAGEMENT(NORTH)L,,Small,,213089972,2100309969,Business Travel Accommodation,Consolidated Monthly Travel June 2021 Hotels,BD1 5HQ,334.00,
"Housing, Communities & Local Government",MHCLG,09/07/2021,Accommodation - actuals,Local Government Strategy and Analysis,CORPORATE TRAVEL MANAGEMENT(NORTH)L,,Small,,213089972,2100309969,Business Travel Accommodation,Consolidated Monthly Travel June 2021 Hotels,BD1 5HQ,571.95,
"Housing, Communities & Local Government",MHCLG,09/07/2021,Accommodation - actuals,Safer and Greener Buildings,CORPORATE TRAVEL MANAGEMENT(NORTH)L,,Small,,213089972,2100309969,Business Travel Accommodation,Consolidated Monthly Travel June 2021 Hotels,BD1 5HQ,290.50,
"Housing, Communities & Local Government",MHCLG,09/07/2021,Accommodation - actuals,Stronger Places,CORPORATE TRAVEL MANAGEMENT(NORTH)L,,Small,,213089972,2100309969,Business Travel Accommodation,Consolidated Monthly Travel June 2021 Hotels,BD1 5HQ,"1,493.28",
"Housing, Communities & Local Government",MHCLG,09/07/2021,Agency Staff,Local Government Strategy and Analysis,GREEN PARK INTERIM & EXECUTIVE,,Small,,348738829,5106273239,Business Process Outsourcing Services,Contingent Labour,W1K 4EG,"15,009.85",
"Housing, Communities & Local Government",MHCLG,09/07/2021,Air Travel,Local Government Strategy and Analysis,CORPORATE TRAVEL MANAGEMENT(NORTH)L,,Small,,213089972,2100309969,Air,Consolidated Monthly Travel June 2021 Air Tickets,BD1 5HQ,816.45,
"Housing, Communities & Local Government",MHCLG,09/07/2021,Current (non AEF) Grants to Local Authorities,Stronger Places,BARNSLEY MBC,,,,211178595,3700107096,,Grant payable by the Exchequer,S70 2AQ,"33,028.00",Yes
"Housing, Communities & Local Government",MHCLG,09/07/2021,Current (non AEF) Grants to Local Authorities,Stronger Places,BROXBOURNE BC,,Public Bodies,,239931918,3700107098,,Grant payable by the Exchequer,EN8 9XG,"11,249.00",Yes
"Housing, Communities & Local Government",MHCLG,09/07/2021,Current (non AEF) Grants to Local Authorities,Stronger Places,MOLE VALLEY DC,,,,225385772,3700107097,,Grant payable by the Exchequer,RH4 1SJ,"37,436.00",Yes
"Housing, Communities & Local Government",MHCLG,09/07/2021,Current (non AEF) Grants to Local Authorities,Stronger Places,STAFFORD BC,,,,227476934,3700107099,,Grant payable by the Exchequer,ST16 3AQ,"25,544.00",Yes
"Housing, Communities & Local Government",MHCLG,09/07/2021,Current (non AEF) Grants to Local Authorities,Stronger Places,TELFORD & WREKIN COUNCIL,,,,230235801,3700107100,,Grant payable by the Exchequer,TF3 4NT,"150,422.00",Yes
"Housing, Communities & Local Government",MHCLG,09/07/2021,ERDF Work in Progress � Capital,Stronger Places,DEVON COUNTY COUNCIL,,Large,,,7700009171,,ERDF grant payment,EX2 4QD,"16,721.14",Yes
"Housing, Communities & Local Government",MHCLG,09/07/2021,ERDF Work in Progress � Resource,Stronger Places,DEVON COUNTY COUNCIL,,Large,,,7700009171,,ERDF grant payment,EX2 4QD,"4,241.08",Yes
"Housing, Communities & Local Government",MHCLG,09/07/2021,ERDF Work in Progress � Resource,Stronger Places,SOUTH EAST MIDLANDS LOCAL ENTERPRIS,,,,,7700009172,,ERDF grant payment,MK43 0BT,"2,972.71",Yes
"Housing, Communities & Local Government",MHCLG,09/07/2021,ERDF Work in Progress � Resource,Stronger Places,VEDAS RECRUITMENT & TRAINING LTD,,,,,7700009173,,ERDF grant payment,BB10 1DR,"144,767.15",Yes
"Housing, Communities & Local Government",MHCLG,09/07/2021,HR Consultancy,CFO and Corporate,CABINET OFFICE,,Public Bodies,,232159186,5106272774,Consultancy,2021 Fast Stream Recruitment Costs,FY1 9JN,"5,280.00",
"Housing, Communities & Local Government",MHCLG,09/07/2021,IT - Service Contracts,CFO and Corporate,ARCUS CLOUD SERVICES LTD,,Medium,,,5106273241,IT Managed / Outsourced Services,ITMP AWS Hosting,NG24 2AG,"7,536.61",
"Housing, Communities & Local Government",MHCLG,09/07/2021,IT - Service Contracts,Local Government Strategy and Analysis,RISUAL LIMITED,,Medium,,,5106273187,IT Managed / Outsourced Services,Analytical Data Services Beta Completion,ST18 0WP,"32,500.00",
"Housing, Communities & Local Government",MHCLG,09/07/2021,IT - Service Contracts,Stronger Places,STORM ID LTD,,Medium,,,5106273110,IT Managed / Outsourced Services,High Streets Task Force Website,EH7 6BG,"2,520.00",
"Housing, Communities & Local Government",MHCLG,09/07/2021,Physical Storage,CFO and Corporate,RESTORE PLC,,Large,,,5106273252,Warehousing and Storage,Storage Costs,RH1 3DY,"4,015.35",
"Housing, Communities & Local Government",MHCLG,09/07/2021,Physical Storage,CFO and Corporate,RESTORE PLC,,Large,,,5106273253,Warehousing and Storage,Storage Costs,RH1 3DY,875.72,
"Housing, Communities & Local Government",MHCLG,09/07/2021,Physical Storage,CFO and Corporate,RESTORE PLC,,Large,,,5106273256,Warehousing and Storage,Storage Costs,RH1 3DY,"1,534.89",
"Housing, Communities & Local Government",MHCLG,09/07/2021,Physical Storage,CFO and Corporate,RESTORE PLC,,Large,,,5106273258,Warehousing and Storage,Storage Costs,RH1 3DY,227.65,
"Housing, Communities & Local Government",MHCLG,09/07/2021,Professional services,Housing & Planning,VALUATION OFFICE AGENCY,,Public Bodies,,215253886,5106273248,Technical Services,Valuation Office Agency - Right to Buy Programme,W1D 5BU,"106,439.94",
"Housing, Communities & Local Government",MHCLG,09/07/2021,Professional services,Safer and Greener Buildings,RIDGE & PARTNERS LLP,,Large,,739927452,5106273050,Technical Services,Provision of Client Side Support Service,OX20 1QR,"2,611.20",
"Housing, Communities & Local Government",MHCLG,09/07/2021,Professional services,Safer and Greener Buildings,RIDGE & PARTNERS LLP,,Large,,739927452,5106273052,Technical Services,Provision of Client Side Support Service,OX20 1QR,"1,228.80",
"Housing, Communities & Local Government",MHCLG,09/07/2021,Professional services,Safer and Greener Buildings,RIDGE & PARTNERS LLP,,Large,,739927452,5106273053,Technical Services,Provision of Client Side Support Service,OX20 1QR,"1,958.40",
"Housing, Communities & Local Government",MHCLG,09/07/2021,Professional services,Safer and Greener Buildings,RIDGE & PARTNERS LLP,,Large,,739927452,5106273054,Technical Services,Provision of Client Side Support Service,OX20 1QR,"3,072.00",
"Housing, Communities & Local Government",MHCLG,09/07/2021,Professional services,Safer and Greener Buildings,RIDGE & PARTNERS LLP,,Large,,739927452,5106273055,Technical Services,Provision of Client Side Support Service,OX20 1QR,"2,457.60",
"Housing, Communities & Local Government",MHCLG,09/07/2021,Professional services,Safer and Greener Buildings,RIDGE & PARTNERS LLP,,Large,,739927452,5106273056,Technical Services,Provision of Client Side Support Service,OX20 1QR,614.40,
"Housing, Communities & Local Government",MHCLG,09/07/2021,Professional services,Safer and Greener Buildings,RIDGE & PARTNERS LLP,,Large,,739927452,5106273057,Technical Services,Provision of Client Side Support Service,OX20 1QR,"1,843.20",
"Housing, Communities & Local Government",MHCLG,09/07/2021,Professional services,Safer and Greener Buildings,RIDGE & PARTNERS LLP,,Large,,739927452,5106273058,Technical Services,Provision of Client Side Support Service,OX20 1QR,"1,305.60",
"Housing, Communities & Local Government",MHCLG,09/07/2021,Professional services,Safer and Greener Buildings,RIDGE & PARTNERS LLP,,Large,,739927452,5106273064,Technical Services,Provision of Client Side Support Service,OX20 1QR,"5,875.20",
"Housing, Communities & Local Government",MHCLG,09/07/2021,Professional services,Safer and Greener Buildings,RIDGE & PARTNERS LLP,,Large,,739927452,5106273065,Technical Services,Provision of Client Side Support Service,OX20 1QR,"10,137.60",
"Housing, Communities & Local Government",MHCLG,09/07/2021,Professional services,Safer and Greener Buildings,RIDGE & PARTNERS LLP,,Large,,739927452,5106273073,Technical Services,Provision of Client Side Support Service,OX20 1QR,"4,915.20",
"Housing, Communities & Local Government",MHCLG,09/07/2021,Professional services,Safer and Greener Buildings,RIDGE & PARTNERS LLP,,Large,,739927452,5106273074,Technical Services,Provision of Client Side Support Service,OX20 1QR,"7,987.20",
"Housing, Communities & Local Government",MHCLG,09/07/2021,Professional services,Stronger Places,MINISTRY OF JUSTICE,,,,211860841,5106273188,Office Supplies,Design of Spatial Framework ,NP20 9BB,"9,574.80",
"Housing, Communities & Local Government",MHCLG,09/07/2021,Publications,Local Government Strategy and Analysis,JONES YARRELL LEADENHALL LTD,,Large,,505670265,5106273215,Learning and Development Materials,SpAds Newspapers 20-21,E3 3JH,305.84,
"Housing, Communities & Local Government",MHCLG,09/07/2021,Publications,Local Government Strategy and Analysis,JONES YARRELL LEADENHALL LTD,,Large,,505670265,5106273222,Learning and Development Materials,Press Office Subscriptions 20-21,E3 3JH,428.42,
"Housing, Communities & Local Government",MHCLG,09/07/2021,Publishing,Safer and Greener Buildings,JUPITER VISUAL COMMUNCATIONS LTD,,Small,,,5106273227,Printing Services,X2 Brushed stainless laminate,E1W 2SF,"1,270.00",
"Housing, Communities & Local Government",MHCLG,09/07/2021,"Rail, Underground and Eurostar",CFO and Corporate,CORPORATE TRAVEL MANAGEMENT(NORTH)L,,Small,,213089972,2100309969,Rail,Consolidated Monthly Travel May 2021 Rail,BD1 5HQ,"1,039.50",
"Housing, Communities & Local Government",MHCLG,09/07/2021,"Rail, Underground and Eurostar",Housing & Planning,CORPORATE TRAVEL MANAGEMENT(NORTH)L,,Small,,213089972,2100309969,Rail,Consolidated Monthly Travel May 2021 Rail,BD1 5HQ,446.90,
"Housing, Communities & Local Government",MHCLG,09/07/2021,"Rail, Underground and Eurostar",Housing & Planning,CORPORATE TRAVEL MANAGEMENT(NORTH)L,,Small,,213089972,2100309969,Rail,Consolidated Monthly Travel May 2021 Rail,BD1 5HQ,384.30,
"Housing, Communities & Local Government",MHCLG,09/07/2021,"Rail, Underground and Eurostar",Housing & Planning,CORPORATE TRAVEL MANAGEMENT(NORTH)L,,Small,,213089972,2100309969,Rail,Consolidated Monthly Travel May 2021 Rail,BD1 5HQ,399.35,
"Housing, Communities & Local Government",MHCLG,09/07/2021,"Rail, Underground and Eurostar",Local Government Strategy and Analysis,CORPORATE TRAVEL MANAGEMENT(NORTH)L,,Small,,213089972,2100309969,Rail,Consolidated Monthly Travel May 2021 Rail,BD1 5HQ,460.15,
"Housing, Communities & Local Government",MHCLG,09/07/2021,"Rail, Underground and Eurostar",Local Government Strategy and Analysis,CORPORATE TRAVEL MANAGEMENT(NORTH)L,,Small,,213089972,2100309969,Rail,Consolidated Monthly Travel May 2021 Rail,BD1 5HQ,517.20,
"Housing, Communities & Local Government",MHCLG,09/07/2021,"Rail, Underground and Eurostar",Local Government Strategy and Analysis,CORPORATE TRAVEL MANAGEMENT(NORTH)L,,Small,,213089972,2100309969,Rail,Consolidated Monthly Travel May 2021 Rail,BD1 5HQ,641.15,
"Housing, Communities & Local Government",MHCLG,09/07/2021,"Rail, Underground and Eurostar",Local Government Strategy and Analysis,CORPORATE TRAVEL MANAGEMENT(NORTH)L,,Small,,213089972,2100309969,Rail,Consolidated Monthly Travel May 2021 Rail,BD1 5HQ,"1,423.70",
"Housing, Communities & Local Government",MHCLG,09/07/2021,"Rail, Underground and Eurostar",Local Government Strategy and Analysis,CORPORATE TRAVEL MANAGEMENT(NORTH)L,,Small,,213089972,2100309969,Rail,Consolidated Monthly Travel May 2021 Rail,BD1 5HQ,"1,099.05",
"Housing, Communities & Local Government",MHCLG,09/07/2021,"Rail, Underground and Eurostar",Local Government Strategy and Analysis,CORPORATE TRAVEL MANAGEMENT(NORTH)L,,Small,,213089972,2100309969,Rail,Consolidated Monthly Travel May 2021 Rail,BD1 5HQ,"1,620.95",
"Housing, Communities & Local Government",MHCLG,09/07/2021,"Rail, Underground and Eurostar",Stronger Places,CORPORATE TRAVEL MANAGEMENT(NORTH)L,,Small,,213089972,2100309969,Rail,Consolidated Monthly Travel May 2021 Rail,BD1 5HQ,"1,038.55",
"Housing, Communities & Local Government",MHCLG,09/07/2021,"Rail, Underground and Eurostar",Stronger Places,CORPORATE TRAVEL MANAGEMENT(NORTH)L,,Small,,213089972,2100309969,Rail,Consolidated Monthly Travel May 2021 Rail,BD1 5HQ,287.20,
"Housing, Communities & Local Government",MHCLG,09/07/2021,"Rail, Underground and Eurostar",Stronger Places,CORPORATE TRAVEL MANAGEMENT(NORTH)L,,Small,,213089972,2100309969,Rail,Consolidated Monthly Travel May 2021 Rail,BD1 5HQ,517.30,
"Housing, Communities & Local Government",MHCLG,09/07/2021,Rent,CFO and Corporate,GOVERNMENT PROPERTY AGENCY,,Medium,,,5106273259,Business Support,High Trees Rent,B2 5LS,"23,323.67",
"Housing, Communities & Local Government",MHCLG,09/07/2021,Steady State Service Provision,Local Government Strategy and Analysis,GREEN PARK INTERIM & EXECUTIVE,,Small,,348738829,5106273249,Business Process Outsourcing Services,Contingent Labour,W1K 4EG,"1,248.00",
"Housing, Communities & Local Government",MHCLG,09/07/2021,Training,CFO and Corporate,ERNST & YOUNG LLP,,Large,,221768935,5106273238,Development and Training,Civil Service Training,SE1 7EU,"8,805.00",
"Housing, Communities & Local Government",MHCLG,09/07/2021,Travel and Subsistence Account,Local Government Strategy and Analysis,CORPORATE TRAVEL MANAGEMENT(NORTH)L,,Small,,213089972,2100309969,Business Travel,Consolidated Monthly Travel June 2021 Misc T&S,BD1 5HQ,393.84,
"Housing, Communities & Local Government",MHCLG,09/07/2021,Web Services,Stronger Places,BRANDWATCH,,Medium,,,5106273221,ICT Services,Social Media Monitoring & Analysis Tool,BN1 1UJ,"38,073.60",
"Housing, Communities & Local Government",MHCLG,12/07/2021,Advertising,Housing & Planning,M&C SAATCHI (UK) LTD,,Large,,,5106273236,Advertising,Generation Buy Campaign Funding,W1F 9EE,"28,181.02",
"Housing, Communities & Local Government",MHCLG,12/07/2021,Advertising,Housing & Planning,M&C SAATCHI (UK) LTD,,Large,,,5106273313,Advertising,Generation Buy Campaign Funding,W1F 9EE,"6,950.32",
"Housing, Communities & Local Government",MHCLG,12/07/2021,Agency Staff,CFO and Corporate,ALEXANDER MANN SOLUTIONS LTD,,Large,,,5106273262,Contingent Labour,Contingent Labour,EC2N 3AQ,"2,532.19",
"Housing, Communities & Local Government",MHCLG,12/07/2021,Agency Staff,CFO and Corporate,ALEXANDER MANN SOLUTIONS LTD,,Large,,,5106273264,Contingent Labour,Contingent Labour,EC2N 3AQ,"5,317.63",
"Housing, Communities & Local Government",MHCLG,12/07/2021,Agency Staff,CFO and Corporate,ALEXANDER MANN SOLUTIONS LTD,,Large,,,5106273272,Contingent Labour,interim manager,EC2N 3AQ,586.44,
"Housing, Communities & Local Government",MHCLG,12/07/2021,Agency Staff,CFO and Corporate,ALEXANDER MANN SOLUTIONS LTD,,Large,,,5106273274,Contingent Labour,Contingent Labour,EC2N 3AQ,"4,003.56",
"Housing, Communities & Local Government",MHCLG,12/07/2021,Agency Staff,CFO and Corporate,ALEXANDER MANN SOLUTIONS LTD,,Large,,,5106273277,Contingent Labour,Contingent Labour,EC2N 3AQ,"4,267.80",
"Housing, Communities & Local Government",MHCLG,12/07/2021,Agency Staff,CFO and Corporate,ALEXANDER MANN SOLUTIONS LTD,,Large,,,5106273278,Contingent Labour,Contingent Labour,EC2N 3AQ,"4,109.70",
"Housing, Communities & Local Government",MHCLG,12/07/2021,Agency Staff,CFO and Corporate,ALEXANDER MANN SOLUTIONS LTD,,Large,,,5106273282,Contingent Labour,Contingent Labour,EC2N 3AQ,"4,311.48",
"Housing, Communities & Local Government",MHCLG,12/07/2021,Agency Staff,CFO and Corporate,ALEXANDER MANN SOLUTIONS LTD,,Large,,,5106273286,Contingent Labour,Interim Staff,EC2N 3AQ,859.50,
"Housing, Communities & Local Government",MHCLG,12/07/2021,Agency Staff,CFO and Corporate,ALEXANDER MANN SOLUTIONS LTD,,Large,,,5106273287,Contingent Labour,Interim Staff,EC2N 3AQ,859.50,
"Housing, Communities & Local Government",MHCLG,12/07/2021,Agency Staff,CFO and Corporate,ALEXANDER MANN SOLUTIONS LTD,,Large,,,5106273289,Contingent Labour,Interim staff,EC2N 3AQ,848.04,
"Housing, Communities & Local Government",MHCLG,12/07/2021,Agency Staff,CFO and Corporate,ALEXANDER MANN SOLUTIONS LTD,,Large,,,5106273290,Contingent Labour,Contingent Labour,EC2N 3AQ,410.98,
"Housing, Communities & Local Government",MHCLG,12/07/2021,Agency Staff,CFO and Corporate,ALEXANDER MANN SOLUTIONS LTD,,Large,,,5106273291,Contingent Labour,Contingent Labour,EC2N 3AQ,948.36,
"Housing, Communities & Local Government",MHCLG,12/07/2021,Agency Staff,CFO and Corporate,ALEXANDER MANN SOLUTIONS LTD,,Large,,,5106273294,Contingent Labour,Contingent Labour,EC2N 3AQ,"15,213.43",
"Housing, Communities & Local Government",MHCLG,12/07/2021,Agency Staff,Housing & Planning,ALEXANDER MANN SOLUTIONS LTD,,Large,,,5106273281,Contingent Labour,Contingent Labour,EC2N 3AQ,"3,024.29",
"Housing, Communities & Local Government",MHCLG,12/07/2021,Agency Staff,Housing & Planning,ALEXANDER MANN SOLUTIONS LTD,,Large,,,5106273295,Contingent Labour,Agency staff,EC2N 3AQ,"11,340.96",
"Housing, Communities & Local Government",MHCLG,12/07/2021,Agency Staff,Local Government Strategy and Analysis,ALEXANDER MANN SOLUTIONS LTD,,Large,,,5106273267,Contingent Labour,Contingent Labour,EC2N 3AQ,"3,079.62",
"Housing, Communities & Local Government",MHCLG,12/07/2021,Agency Staff,Local Government Strategy and Analysis,ALEXANDER MANN SOLUTIONS LTD,,Large,,,5106273268,Contingent Labour,Contingent Labour,EC2N 3AQ,618.61,
"Housing, Communities & Local Government",MHCLG,12/07/2021,Agency Staff,Safer and Greener Buildings,ALEXANDER MANN SOLUTIONS LTD,,Large,,,5106273265,Contingent Labour,Contingent Labour,EC2N 3AQ,"2,199.42",
"Housing, Communities & Local Government",MHCLG,12/07/2021,Agency Staff,Safer and Greener Buildings,ALEXANDER MANN SOLUTIONS LTD,,Large,,,5106273266,Contingent Labour,Contingent Labour,EC2N 3AQ,"4,644.36",
"Housing, Communities & Local Government",MHCLG,12/07/2021,Agency Staff,Safer and Greener Buildings,ALEXANDER MANN SOLUTIONS LTD,,Large,,,5106273276,Contingent Labour,Contingent Labour,EC2N 3AQ,"4,681.10",
"Housing, Communities & Local Government",MHCLG,12/07/2021,Agency Staff,Safer and Greener Buildings,ALEXANDER MANN SOLUTIONS LTD,,Large,,,5106273284,Contingent Labour,Contingent Labour,EC2N 3AQ,"3,795.12",
"Housing, Communities & Local Government",MHCLG,12/07/2021,Agency Staff,Safer and Greener Buildings,ALEXANDER MANN SOLUTIONS LTD,,Large,,,5106273285,Contingent Labour,Contingent Labour,EC2N 3AQ,"3,780.36",
"Housing, Communities & Local Government",MHCLG,12/07/2021,Agency Staff,Stronger Places,ALEXANDER MANN SOLUTIONS LTD,,Large,,,5106273263,Contingent Labour,Contingent Labour,EC2N 3AQ,"1,709.22",
"Housing, Communities & Local Government",MHCLG,12/07/2021,Agency Staff,Stronger Places,ALEXANDER MANN SOLUTIONS LTD,,Large,,,5106273269,Contingent Labour,Contingent Labour,EC2N 3AQ,"4,952.10",
"Housing, Communities & Local Government",MHCLG,12/07/2021,Agency Staff,Stronger Places,ALEXANDER MANN SOLUTIONS LTD,,Large,,,5106273288,Contingent Labour,Contingent Labour,EC2N 3AQ,"1,890.18",
"Housing, Communities & Local Government",MHCLG,12/07/2021,Cap Grants to Local Authorities (DEL),Housing & Planning,GREATER LONDON AUTHORITY,,Large,,225353416,2100309960,,Grant Payable to Housing Infrastructure Programme,SE10 1AP,"1,973,712.00",Yes
"Housing, Communities & Local Government",MHCLG,12/07/2021,Cap Grants to Local Authorities (DEL),Stronger Places,TEES VALLEY COMBINED AUTHORITY,,,,,2100309897,,Teesworks grant,TS17 6QY,"5,838,000.00",Yes
"Housing, Communities & Local Government",MHCLG,12/07/2021,Electronic Data Storage,CFO and Corporate,RESTORE PLC,,Large,,,5106273260,Warehousing and Storage,Visions digital storage,RH1 3DY,"4,770.55",
"Housing, Communities & Local Government",MHCLG,12/07/2021,ERDF Work in Progress � Capital,Stronger Places,Carnell Management Services Limited,,,,,7700009176,,ERDF grant payment,LS15 8ZB,"260,674.15",Yes
"Housing, Communities & Local Government",MHCLG,12/07/2021,ERDF Work in Progress � Capital,Stronger Places,UNIVERSITY OF HULL,,Large,,,7700009174,,ERDF grant payment,HU6 7RX,"38,175.07",Yes
"Housing, Communities & Local Government",MHCLG,12/07/2021,ERDF Work in Progress � Resource,Stronger Places,KINGSTON UPON HULL CITY COUNCIL,,Large,,,7700009175,,ERDF grant payment,HU1 2AA,"250,782.14",Yes
"Housing, Communities & Local Government",MHCLG,12/07/2021,ERDF Work in Progress � Resource,Stronger Places,UNIVERSITY OF HULL,,Large,,,7700009174,,ERDF grant payment,HU6 7RX,"216,937.46",Yes
"Housing, Communities & Local Government",MHCLG,12/07/2021,EXP � PURCHASE OF GOODS /SERVICES R & D,Stronger Places,DELTAPOLL LTD,,Micro,,,5106273308,Research,Windrush Day research,SE1 9PD,"2,100.00",
"Housing, Communities & Local Government",MHCLG,12/07/2021,Grant in Aid to NDPBs (non budget),Housing & Planning,HOMES ENGLAND,,Public Bodies,,215576860,2100309979,,Homes England July 2021 Grant in Aid payment,NE11 0NA,"150,350,693.00",Yes
"Housing, Communities & Local Government",MHCLG,12/07/2021,"IT - PC, Network & Hardware",CFO and Corporate,ALEXANDER MANN SOLUTIONS LTD,,Large,,,5106273275,Contingent Labour,Contingent Labour,EC2N 3AQ,"4,311.48",
"Housing, Communities & Local Government",MHCLG,12/07/2021,"IT - PC, Network & Hardware",CFO and Corporate,ALEXANDER MANN SOLUTIONS LTD,,Large,,,5106273279,Contingent Labour,Contingent Labour,EC2N 3AQ,"4,619.52",
"Housing, Communities & Local Government",MHCLG,12/07/2021,"IT - PC, Network & Hardware",CFO and Corporate,DCLG GOVERNMENT PROCUREMENT CARD,,,,,1000004975,ICT Hardware,Purchase of new pass printer,TN37 7GA,838.80,
"Housing, Communities & Local Government",MHCLG,12/07/2021,IT - Service Contracts,CFO and Corporate,VODAFONE BUSINESS SOLUTIONS,,Large,,397467572,2100309980,Managed / Outsourced Services,Mobile Phone costs,RG14 5FF,288.97,
"Housing, Communities & Local Government",MHCLG,12/07/2021,IT - Service Contracts,Local Government Strategy and Analysis,RISUAL LIMITED,,Medium,,,5106273261,Software,Cloud Platforming Services,ST18 0WP,"1,297.72",
"Housing, Communities & Local Government",MHCLG,12/07/2021,Legal Fees,Housing & Planning,LANDMARK CHAMBERS,,Medium,,732521732,5106273235,Legal,Legal Advice,EC4A 2HG,864.00,
"Housing, Communities & Local Government",MHCLG,12/07/2021,Physical Storage,CFO and Corporate,RESTORE PLC,,Large,,,5106273260,Warehousing and Storage,Storage Costs,RH1 3DY,"20,715.92",
"Housing, Communities & Local Government",MHCLG,12/07/2021,Provision Utilisation Other,Safer and Greener Buildings,ALEXANDER MANN SOLUTIONS LTD,,Large,,,5106273271,Contingent Labour,Contingent Labour,EC2N 3AQ,"1,478.21",
"Housing, Communities & Local Government",MHCLG,12/07/2021,Recruitment,CFO and Corporate,ALEXANDER MANN SOLUTIONS LTD,,Large,,,5106273270,Contingent Labour,Contingent Labour,EC2N 3AQ,"1,512.14",
"Housing, Communities & Local Government",MHCLG,12/07/2021,Recruitment,CFO and Corporate,ALEXANDER MANN SOLUTIONS LTD,,Large,,,5106273273,Contingent Labour,Contingent Labour,EC2N 3AQ,995.22,
"Housing, Communities & Local Government",MHCLG,12/07/2021,Repayments of Private Sect Grant (Cap),Stronger Places,EBAC LIMITED,,,,,2300003257,,RGF Grant Recovery 1689c Grant Recovery July 2021,DL5 6SQ,"-48,185.88",
"Housing, Communities & Local Government",MHCLG,12/07/2021,Steady State Service Provision,CFO and Corporate,ALEXANDER MANN SOLUTIONS LTD,,Large,,,5106273280,Contingent Labour,Contingent Labour,EC2N 3AQ,"3,695.58",
"Housing, Communities & Local Government",MHCLG,12/07/2021,Steady State Service Provision,CFO and Corporate,CABINET OFFICE,,Public Bodies,,232159186,5106273304,Business Process Outsourcing Services,Reimbursement of People Survey 2020 cost,FY1 9JN,"9,460.56",
"Housing, Communities & Local Government",MHCLG,12/07/2021,Training,Local Government Strategy and Analysis,LSR TRAINING AND DEVELOPMENT LTD,,Micro,,,5106273297,Development and Training,Civil Service Training,YO42 4RE,740.00,
"Housing, Communities & Local Government",MHCLG,12/07/2021,Vehicle hire,CFO and Corporate,EDENRED (UK GROUP) LTD,,Large,,210186342,5106273312,Vehicle Hire and Lease,Cycle To Work 21/22,SW1V 2RS,"2,639.44",
"Housing, Communities & Local Government",MHCLG,12/07/2021,Web Services,Stronger Places,CONNECT INTERNET SOLUTIONS LTD,,Medium,,424367295,5106273314,ICT Services,Home Ownership Support,L2 6SG,630.00,
"Housing, Communities & Local Government",MHCLG,13/07/2021,Cap Grants to Local Authorities (DEL),Housing & Planning,GREATER LONDON AUTHORITY,,Large,,225353416,2100309959,,Grant Payable to Housing Infrastructure Programme,SE10 1AP,"4,086,000.00",Yes
"Housing, Communities & Local Government",MHCLG,13/07/2021,Cap Grants to Local Authorities (DEL),Safer and Greener Buildings,HOMES ENGLAND,,Public Bodies,,215576860,2100309995,,Private Sector Cladding Fund (PSCRF) CDEL,NE11 0NA,"7,673,707.70",Yes
"Housing, Communities & Local Government",MHCLG,13/07/2021,Cap Grants to Local Authorities (DEL),Safer and Greener Buildings,HOMES ENGLAND,,Public Bodies,,215576860,2100309998,,Private Sector Building Safety Fund CDEL,NE11 0NA,"20,257,511.60",Yes
"Housing, Communities & Local Government",MHCLG,13/07/2021,ERDF Work in Progress � Resource,Stronger Places,COVENTRY CITY COUNCIL,,Large,,,7700009177,,ERDF grant payment,CV1 2GN,"8,419.46",Yes
"Housing, Communities & Local Government",MHCLG,13/07/2021,ERDF Work in Progress � Resource,Stronger Places,DURHAM UNIVERSITY,,Large,,,7700009188,,ERDF grant payment,DH1 3LE,"20,559.23",Yes
"Housing, Communities & Local Government",MHCLG,13/07/2021,ERDF Work in Progress � Resource,Stronger Places,GREATER B'HAM&SOLIHULL LEP LTD,,,,,7700009194,,ERDF grant payment,B1 2ND,"674,176.89",Yes
"Housing, Communities & Local Government",MHCLG,13/07/2021,ERDF Work in Progress � Resource,Stronger Places,GWE BUSINESS WEST LTD,,,,,7700009182,,ERDF grant payment,BS8 3RA,"67,534.60",Yes
"Housing, Communities & Local Government",MHCLG,13/07/2021,ERDF Work in Progress � Resource,Stronger Places,GWE BUSINESS WEST LTD,,,,,7700009189,,ERDF grant payment,BS8 3RA,"61,599.17",Yes
"Housing, Communities & Local Government",MHCLG,13/07/2021,ERDF Work in Progress � Resource,Stronger Places,KINGSTON UPON HULL CITY COUNCIL,,Large,,,7700009187,,ERDF grant payment,HU1 2AA,"119,191.67",Yes
"Housing, Communities & Local Government",MHCLG,13/07/2021,ERDF Work in Progress � Resource,Stronger Places,KINGSTON UPON HULL CITY COUNCIL,,Large,,,7700009191,,ERDF grant payment,HU1 2AA,"166,800.70",Yes
"Housing, Communities & Local Government",MHCLG,13/07/2021,ERDF Work in Progress � Resource,Stronger Places,LANCASTER UNIVERISTY,,,,,7700009195,,ERDF grant payment,LA1 4YW,"71,917.94",Yes
"Housing, Communities & Local Government",MHCLG,13/07/2021,ERDF Work in Progress � Resource,Stronger Places,OXFORD INNOVATION SERVICES LTD,,Medium,,,7700009181,,ERDF grant payment,OX1 1BY,"61,213.71",Yes
"Housing, Communities & Local Government",MHCLG,13/07/2021,ERDF Work in Progress � Resource,Stronger Places,OXFORD INNOVATION SERVICES LTD,,Medium,,,7700009183,,ERDF grant offset,OX1 1BY,"-1,552.41",Yes
"Housing, Communities & Local Government",MHCLG,13/07/2021,ERDF Work in Progress � Resource,Stronger Places,OXFORD INNOVATION SERVICES LTD,,Medium,,,7700009184,,ERDF grant payment,OX1 1BY,"61,042.00",Yes
"Housing, Communities & Local Government",MHCLG,13/07/2021,ERDF Work in Progress � Resource,Stronger Places,OXFORD INNOVATION SERVICES LTD,,Medium,,,7700009193,,ERDF grant payment,OX1 1BY,"220,721.19",Yes
"Housing, Communities & Local Government",MHCLG,13/07/2021,ERDF Work in Progress � Resource,Stronger Places,SHEFFIELD CITY CNCL,,,,,7700009180,,ERDF grant payment,S1 2BQ,"86,954.48",Yes
"Housing, Communities & Local Government",MHCLG,13/07/2021,ERDF Work in Progress � Resource,Stronger Places,SHEFFIELD HALLAM UNIVERSITY,,,,,7700009179,,ERDF grant payment,S1 1WB,"16,495.19",Yes
"Housing, Communities & Local Government",MHCLG,13/07/2021,ERDF Work in Progress � Resource,Stronger Places,UNI OF NORTHUMBRIA NEWCASTLE,,Large,,,7700009178,,ERDF grant payment,NE 8ST,"27,662.69",Yes
"Housing, Communities & Local Government",MHCLG,13/07/2021,ERDF Work in Progress � Resource,Stronger Places,UNIVERSITY OF BATH,,,,,7700009185,,ERDF grant payment,BA 7AY,"32,951.92",Yes
"Housing, Communities & Local Government",MHCLG,13/07/2021,ERDF Work in Progress � Resource,Stronger Places,UNIVERSITY OF BATH,,,,,7700009192,,ERDF grant payment,BA 7AY,"110,647.81",Yes
"Housing, Communities & Local Government",MHCLG,13/07/2021,ERDF Work in Progress � Resource,Stronger Places,University of Leicester,,,,,7700009190,,ERDF grant payment,LE1 7RH,"96,722.33",Yes
"Housing, Communities & Local Government",MHCLG,13/07/2021,EXP � PURCHASE OF GOODS /SERVICES R & D,Local Government Strategy and Analysis,LOCAL DATA COMPANY LTD,,Small,,,5106273305,Research,Research - Retail Health Index,W6 7AF,"2,480.00",
"Housing, Communities & Local Government",MHCLG,13/07/2021,EXP � PURCHASE OF GOODS /SERVICES R & D,Safer and Greener Buildings,OFR CONSULTANTS LTD,,Medium,,,5106272060,Research,Classification of External Wall Systems,M1 1JA,"64,824.00",
"Housing, Communities & Local Government",MHCLG,13/07/2021,"IT - PC, Network & Hardware",CFO and Corporate,DCLG GOVERNMENT PROCUREMENT CARD,,,,,1000004978,ICT Hardware,Google GSuite accounts,TN37 7GA,544.94,
"Housing, Communities & Local Government",MHCLG,13/07/2021,"IT - PC, Network & Hardware",CFO and Corporate,STORM TECHNOLOGIES LTD,,Medium,,519916048,5106273354,ICT Hardware,3J2-00002 - MS Wired Desktop 600,WD18 8YW,"4,014.00",
"Housing, Communities & Local Government",MHCLG,13/07/2021,"IT - PC, Network & Hardware",CFO and Corporate,STORM TECHNOLOGIES LTD,,Medium,,519916048,5106273354,ICT Hardware,Delivery,WD18 8YW,5.94,
"Housing, Communities & Local Government",MHCLG,13/07/2021,IT - Service Contracts,CFO and Corporate,FUTUREGOV LTD,,Medium,,,5106273339,IT Managed / Outsourced Services,Additional funding for Funding Service Design Alpha,SE1 9RG,"23,864.00",
"Housing, Communities & Local Government",MHCLG,13/07/2021,IT - Service Contracts,CFO and Corporate,X M A LTD,,Large,,298484148,5106273342,IT Managed / Outsourced Services,Hardware Supp Services 2020/21,NG11 7EP,427.20,
"Housing, Communities & Local Government",MHCLG,13/07/2021,IT - Service Contracts,CFO and Corporate,X M A LTD,,Large,,298484148,5106273343,IT Managed / Outsourced Services,Hardware Supp Services 2020/21,NG11 7EP,427.20,
"Housing, Communities & Local Government",MHCLG,13/07/2021,IT - Service Contracts,CFO and Corporate,X M A LTD,,Large,,298484148,5106273344,IT Managed / Outsourced Services,Hardware Supp Services 2020/21,NG11 7EP,427.20,
"Housing, Communities & Local Government",MHCLG,13/07/2021,IT - Service Contracts,CFO and Corporate,X M A LTD,,Large,,298484148,5106273345,IT Managed / Outsourced Services,Hardware Supp Services 2020/21,NG11 7EP,427.20,
"Housing, Communities & Local Government",MHCLG,13/07/2021,IT - Service Contracts,CFO and Corporate,X M A LTD,,Large,,298484148,5106273346,IT Managed / Outsourced Services,Hardware Supp Services 2020/21,NG11 7EP,427.20,
"Housing, Communities & Local Government",MHCLG,13/07/2021,Legal Fees,Housing & Planning,WALKER MORRIS LLP,,Large,,211317885,5106273324,Legal,Legal Advice,LS1 4DL,370.00,
"Housing, Communities & Local Government",MHCLG,13/07/2021,Legal Fees,Housing & Planning,WALKER MORRIS LLP,,Large,,211317885,5106273324,Legal,Legal Advice,LS1 4DL,"1,260.00",
"Housing, Communities & Local Government",MHCLG,13/07/2021,Management Consultancy,Local Government Strategy and Analysis,UP PROJECTS,,Micro,,,5106273338,Consultancy,Windrush Monument,N4 3JP,"4,800.00",
"Housing, Communities & Local Government",MHCLG,13/07/2021,Management Consultancy,Safer and Greener Buildings,SLAUGHTER & MAY,,Large,,225772961,5106273349,Technical Services,Grenfell project support costs,EC1Y 8YY,"99,007.56",
"Housing, Communities & Local Government",MHCLG,13/07/2021,Management Consultancy,Safer and Greener Buildings,SLAUGHTER & MAY,,Large,,225772961,5106273350,Technical Services,Grenfell project support costs,EC1Y 8YY,"75,992.64",
"Housing, Communities & Local Government",MHCLG,13/07/2021,Mobile phone costs,CFO and Corporate,GAMMA TELECOM LTD,,Large,,,5106273353,Telecoms,Mobile Telephony 1 year extension,EC4M 7RD,"10,440.88",
"Housing, Communities & Local Government",MHCLG,13/07/2021,Mobile phone costs,CFO and Corporate,GAMMA TELECOM LTD,,Large,,,5106273353,Telecoms,Running costs Non-VAT,EC4M 7RD,90.00,
"Housing, Communities & Local Government",MHCLG,13/07/2021,Steady State Service Provision,Stronger Places,MANCHESTER METROPOLITAN UNIV,,Large,,,5106273348,Business Process Outsourcing Services,Creation of High Streets Task Force,M15 6BH,"606,405.36",
"Housing, Communities & Local Government",MHCLG,13/07/2021,Support services,CFO and Corporate,OVE ARUP & PARTNERS,,Large,,221940898,5106273351,Financial,Extension to Towns Fund Delivery Partner,W1T 4BJ,"584,777.07",
"Housing, Communities & Local Government",MHCLG,13/07/2021,Training,CFO and Corporate,KNOWLEDGEPOOL GROUP LIMITED,,Medium,,737096441,5106273347,Development and Training,Civil Service Training,RG1 8LS,"1,218.42",
"Housing, Communities & Local Government",MHCLG,14/07/2021,Current (non AEF) Grants to Local Authorities,Stronger Places,NOTTINGHAM CITY COUNCIL,,,,214495447,2100310047,,LRF Funding Pilot,NG2 3NG,"200,097.00",Yes
"Housing, Communities & Local Government",MHCLG,14/07/2021,Current Grants to Non Profit Bodies,Local Government Strategy and Analysis,BIG IDEAS COMM INTEREST COMP,,Micro,,,2100310046,,Holocaust Awareness Raising,N19 4DR,"5,613.00",Yes
"Housing, Communities & Local Government",MHCLG,14/07/2021,ERDF Work in Progress � Capital,Stronger Places,SLOUGH BOROUGH COUNCIL,,,,,7700009196,,ERDF grant payment,SL1 2EL,"7,322.28",Yes
"Housing, Communities & Local Government",MHCLG,14/07/2021,ERDF Work in Progress � Capital,Stronger Places,SLOUGH BOROUGH COUNCIL,,,,,7700009205,,ERDF grant payment,SL1 2EL,"5,373.84",Yes
"Housing, Communities & Local Government",MHCLG,14/07/2021,ERDF Work in Progress � Resource,Stronger Places,ACCESS TO BUSINESS,Yes,Small,,,7700009198,,ERDF grant payment,WV2 1AA,"63,445.33",Yes
"Housing, Communities & Local Government",MHCLG,14/07/2021,ERDF Work in Progress � Resource,Stronger Places,ADVANCE NORTHUMBERLAND COMMERCIAL L,,,,,7700009202,,ERDF grant payment,NE63 9JZ,"11,693.55",Yes
"Housing, Communities & Local Government",MHCLG,14/07/2021,ERDF Work in Progress � Resource,Stronger Places,BUSINESS SUPPORT SOLUTIONS,,Small,,,7700009203,,ERDF grant payment,M1 5JW,"130,610.68",Yes
"Housing, Communities & Local Government",MHCLG,14/07/2021,ERDF Work in Progress � Resource,Stronger Places,CUMBRIA CHAMBER OF COMMERCE,,Small,,,7700009197,,ERDF grant payment,CA3 8DA,"15,434.60",Yes
"Housing, Communities & Local Government",MHCLG,14/07/2021,ERDF Work in Progress � Resource,Stronger Places,CUMBRIA CHAMBER OF COMMERCE,,Small,,,7700009206,,ERDF grant payment,CA3 8DA,"41,014.52",Yes
"Housing, Communities & Local Government",MHCLG,14/07/2021,ERDF Work in Progress � Resource,Stronger Places,ENFIELD ENTERPRISE AGENCY,,,,,7700009199,,ERDF grant payment,EN3 5JH,"28,675.60",Yes
"Housing, Communities & Local Government",MHCLG,14/07/2021,ERDF Work in Progress � Resource,Stronger Places,PORTSMOUTH HIGHER EDUCATION CORPORA,,Large,,,7700009200,,ERDF grant payment,PO1 2UP,"376,015.38",Yes
"Housing, Communities & Local Government",MHCLG,14/07/2021,ERDF Work in Progress � Resource,Stronger Places,SLOUGH BOROUGH COUNCIL,,,,,7700009196,,ERDF grant payment,SL1 2EL,"1,490.93",Yes
"Housing, Communities & Local Government",MHCLG,14/07/2021,ERDF Work in Progress � Resource,Stronger Places,SLOUGH BOROUGH COUNCIL,,,,,7700009201,,ERDF grant payment,SL1 2EL,"2,812.36",Yes
"Housing, Communities & Local Government",MHCLG,14/07/2021,ERDF Work in Progress � Resource,Stronger Places,SLOUGH BOROUGH COUNCIL,,,,,7700009204,,ERDF grant payment,SL1 2EL,"1,191.10",Yes
"Housing, Communities & Local Government",MHCLG,14/07/2021,ERDF Work in Progress � Resource,Stronger Places,SLOUGH BOROUGH COUNCIL,,,,,7700009205,,ERDF grant payment,SL1 2EL,"2,512.15",Yes
"Housing, Communities & Local Government",MHCLG,14/07/2021,ERDF Work in Progress � Resource,Stronger Places,SLOUGH BOROUGH COUNCIL,,,,,7700009207,,ERDF grant payment,SL1 2EL,"2,317.54",Yes
"Housing, Communities & Local Government",MHCLG,14/07/2021,ERDF Work in Progress � Resource,Stronger Places,SLOUGH BOROUGH COUNCIL,,,,,7700009208,,ERDF grant payment,SL1 2EL,"2,348.51",Yes
"Housing, Communities & Local Government",MHCLG,14/07/2021,ERDF Work in Progress � Resource,Stronger Places,SLOUGH BOROUGH COUNCIL,,,,,7700009209,,ERDF grant payment,SL1 2EL,"3,998.66",Yes
"Housing, Communities & Local Government",MHCLG,14/07/2021,EXP � PURCHASE OF GOODS /SERVICES R & D,Safer and Greener Buildings,ADROIT ECONOMICS LTD,,Micro,,347660925,5106273298,Social and Economic Research,Economic Analysis on Building safety,WA15 9RE,"41,555.11",
"Housing, Communities & Local Government",MHCLG,14/07/2021,"Furniture, Fittings and carpets",CFO and Corporate,21st CENTURY OFFICE CONCEPTS LTD,,Small,,,5106273374,"Furniture, Fixtures and Fittings",CV-19 Home Working Requirements Ext 6,SG12 0SS,"3,454.32",
"Housing, Communities & Local Government",MHCLG,14/07/2021,IT - Service Contracts,CFO and Corporate,ARCUS CLOUD SERVICES LTD,,Medium,,,5106273182,IT Managed / Outsourced Services,Datamart/MCIS/TESA AWS Hosting,NG24 2AG,"10,463.01",
"Housing, Communities & Local Government",MHCLG,14/07/2021,IT - Service Contracts,CFO and Corporate,ARCUS CLOUD SERVICES LTD,,Medium,,,5106273185,IT Managed / Outsourced Services,Datamart/MCIS/TESA AWS Hosting,NG24 2AG,"21,377.50",
"Housing, Communities & Local Government",MHCLG,14/07/2021,IT - Service Contracts,CFO and Corporate,ARCUS CLOUD SERVICES LTD,,Medium,,,5106273370,IT Managed / Outsourced Services,Datamart/MCIS/TESA AWS Hosting,NG24 2AG,"67,160.96",
"Housing, Communities & Local Government",MHCLG,14/07/2021,IT - Service Contracts,Safer and Greener Buildings,MADE TECH LTD,,Medium,,,5106273186,IT Managed / Outsourced Services,EPBR Continuous Development,EC2A 4NE,"44,285.00",
"Housing, Communities & Local Government",MHCLG,14/07/2021,Loans Impairment Private Sector Company,Housing & Planning,Yonder Consulting Ltd,,Medium,,,5106273116,Research,Survey polling on impact of the pandemic on renters,EC1V 0AT,"4,534.00",
"Housing, Communities & Local Government",MHCLG,14/07/2021,Professional services,CFO and Corporate,BOUYGUES E&S FM UK LTD (CATERING),,Large,,,5106273378,Business Support,2MS Reprographics,SE1 7EU,"2,991.36",
"Housing, Communities & Local Government",MHCLG,14/07/2021,Professional services,CFO and Corporate,BOUYGUES E&S FM UK LTD (CATERING),,Large,,,5106273379,Business Support,2MS Reprographics,SE1 7EU,"1,081.28",
"Housing, Communities & Local Government",MHCLG,14/07/2021,Professional services,CFO and Corporate,GOVERNMENT PROPERTY AGENCY,,Medium,,,5106273388,Business Support,Manchester Office vat charges,B2 5LS,495.08,
"Housing, Communities & Local Government",MHCLG,14/07/2021,Professional services,Housing & Planning,CEL GROUP,,Medium,,394794614,5106273296,Technical Services,Home Improvement Agencies 2020-2021,WA2 0YL,"80,024.90",
"Housing, Communities & Local Government",MHCLG,14/07/2021,Professional services,Stronger Places,Built Environment Comms Group,,,,,5106273081,Consultancy,Oxford Cambridge Arc Corporations Engagement ,EC4N 8BJ,"10,012.50",
"Housing, Communities & Local Government",MHCLG,14/07/2021,Professional services,Stronger Places,Built Environment Comms Group,,,,,5106273083,Consultancy,Oxford Cambridge Arc Corporations Engagement ,EC4N 8BJ,"7,980.00",
"Housing, Communities & Local Government",MHCLG,14/07/2021,Publications,Local Government Strategy and Analysis,JONES YARRELL LEADENHALL LTD,,Large,,505670265,5106273219,Learning and Development Materials,SoS Newspaper Subscriptions 20/21,E3 3JH,256.60,
"Housing, Communities & Local Government",MHCLG,14/07/2021,Purchase of Consultancy Services,CFO and Corporate,GOVERNMENT PROPERTY AGENCY,,Medium,,,5106273394,Business Support,TQ FM,B2 5LS,"38,043.00",
"Housing, Communities & Local Government",MHCLG,14/07/2021,Rates,CFO and Corporate,GOVERNMENT PROPERTY AGENCY,,Medium,,,5106273395,Business Support,St Philips Place FM,B2 5LS,"31,681.33",
"Housing, Communities & Local Government",MHCLG,14/07/2021,Rent,CFO and Corporate,GOVERNMENT PROPERTY AGENCY,,Medium,,,5106273386,Business Support,St Phillips Place,B2 5LS,"-62,301.87",
"Housing, Communities & Local Government",MHCLG,14/07/2021,Rent,CFO and Corporate,GOVERNMENT PROPERTY AGENCY,,Medium,,,5106273387,Business Support,St Philips Place Rent,B2 5LS,"5,462.08",
"Housing, Communities & Local Government",MHCLG,14/07/2021,Rent,CFO and Corporate,GOVERNMENT PROPERTY AGENCY,,Medium,,,5106273390,Business Support,Piccadilly Gate  Rent,B2 5LS,"3,176.25",
"Housing, Communities & Local Government",MHCLG,14/07/2021,Rent,CFO and Corporate,GOVERNMENT PROPERTY AGENCY,,Medium,,,5106273393,Business Support,Lateral Rent,B2 5LS,"9,090.14",
"Housing, Communities & Local Government",MHCLG,14/07/2021,Rent,CFO and Corporate,GOVERNMENT PROPERTY AGENCY,,Medium,,,5106273394,Business Support,TQ Rent,B2 5LS,"13,385.18",
"Housing, Communities & Local Government",MHCLG,14/07/2021,Rent,CFO and Corporate,GOVERNMENT PROPERTY AGENCY,,Medium,,,5106273395,Business Support,St Philips Place Rent,B2 5LS,"17,670.46",
"Housing, Communities & Local Government",MHCLG,14/07/2021,Rent,CFO and Corporate,GOVERNMENT PROPERTY AGENCY,,Medium,,,5106273396,Business Support,Citygate Rent,B2 5LS,"24,293.50",
"Housing, Communities & Local Government",MHCLG,14/07/2021,Software Licences,CFO and Corporate,PHOENIX SOFTWARE LTD,,Large,,,5106273302,IT Managed / Outsourced Services,Microsoft Unified Support renewal for th,YO42 1NS,"255,578.64",
"Housing, Communities & Local Government",MHCLG,14/07/2021,Steady State Service Provision,CFO and Corporate,CABINET OFFICE,,Public Bodies,,232159186,5106273381,Business Process Outsourcing Services,Reimbursement of People Survey 2020 cost,FY1 9JN,"5,921.92",
"Housing, Communities & Local Government",MHCLG,14/07/2021,Steady State Service Provision,CFO and Corporate,GOVERNMENT PROPERTY AGENCY,,Medium,,,5106273380,Business Support,St Philips Place Mangement Charge,B2 5LS,"2,674.44",
"Housing, Communities & Local Government",MHCLG,14/07/2021,Steady State Service Provision,CFO and Corporate,GOVERNMENT PROPERTY AGENCY,,Medium,,,5106273389,Business Support,Pccadilly Gate Mngmnt Charge,B2 5LS,"2,144.20",
"Housing, Communities & Local Government",MHCLG,14/07/2021,Steady State Service Provision,CFO and Corporate,GOVERNMENT PROPERTY AGENCY,,Medium,,,5106273390,Business Support,Piccadilly Gate FM,B2 5LS,966.25,
"Housing, Communities & Local Government",MHCLG,14/07/2021,Steady State Service Provision,CFO and Corporate,GOVERNMENT PROPERTY AGENCY,,Medium,,,5106273392,Business Support,St Philips Place Mangement Charge,B2 5LS,"2,674.44",
"Housing, Communities & Local Government",MHCLG,14/07/2021,Steady State Service Provision,CFO and Corporate,GOVERNMENT PROPERTY AGENCY,,Medium,,,5106273393,Business Support,Lateral Managment charge,B2 5LS,"3,276.75",
"Housing, Communities & Local Government",MHCLG,14/07/2021,Steady State Service Provision,CFO and Corporate,GOVERNMENT PROPERTY AGENCY,,Medium,,,5106273394,Business Support,TQ Management Charge,B2 5LS,"7,093.34",
"Housing, Communities & Local Government",MHCLG,14/07/2021,Steady State Service Provision,CFO and Corporate,GOVERNMENT PROPERTY AGENCY,,Medium,,,5106273395,Business Support,St Philips Place Mangement Charge,B2 5LS,"3,276.75",
"Housing, Communities & Local Government",MHCLG,14/07/2021,Steady State Service Provision,CFO and Corporate,GOVERNMENT PROPERTY AGENCY,,Medium,,,5106273396,Business Support,Citygate FM,B2 5LS,"10,025.06",
"Housing, Communities & Local Government",MHCLG,14/07/2021,Steady State Service Provision,CFO and Corporate,GOVERNMENT PROPERTY AGENCY,,Medium,,,5106273396,Business Support,Citygate Managment Charge,B2 5LS,"4,893.15",
"Housing, Communities & Local Government",MHCLG,14/07/2021,Training,CFO and Corporate,GOVNET COMMUNICATIONS,,Medium,,737114855,5106273369,Development and Training,Civil Service Training,M1 6PP,"4,750.00",
"Housing, Communities & Local Government",MHCLG,14/07/2021,Training,Housing & Planning,DODS GROUP LTD,,Large,,290673748,5106273383,Development and Training,Civil Service Training,SE1 9SG,"1,450.00",
"Housing, Communities & Local Government",MHCLG,14/07/2021,Utilisation of Provi - Cap Grant to LA,Safer and Greener Buildings,DERISK (UK) LTD,,Small,,220390649,5106273382,Consultancy,Appointment of Principal Designer,WC2N 6DU,"7,459.99",
"Housing, Communities & Local Government",MHCLG,14/07/2021,Utilisation of Provi - Cap Grant to LA,Safer and Greener Buildings,GRC Maintenance Ltd,,Small,,733002302,5106273357,Environmental Services,GRC is for Site Storage.,EN8 9BH,"9,696.00",
"Housing, Communities & Local Government",MHCLG,14/07/2021,Utilisation of Provi - Cap Grant to LA,Safer and Greener Buildings,WATES PROPERTY SERVICES LTD,,Large,,,5106273391,Consultancy,Specialist Contractors for Grenfell,EN1 3XA,"614,931.43",
"Housing, Communities & Local Government",MHCLG,15/07/2021,Current (non AEF) Grants to Local Authorities,Local Government Strategy and Analysis,ADUR DC,,,,227472891,3700107210,,Grant payable by the Exchequer,BN11 1HA,"515,450.00",Yes
"Housing, Communities & Local Government",MHCLG,15/07/2021,Current (non AEF) Grants to Local Authorities,Local Government Strategy and Analysis,ADUR DC,,,,227472891,3700107284,,Grant payable by the Exchequer,BN11 1HA,"10,022.00",Yes
"Housing, Communities & Local Government",MHCLG,15/07/2021,Current (non AEF) Grants to Local Authorities,Local Government Strategy and Analysis,ADUR DC,,,,227472891,3700108177,,Grant payable by the Exchequer,BN11 1HA,"58,623.00",Yes
"Housing, Communities & Local Government",MHCLG,15/07/2021,Current (non AEF) Grants to Local Authorities,Local Government Strategy and Analysis,ADUR DC,,,,227472891,3700108385,,Grant payable by the Exchequer,BN11 1HA,"3,132.00",Yes
"Housing, Communities & Local Government",MHCLG,15/07/2021,Current (non AEF) Grants to Local Authorities,Local Government Strategy and Analysis,ADUR DC,,,,227472891,3700109239,,Grant payable by the Exchequer,BN11 1HA,562.00,Yes
"Housing, Communities & Local Government",MHCLG,15/07/2021,Current (non AEF) Grants to Local Authorities,Local Government Strategy and Analysis,ALLERDALE BOROUGH COUNCIL,,,,230824120,3700107843,,Grant payable by the Exchequer,CA14 3YJ,"904,362.00",Yes
"Housing, Communities & Local Government",MHCLG,15/07/2021,Current (non AEF) Grants to Local Authorities,Local Government Strategy and Analysis,ALLERDALE BOROUGH COUNCIL,,,,230824120,3700108045,,Grant payable by the Exchequer,CA14 3YJ,"135,690.00",Yes
"Housing, Communities & Local Government",MHCLG,15/07/2021,Current (non AEF) Grants to Local Authorities,Local Government Strategy and Analysis,ALLERDALE BOROUGH COUNCIL,,,,230824120,3700108540,,Grant payable by the Exchequer,CA14 3YJ,"1,362.00",Yes
"Housing, Communities & Local Government",MHCLG,15/07/2021,Current (non AEF) Grants to Local Authorities,Local Government Strategy and Analysis,ALLERDALE BOROUGH COUNCIL,,,,230824120,3700108928,,Grant payable by the Exchequer,CA14 3YJ,631.00,Yes
"Housing, Communities & Local Government",MHCLG,15/07/2021,Current (non AEF) Grants to Local Authorities,Local Government Strategy and Analysis,ALLERDALE BOROUGH COUNCIL,,,,230824120,3700109129,,Grant payable by the Exchequer,CA14 3YJ,"20,756.00",Yes
"Housing, Communities & Local Government",MHCLG,15/07/2021,Current (non AEF) Grants to Local Authorities,Local Government Strategy and Analysis,ALLERDALE BOROUGH COUNCIL,,,,230824120,3700109255,,Grant payable by the Exchequer,CA14 3YJ,"5,980.00",Yes
"Housing, Communities & Local Government",MHCLG,15/07/2021,Current (non AEF) Grants to Local Authorities,Local Government Strategy and Analysis,ALLERDALE BOROUGH COUNCIL,,,,230824120,3700109395,,Grant payable by the Exchequer,CA14 3YJ,809.00,Yes
"Housing, Communities & Local Government",MHCLG,15/07/2021,Current (non AEF) Grants to Local Authorities,Local Government Strategy and Analysis,AMBER VALLEY BC,,,,,3700107452,,Grant payable by the Exchequer,DE5 3BT,475.00,Yes
"Housing, Communities & Local Government",MHCLG,15/07/2021,Current (non AEF) Grants to Local Authorities,Local Government Strategy and Analysis,AMBER VALLEY BC,,,,,3700107888,,Grant payable by the Exchequer,DE5 3BT,"634,891.00",Yes
"Housing, Communities & Local Government",MHCLG,15/07/2021,Current (non AEF) Grants to Local Authorities,Local Government Strategy and Analysis,AMBER VALLEY BC,,,,,3700108417,,Grant payable by the Exchequer,DE5 3BT,"13,620.00",Yes
"Housing, Communities & Local Government",MHCLG,15/07/2021,Current (non AEF) Grants to Local Authorities,Local Government Strategy and Analysis,AMBER VALLEY BC,,,,,3700108769,,Grant payable by the Exchequer,DE5 3BT,"5,779.00",Yes
"Housing, Communities & Local Government",MHCLG,15/07/2021,Current (non AEF) Grants to Local Authorities,Local Government Strategy and Analysis,AMBER VALLEY BC,,,,,3700109111,,Grant payable by the Exchequer,DE5 3BT,"1,209.00",Yes
"Housing, Communities & Local Government",MHCLG,15/07/2021,Current (non AEF) Grants to Local Authorities,Local Government Strategy and Analysis,AMBER VALLEY BC,,,,,3700109712,,Grant payable by the Exchequer,DE5 3BT,"120,952.00",Yes
"Housing, Communities & Local Government",MHCLG,15/07/2021,Current (non AEF) Grants to Local Authorities,Local Government Strategy and Analysis,ARUN DC,,,,211217668,3700107192,,Grant payable by the Exchequer,BN17 5LF,"1,287,242.00",Yes
"Housing, Communities & Local Government",MHCLG,15/07/2021,Current (non AEF) Grants to Local Authorities,Local Government Strategy and Analysis,ARUN DC,,,,211217668,3700107495,,Grant payable by the Exchequer,BN17 5LF,"142,154.00",Yes
"Housing, Communities & Local Government",MHCLG,15/07/2021,Current (non AEF) Grants to Local Authorities,Local Government Strategy and Analysis,ARUN DC,,,,211217668,3700108382,,Grant payable by the Exchequer,BN17 5LF,409.00,Yes
"Housing, Communities & Local Government",MHCLG,15/07/2021,Current (non AEF) Grants to Local Authorities,Local Government Strategy and Analysis,ARUN DC,,,,211217668,3700108908,,Grant payable by the Exchequer,BN17 5LF,"26,527.00",Yes
"Housing, Communities & Local Government",MHCLG,15/07/2021,Current (non AEF) Grants to Local Authorities,Local Government Strategy and Analysis,ARUN DC,,,,211217668,3700109391,,Grant payable by the Exchequer,BN17 5LF,"7,232.00",Yes
"Housing, Communities & Local Government",MHCLG,15/07/2021,Current (non AEF) Grants to Local Authorities,Local Government Strategy and Analysis,ARUN DC,,,,211217668,3700109413,,Grant payable by the Exchequer,BN17 5LF,"1,117.00",Yes
"Housing, Communities & Local Government",MHCLG,15/07/2021,Current (non AEF) Grants to Local Authorities,Local Government Strategy and Analysis,ASHFIELD DC,,,,235415296,3700107333,,Grant payable by the Exchequer,NG17 8DA,"548,015.00",Yes
"Housing, Communities & Local Government",MHCLG,15/07/2021,Current (non AEF) Grants to Local Authorities,Local Government Strategy and Analysis,ASHFIELD DC,,,,235415296,3700108310,,Grant payable by the Exchequer,NG17 8DA,390.00,Yes
"Housing, Communities & Local Government",MHCLG,15/07/2021,Current (non AEF) Grants to Local Authorities,Local Government Strategy and Analysis,ASHFIELD DC,,,,235415296,3700108597,,Grant payable by the Exchequer,NG17 8DA,"83,445.00",Yes
"Housing, Communities & Local Government",MHCLG,15/07/2021,Current (non AEF) Grants to Local Authorities,Local Government Strategy and Analysis,ASHFIELD DC,,,,235415296,3700108826,,Grant payable by the Exchequer,NG17 8DA,"5,091.00",Yes
"Housing, Communities & Local Government",MHCLG,15/07/2021,Current (non AEF) Grants to Local Authorities,Local Government Strategy and Analysis,ASHFIELD DC,,,,235415296,3700109367,,Grant payable by the Exchequer,NG17 8DA,"23,578.00",Yes
"Housing, Communities & Local Government",MHCLG,15/07/2021,Current (non AEF) Grants to Local Authorities,Local Government Strategy and Analysis,ASHFIELD DC,,,,235415296,3700109716,,Grant payable by the Exchequer,NG17 8DA,443.00,Yes
"Housing, Communities & Local Government",MHCLG,15/07/2021,Current (non AEF) Grants to Local Authorities,Local Government Strategy and Analysis,ASHFORD BC,,,,229467071,3700107419,,Grant payable by the Exchequer,TN23 1PL,"1,520,173.00",Yes
"Housing, Communities & Local Government",MHCLG,15/07/2021,Current (non AEF) Grants to Local Authorities,Local Government Strategy and Analysis,ASHFORD BC,,,,229467071,3700107976,,Grant payable by the Exchequer,TN23 1PL,555.00,Yes
"Housing, Communities & Local Government",MHCLG,15/07/2021,Current (non AEF) Grants to Local Authorities,Local Government Strategy and Analysis,ASHFORD BC,,,,229467071,3700108226,,Grant payable by the Exchequer,TN23 1PL,735.00,Yes
"Housing, Communities & Local Government",MHCLG,15/07/2021,Current (non AEF) Grants to Local Authorities,Local Government Strategy and Analysis,ASHFORD BC,,,,229467071,3700108501,,Grant payable by the Exchequer,TN23 1PL,"6,777.00",Yes
"Housing, Communities & Local Government",MHCLG,15/07/2021,Current (non AEF) Grants to Local Authorities,Local Government Strategy and Analysis,ASHFORD BC,,,,229467071,3700108624,,Grant payable by the Exchequer,TN23 1PL,"128,107.00",Yes
"Housing, Communities & Local Government",MHCLG,15/07/2021,Current (non AEF) Grants to Local Authorities,Local Government Strategy and Analysis,ASHFORD BC,,,,229467071,3700109005,,Grant payable by the Exchequer,TN23 1PL,"21,553.00",Yes
"Housing, Communities & Local Government",MHCLG,15/07/2021,Current (non AEF) Grants to Local Authorities,Local Government Strategy and Analysis,ASHFORD BC,,,,229467071,3700109198,,Grant payable by the Exchequer,TN23 1PL,877.00,Yes
"Housing, Communities & Local Government",MHCLG,15/07/2021,Current (non AEF) Grants to Local Authorities,Local Government Strategy and Analysis,AVON FIRE AUTHORITY,,,,424872570,3700108000,,Grant payable by the Exchequer,BS20 8JJ,"23,196.00",Yes
"Housing, Communities & Local Government",MHCLG,15/07/2021,Current (non AEF) Grants to Local Authorities,Local Government Strategy and Analysis,AVON FIRE AUTHORITY,,,,424872570,3700108528,,Grant payable by the Exchequer,BS20 8JJ,"46,788.00",Yes
"Housing, Communities & Local Government",MHCLG,15/07/2021,Current (non AEF) Grants to Local Authorities,Local Government Strategy and Analysis,AVON FIRE AUTHORITY,,,,424872570,3700108700,,Grant payable by the Exchequer,BS20 8JJ,"1,311.00",Yes
"Housing, Communities & Local Government",MHCLG,15/07/2021,Current (non AEF) Grants to Local Authorities,Local Government Strategy and Analysis,BABERGH DC,,,,232618405,3700107119,,Grant payable by the Exchequer,IP7 6SJ,"655,711.00",Yes
"Housing, Communities & Local Government",MHCLG,15/07/2021,Current (non AEF) Grants to Local Authorities,Local Government Strategy and Analysis,BABERGH DC,,,,232618405,3700108070,,Grant payable by the Exchequer,IP7 6SJ,"2,578.00",Yes
"Housing, Communities & Local Government",MHCLG,15/07/2021,Current (non AEF) Grants to Local Authorities,Local Government Strategy and Analysis,BABERGH DC,,,,232618405,3700108511,,Grant payable by the Exchequer,IP7 6SJ,"14,526.00",Yes
"Housing, Communities & Local Government",MHCLG,15/07/2021,Current (non AEF) Grants to Local Authorities,Local Government Strategy and Analysis,BABERGH DC,,,,232618405,3700108820,,Grant payable by the Exchequer,IP7 6SJ,667.00,Yes
"Housing, Communities & Local Government",MHCLG,15/07/2021,Current (non AEF) Grants to Local Authorities,Local Government Strategy and Analysis,BABERGH DC,,,,232618405,3700109200,,Grant payable by the Exchequer,IP7 6SJ,"100,850.00",Yes
"Housing, Communities & Local Government",MHCLG,15/07/2021,Current (non AEF) Grants to Local Authorities,Local Government Strategy and Analysis,BABERGH DC,,,,232618405,3700109480,,Grant payable by the Exchequer,IP7 6SJ,"4,976.00",Yes
"Housing, Communities & Local Government",MHCLG,15/07/2021,Current (non AEF) Grants to Local Authorities,Local Government Strategy and Analysis,BARKING & DAGENHAM LB,,Public Bodies,,227419488,3700107690,,Grant payable by the Exchequer,RM10 7BY,"1,123,087.00",Yes
"Housing, Communities & Local Government",MHCLG,15/07/2021,Current (non AEF) Grants to Local Authorities,Local Government Strategy and Analysis,BARKING & DAGENHAM LB,,Public Bodies,,227419488,3700107906,,Grant payable by the Exchequer,RM10 7BY,"252,169.00",Yes
"Housing, Communities & Local Government",MHCLG,15/07/2021,Current (non AEF) Grants to Local Authorities,Local Government Strategy and Analysis,BARKING & DAGENHAM LB,,Public Bodies,,227419488,3700108172,,Grant payable by the Exchequer,RM10 7BY,370.00,Yes
"Housing, Communities & Local Government",MHCLG,15/07/2021,Current (non AEF) Grants to Local Authorities,Local Government Strategy and Analysis,BARKING & DAGENHAM LB,,Public Bodies,,227419488,3700108398,,Grant payable by the Exchequer,RM10 7BY,"113,507.00",Yes
"Housing, Communities & Local Government",MHCLG,15/07/2021,Current (non AEF) Grants to Local Authorities,Local Government Strategy and Analysis,BARKING & DAGENHAM LB (HSG),,,,217142293,3700107197,,Grant payable by the Exchequer,RM10 7BY,"865,980.00",Yes
"Housing, Communities & Local Government",MHCLG,15/07/2021,Current (non AEF) Grants to Local Authorities,Local Government Strategy and Analysis,BARKING & DAGENHAM LB (HSG),,,,217142293,3700107716,,Grant payable by the Exchequer,RM10 7BY,"651,435.00",Yes
"Housing, Communities & Local Government",MHCLG,15/07/2021,Current (non AEF) Grants to Local Authorities,Local Government Strategy and Analysis,BARNET LBC,,,,211049507,3700107564,,Grant payable by the Exchequer,N11 1NP,"4,481,080.00",Yes
"Housing, Communities & Local Government",MHCLG,15/07/2021,Current (non AEF) Grants to Local Authorities,Local Government Strategy and Analysis,BARNET LBC,,,,211049507,3700107767,,Grant payable by the Exchequer,N11 1NP,"177,620.00",Yes
"Housing, Communities & Local Government",MHCLG,15/07/2021,Current (non AEF) Grants to Local Authorities,Local Government Strategy and Analysis,BARNET LBC,,,,211049507,3700108372,,Grant payable by the Exchequer,N11 1NP,"12,004.00",Yes
"Housing, Communities & Local Government",MHCLG,15/07/2021,Current (non AEF) Grants to Local Authorities,Local Government Strategy and Analysis,BARNET LBC,,,,211049507,3700108576,,Grant payable by the Exchequer,N11 1NP,"2,908.00",Yes
"Housing, Communities & Local Government",MHCLG,15/07/2021,Current (non AEF) Grants to Local Authorities,Local Government Strategy and Analysis,BARNET LBC,,,,211049507,3700108910,,Grant payable by the Exchequer,N11 1NP,"234,227.00",Yes
"Housing, Communities & Local Government",MHCLG,15/07/2021,Current (non AEF) Grants to Local Authorities,Local Government Strategy and Analysis,BARNSLEY MBC,,,,211178595,3700107320,,Grant payable by the Exchequer,S70 2AQ,"844,167.00",Yes
"Housing, Communities & Local Government",MHCLG,15/07/2021,Current (non AEF) Grants to Local Authorities,Local Government Strategy and Analysis,BARNSLEY MBC,,,,211178595,3700107777,,Grant payable by the Exchequer,S70 2AQ,"1,087,882.00",Yes
"Housing, Communities & Local Government",MHCLG,15/07/2021,Current (non AEF) Grants to Local Authorities,Local Government Strategy and Analysis,BARNSLEY MBC,,Public Bodies,,211178595,3700107413,,Grant payable by the Exchequer,S70 2AQ,"1,081,109.00",Yes
"Housing, Communities & Local Government",MHCLG,15/07/2021,Current (non AEF) Grants to Local Authorities,Local Government Strategy and Analysis,BARNSLEY MBC,,Public Bodies,,211178595,3700108289,,Grant payable by the Exchequer,S70 2AQ,"242,707.00",Yes
"Housing, Communities & Local Government",MHCLG,15/07/2021,Current (non AEF) Grants to Local Authorities,Local Government Strategy and Analysis,BARNSLEY MBC,,Public Bodies,,211178595,3700108897,,Grant payable by the Exchequer,S70 2AQ,"1,100.00",Yes
"Housing, Communities & Local Government",MHCLG,15/07/2021,Current (non AEF) Grants to Local Authorities,Local Government Strategy and Analysis,BARNSLEY MBC,,Public Bodies,,211178595,3700108955,,Grant payable by the Exchequer,S70 2AQ,"10,205.00",Yes
"Housing, Communities & Local Government",MHCLG,15/07/2021,Current (non AEF) Grants to Local Authorities,Local Government Strategy and Analysis,BARNSLEY MBC,,Public Bodies,,211178595,3700109131,,Grant payable by the Exchequer,S70 2AQ,"244,396.00",Yes
"Housing, Communities & Local Government",MHCLG,15/07/2021,Current (non AEF) Grants to Local Authorities,Local Government Strategy and Analysis,BARROW BC,,,,295632913,3700107696,,Grant payable by the Exchequer,LA14 2LD,"517,348.00",Yes
"Housing, Communities & Local Government",MHCLG,15/07/2021,Current (non AEF) Grants to Local Authorities,Local Government Strategy and Analysis,BARROW BC,,,,295632913,3700107955,,Grant payable by the Exchequer,LA14 2LD,"16,109.00",Yes
"Housing, Communities & Local Government",MHCLG,15/07/2021,Current (non AEF) Grants to Local Authorities,Local Government Strategy and Analysis,BARROW BC,,,,295632913,3700108298,,Grant payable by the Exchequer,LA14 2LD,"2,780.00",Yes
"Housing, Communities & Local Government",MHCLG,15/07/2021,Current (non AEF) Grants to Local Authorities,Local Government Strategy and Analysis,BARROW BC,,,,295632913,3700108833,,Grant payable by the Exchequer,LA14 2LD,"54,776.00",Yes
"Housing, Communities & Local Government",MHCLG,15/07/2021,Current (non AEF) Grants to Local Authorities,Local Government Strategy and Analysis,BASILDON DC,,,,,3700107322,,Grant payable by the Exchequer,SS14 0DF,"22,003.00",Yes
"Housing, Communities & Local Government",MHCLG,15/07/2021,Current (non AEF) Grants to Local Authorities,Local Government Strategy and Analysis,BASILDON DC,,,,,3700107493,,Grant payable by the Exchequer,SS14 0DF,"2,000,318.00",Yes
"Housing, Communities & Local Government",MHCLG,15/07/2021,Current (non AEF) Grants to Local Authorities,Local Government Strategy and Analysis,BASILDON DC,,,,,3700108592,,Grant payable by the Exchequer,SS14 0DF,"12,099.00",Yes
"Housing, Communities & Local Government",MHCLG,15/07/2021,Current (non AEF) Grants to Local Authorities,Local Government Strategy and Analysis,BASILDON DC,,,,,3700109019,,Grant payable by the Exchequer,SS14 0DF,"146,696.00",Yes
"Housing, Communities & Local Government",MHCLG,15/07/2021,Current (non AEF) Grants to Local Authorities,Local Government Strategy and Analysis,BASILDON DC,,,,,3700109183,,Grant payable by the Exchequer,SS14 0DF,426.00,Yes
"Housing, Communities & Local Government",MHCLG,15/07/2021,Current (non AEF) Grants to Local Authorities,Local Government Strategy and Analysis,BASINGSTOKE & DEANE BC,,,,228328506,3700107260,,Grant payable by the Exchequer,RG21 2AJ,"1,856,272.00",Yes
"Housing, Communities & Local Government",MHCLG,15/07/2021,Current (non AEF) Grants to Local Authorities,Local Government Strategy and Analysis,BASINGSTOKE & DEANE BC,,,,228328506,3700107838,,Grant payable by the Exchequer,RG21 2AJ,727.00,Yes
"Housing, Communities & Local Government",MHCLG,15/07/2021,Current (non AEF) Grants to Local Authorities,Local Government Strategy and Analysis,BASINGSTOKE & DEANE BC,,,,228328506,3700108020,,Grant payable by the Exchequer,RG21 2AJ,"2,826.00",Yes
"Housing, Communities & Local Government",MHCLG,15/07/2021,Current (non AEF) Grants to Local Authorities,Local Government Strategy and Analysis,BASINGSTOKE & DEANE BC,,,,228328506,3700108352,,Grant payable by the Exchequer,RG21 2AJ,822.00,Yes
"Housing, Communities & Local Government",MHCLG,15/07/2021,Current (non AEF) Grants to Local Authorities,Local Government Strategy and Analysis,BASINGSTOKE & DEANE BC,,,,228328506,3700108830,,Grant payable by the Exchequer,RG21 2AJ,"10,576.00",Yes
"Housing, Communities & Local Government",MHCLG,15/07/2021,Current (non AEF) Grants to Local Authorities,Local Government Strategy and Analysis,BASINGSTOKE & DEANE BC,,,,228328506,3700109390,,Grant payable by the Exchequer,RG21 2AJ,"80,763.00",Yes
"Housing, Communities & Local Government",MHCLG,15/07/2021,Current (non AEF) Grants to Local Authorities,Local Government Strategy and Analysis,BASINGSTOKE & DEANE BC,,,,228328506,3700109640,,Grant payable by the Exchequer,RG21 2AJ,"9,224.00",Yes
"Housing, Communities & Local Government",MHCLG,15/07/2021,Current (non AEF) Grants to Local Authorities,Local Government Strategy and Analysis,BASSETLAW DC,,,,230225054,3700107301,,Grant payable by the Exchequer,S80 2AH,"728,132.00",Yes
"Housing, Communities & Local Government",MHCLG,15/07/2021,Current (non AEF) Grants to Local Authorities,Local Government Strategy and Analysis,BASSETLAW DC,,,,230225054,3700108063,,Grant payable by the Exchequer,S80 2AH,"24,523.00",Yes
"Housing, Communities & Local Government",MHCLG,15/07/2021,Current (non AEF) Grants to Local Authorities,Local Government Strategy and Analysis,BASSETLAW DC,,,,230225054,3700108240,,Grant payable by the Exchequer,S80 2AH,"5,934.00",Yes
"Housing, Communities & Local Government",MHCLG,15/07/2021,Current (non AEF) Grants to Local Authorities,Local Government Strategy and Analysis,BASSETLAW DC,,,,230225054,3700108266,,Grant payable by the Exchequer,S80 2AH,"1,129.00",Yes
"Housing, Communities & Local Government",MHCLG,15/07/2021,Current (non AEF) Grants to Local Authorities,Local Government Strategy and Analysis,BASSETLAW DC,,,,230225054,3700108405,,Grant payable by the Exchequer,S80 2AH,"1,000.00",Yes
"Housing, Communities & Local Government",MHCLG,15/07/2021,Current (non AEF) Grants to Local Authorities,Local Government Strategy and Analysis,BASSETLAW DC,,,,230225054,3700109435,,Grant payable by the Exchequer,S80 2AH,"114,930.00",Yes
"Housing, Communities & Local Government",MHCLG,15/07/2021,Current (non AEF) Grants to Local Authorities,Local Government Strategy and Analysis,BATH & NE SOMERSET DC (HSG),,,,214502499,3700107171,,Grant payable by the Exchequer,BA1 5AW,"396,557.00",Yes
"Housing, Communities & Local Government",MHCLG,15/07/2021,Current (non AEF) Grants to Local Authorities,Local Government Strategy and Analysis,BATH & NE SOMERSET DC (HSG),,,,214502499,3700107207,,Grant payable by the Exchequer,BA1 5AW,"355,092.00",Yes
"Housing, Communities & Local Government",MHCLG,15/07/2021,Current (non AEF) Grants to Local Authorities,Local Government Strategy and Analysis,BATH & NORTH EAST SOMERSET DC,,,,214502499,3700107399,,Grant payable by the Exchequer,BA1 5AW,"4,457.00",Yes
"Housing, Communities & Local Government",MHCLG,15/07/2021,Current (non AEF) Grants to Local Authorities,Local Government Strategy and Analysis,BATH & NORTH EAST SOMERSET DC,,,,214502499,3700107514,,Grant payable by the Exchequer,BA1 5AW,"2,321.00",Yes
"Housing, Communities & Local Government",MHCLG,15/07/2021,Current (non AEF) Grants to Local Authorities,Local Government Strategy and Analysis,BATH & NORTH EAST SOMERSET DC,,,,214502499,3700107534,,Grant payable by the Exchequer,BA1 5AW,"2,382,859.00",Yes
"Housing, Communities & Local Government",MHCLG,15/07/2021,Current (non AEF) Grants to Local Authorities,Local Government Strategy and Analysis,BATH & NORTH EAST SOMERSET DC,,,,214502499,3700108502,,Grant payable by the Exchequer,BA1 5AW,"1,458.00",Yes
"Housing, Communities & Local Government",MHCLG,15/07/2021,Current (non AEF) Grants to Local Authorities,Local Government Strategy and Analysis,BATH & NORTH EAST SOMERSET DC,,,,214502499,3700108529,,Grant payable by the Exchequer,BA1 5AW,"28,134.00",Yes
"Housing, Communities & Local Government",MHCLG,15/07/2021,Current (non AEF) Grants to Local Authorities,Local Government Strategy and Analysis,BATH & NORTH EAST SOMERSET DC,,,,214502499,3700108918,,Grant payable by the Exchequer,BA1 5AW,"438,133.00",Yes
"Housing, Communities & Local Government",MHCLG,15/07/2021,Current (non AEF) Grants to Local Authorities,Local Government Strategy and Analysis,BATH & NORTH EAST SOMERSET DC,,,,214502499,3700109033,,Grant payable by the Exchequer,BA1 5AW,"93,985.00",Yes
"Housing, Communities & Local Government",MHCLG,15/07/2021,Current (non AEF) Grants to Local Authorities,Local Government Strategy and Analysis,BEDFORD BOROUGH COUNCIL,,,,211166889,3700107200,,Grant payable by the Exchequer,MK40 1SJ,"1,477,124.00",Yes
"Housing, Communities & Local Government",MHCLG,15/07/2021,Current (non AEF) Grants to Local Authorities,Local Government Strategy and Analysis,BEDFORD BOROUGH COUNCIL,,,,211166889,3700107984,,Grant payable by the Exchequer,MK40 1SJ,"10,574.00",Yes
"Housing, Communities & Local Government",MHCLG,15/07/2021,Current (non AEF) Grants to Local Authorities,Local Government Strategy and Analysis,BEDFORD BOROUGH COUNCIL,,,,211166889,3700108672,,Grant payable by the Exchequer,MK40 1SJ,"157,103.00",Yes
"Housing, Communities & Local Government",MHCLG,15/07/2021,Current (non AEF) Grants to Local Authorities,Local Government Strategy and Analysis,BEDFORD BOROUGH COUNCIL,,,,211166889,3700109055,,Grant payable by the Exchequer,MK40 1SJ,699.00,Yes
"Housing, Communities & Local Government",MHCLG,15/07/2021,Current (non AEF) Grants to Local Authorities,Local Government Strategy and Analysis,BEDFORD BOROUGH COUNCIL,,,,211166889,3700109254,,Grant payable by the Exchequer,MK40 1SJ,315.00,Yes
"Housing, Communities & Local Government",MHCLG,15/07/2021,Current (non AEF) Grants to Local Authorities,Local Government Strategy and Analysis,BEDFORD BOROUGH COUNCIL,,,,211166889,3700109304,,Grant payable by the Exchequer,MK40 1SJ,"1,382.00",Yes
"Housing, Communities & Local Government",MHCLG,15/07/2021,Current (non AEF) Grants to Local Authorities,Local Government Strategy and Analysis,BEDFORD BOROUGH COUNCIL,,,,211166889,3700109615,,Grant payable by the Exchequer,MK40 1SJ,"180,128.00",Yes
"Housing, Communities & Local Government",MHCLG,15/07/2021,Current (non AEF) Grants to Local Authorities,Local Government Strategy and Analysis,BEDFORD UNITARY AUTHORITY,,,,225682160,3700107136,,Grant payable by the Exchequer,MK40 1SJ,"275,382.00",Yes
"Housing, Communities & Local Government",MHCLG,15/07/2021,Current (non AEF) Grants to Local Authorities,Local Government Strategy and Analysis,BEDFORD UNITARY AUTHORITY,,,,225682160,3700107382,,Grant payable by the Exchequer,MK40 1SJ,"284,527.00",Yes
"Housing, Communities & Local Government",MHCLG,15/07/2021,Current (non AEF) Grants to Local Authorities,Local Government Strategy and Analysis,BEDS & LUTON FIRE & RESCUE SERVICE,,,,387821283,3700107331,,Grant payable by the Exchequer,MK42 7NR,778.00,Yes
"Housing, Communities & Local Government",MHCLG,15/07/2021,Current (non AEF) Grants to Local Authorities,Local Government Strategy and Analysis,BEDS & LUTON FIRE & RESCUE SERVICE,,,,387821283,3700109011,,Grant payable by the Exchequer,MK42 7NR,"27,118.00",Yes
"Housing, Communities & Local Government",MHCLG,15/07/2021,Current (non AEF) Grants to Local Authorities,Local Government Strategy and Analysis,BEDS & LUTON FIRE & RESCUE SERVICE,,,,387821283,3700109264,,Grant payable by the Exchequer,MK42 7NR,"13,135.00",Yes
"Housing, Communities & Local Government",MHCLG,15/07/2021,Current (non AEF) Grants to Local Authorities,Local Government Strategy and Analysis,BEXLEY LB,,,,,3700107170,,Grant payable by the Exchequer,DA8 1TL,"1,705,924.00",Yes
"Housing, Communities & Local Government",MHCLG,15/07/2021,Current (non AEF) Grants to Local Authorities,Local Government Strategy and Analysis,BEXLEY LB,,,,,3700108350,,Grant payable by the Exchequer,DA8 1TL,619.00,Yes
"Housing, Communities & Local Government",MHCLG,15/07/2021,Current (non AEF) Grants to Local Authorities,Local Government Strategy and Analysis,BEXLEY LB,,,,,3700108922,,Grant payable by the Exchequer,DA8 1TL,"5,736.00",Yes
"Housing, Communities & Local Government",MHCLG,15/07/2021,Current (non AEF) Grants to Local Authorities,Local Government Strategy and Analysis,BEXLEY LB,,,,,3700108927,,Grant payable by the Exchequer,DA8 1TL,"174,843.00",Yes
"Housing, Communities & Local Government",MHCLG,15/07/2021,Current (non AEF) Grants to Local Authorities,Local Government Strategy and Analysis,BEXLEY LB,,,,,3700109317,,Grant payable by the Exchequer,DA8 1TL,"122,623.00",Yes
"Housing, Communities & Local Government",MHCLG,15/07/2021,Current (non AEF) Grants to Local Authorities,Local Government Strategy and Analysis,BEXLEY LB (HSG),,,,,3700107189,,Grant payable by the Exchequer,DA8 1TL,"480,078.00",Yes
"Housing, Communities & Local Government",MHCLG,15/07/2021,Current (non AEF) Grants to Local Authorities,Local Government Strategy and Analysis,BEXLEY LB (HSG),,,,,3700107509,,Grant payable by the Exchequer,DA8 1TL,"535,114.00",Yes
"Housing, Communities & Local Government",MHCLG,15/07/2021,Current (non AEF) Grants to Local Authorities,Local Government Strategy and Analysis,BIRMINGHAM CITY CNCL,,,,213780559,3700107199,,Grant payable by the Exchequer,B2 2AJ,"5,493,223.00",Yes
"Housing, Communities & Local Government",MHCLG,15/07/2021,Current (non AEF) Grants to Local Authorities,Local Government Strategy and Analysis,BIRMINGHAM CITY CNCL,,,,213780559,3700107659,,Grant payable by the Exchequer,B2 2AJ,"4,156,051.00",Yes
"Housing, Communities & Local Government",MHCLG,15/07/2021,Current (non AEF) Grants to Local Authorities,Local Government Strategy and Analysis,BIRMINGHAM CITY CNCL,,,,213780559,3700107666,,Grant payable by the Exchequer,B3 3AB,"10,191,965.00",Yes
"Housing, Communities & Local Government",MHCLG,15/07/2021,Current (non AEF) Grants to Local Authorities,Local Government Strategy and Analysis,BIRMINGHAM CITY CNCL,,,,213780559,3700107863,,Grant payable by the Exchequer,B3 3AB,"141,495.00",Yes
"Housing, Communities & Local Government",MHCLG,15/07/2021,Current (non AEF) Grants to Local Authorities,Local Government Strategy and Analysis,BIRMINGHAM CITY CNCL,,,,213780559,3700108263,,Grant payable by the Exchequer,B3 3AB,"1,607,262.00",Yes
"Housing, Communities & Local Government",MHCLG,15/07/2021,Current (non AEF) Grants to Local Authorities,Local Government Strategy and Analysis,BIRMINGHAM CITY CNCL,,,,213780559,3700108808,,Grant payable by the Exchequer,B3 3AB,"2,615,083.00",Yes
"Housing, Communities & Local Government",MHCLG,15/07/2021,Current (non AEF) Grants to Local Authorities,Local Government Strategy and Analysis,BIRMINGHAM CITY CNCL,,,,213780559,3700109386,,Grant payable by the Exchequer,B3 3AB,"45,734.00",Yes
"Housing, Communities & Local Government",MHCLG,15/07/2021,Current (non AEF) Grants to Local Authorities,Local Government Strategy and Analysis,BLABY DC,,,,,3700107196,,Grant payable by the Exchequer,LE9 5EP,"1,175,008.00",Yes
"Housing, Communities & Local Government",MHCLG,15/07/2021,Current (non AEF) Grants to Local Authorities,Local Government Strategy and Analysis,BLABY DC,,,,,3700108348,,Grant payable by the Exchequer,LE9 5EP,350.00,Yes
"Housing, Communities & Local Government",MHCLG,15/07/2021,Current (non AEF) Grants to Local Authorities,Local Government Strategy and Analysis,BLABY DC,,,,,3700108567,,Grant payable by the Exchequer,LE9 5EP,"23,210.00",Yes
"Housing, Communities & Local Government",MHCLG,15/07/2021,Current (non AEF) Grants to Local Authorities,Local Government Strategy and Analysis,BLABY DC,,,,,3700109454,,Grant payable by the Exchequer,LE9 5EP,"60,102.00",Yes
"Housing, Communities & Local Government",MHCLG,15/07/2021,Current (non AEF) Grants to Local Authorities,Local Government Strategy and Analysis,BLABY DC,,,,,3700109671,,Grant payable by the Exchequer,LE9 5EP,"4,308.00",Yes
"Housing, Communities & Local Government",MHCLG,15/07/2021,Current (non AEF) Grants to Local Authorities,Local Government Strategy and Analysis,BLACKBURN WITH DARWEN BC,,,,,3700107532,,Grant payable by the Exchequer,BB1 7DY,"675,272.00",Yes
"Housing, Communities & Local Government",MHCLG,15/07/2021,Current (non AEF) Grants to Local Authorities,Local Government Strategy and Analysis,BLACKBURN WITH DARWEN BC,,,,,3700107833,,Grant payable by the Exchequer,BB1 7DY,"545,917.00",Yes
"Housing, Communities & Local Government",MHCLG,15/07/2021,Current (non AEF) Grants to Local Authorities,Local Government Strategy and Analysis,BLACKBURN WITH DARWEN BC,,,,,3700107599,,Grant payable by the Exchequer,BB1 7DY,"236,977.00",Yes
"Housing, Communities & Local Government",MHCLG,15/07/2021,Current (non AEF) Grants to Local Authorities,Local Government Strategy and Analysis,BLACKBURN WITH DARWEN BC,,,,,3700107822,,Grant payable by the Exchequer,BB1 7DY,"1,015,862.00",Yes
"Housing, Communities & Local Government",MHCLG,15/07/2021,Current (non AEF) Grants to Local Authorities,Local Government Strategy and Analysis,BLACKBURN WITH DARWEN BC,,,,,3700108678,,Grant payable by the Exchequer,BB1 7DY,"194,604.00",Yes
"Housing, Communities & Local Government",MHCLG,15/07/2021,Current (non AEF) Grants to Local Authorities,Local Government Strategy and Analysis,BLACKBURN WITH DARWEN BC,,,,,3700109194,,Grant payable by the Exchequer,BB1 7DY,"2,733.00",Yes
"Housing, Communities & Local Government",MHCLG,15/07/2021,Current (non AEF) Grants to Local Authorities,Local Government Strategy and Analysis,BLACKBURN WITH DARWEN BC,,,,,3700109282,,Grant payable by the Exchequer,BB1 7DY,"1,289.00",Yes
"Housing, Communities & Local Government",MHCLG,15/07/2021,Current (non AEF) Grants to Local Authorities,Local Government Strategy and Analysis,BLACKBURN WITH DARWEN BC,,,,,3700109316,,Grant payable by the Exchequer,BB1 7DY,859.00,Yes
"Housing, Communities & Local Government",MHCLG,15/07/2021,Current (non AEF) Grants to Local Authorities,Local Government Strategy and Analysis,BLACKPOOL BC,,,,,3700107151,,Grant payable by the Exchequer,FY1 1NA,"879,594.00",Yes
"Housing, Communities & Local Government",MHCLG,15/07/2021,Current (non AEF) Grants to Local Authorities,Local Government Strategy and Analysis,BLACKPOOL BC,,,,,3700107259,,Grant payable by the Exchequer,FY1 1NA,"668,060.00",Yes
"Housing, Communities & Local Government",MHCLG,15/07/2021,Current (non AEF) Grants to Local Authorities,Local Government Strategy and Analysis,BLACKPOOL BC,,,,,3700107607,,Grant payable by the Exchequer,FY1 1NA,"1,689,785.00",Yes
"Housing, Communities & Local Government",MHCLG,15/07/2021,Current (non AEF) Grants to Local Authorities,Local Government Strategy and Analysis,BLACKPOOL BC,,,,,3700108079,,Grant payable by the Exchequer,FY1 1NA,"9,100.00",Yes
"Housing, Communities & Local Government",MHCLG,15/07/2021,Current (non AEF) Grants to Local Authorities,Local Government Strategy and Analysis,BLACKPOOL BC,,,,,3700108247,,Grant payable by the Exchequer,FY1 1NA,"195,462.00",Yes
"Housing, Communities & Local Government",MHCLG,15/07/2021,Current (non AEF) Grants to Local Authorities,Local Government Strategy and Analysis,BLACKPOOL BC,,,,,3700109346,,Grant payable by the Exchequer,FY1 1NA,"260,048.00",Yes
"Housing, Communities & Local Government",MHCLG,15/07/2021,Current (non AEF) Grants to Local Authorities,Local Government Strategy and Analysis,BLACKPOOL BC,,,,,3700109608,,Grant payable by the Exchequer,FY1 1NA,643.00,Yes
"Housing, Communities & Local Government",MHCLG,15/07/2021,Current (non AEF) Grants to Local Authorities,Local Government Strategy and Analysis,BOLSOVER DC,,Large,,235516523,3700107123,,Grant payable by the Exchequer,S43 4JY,"455,240.00",Yes
"Housing, Communities & Local Government",MHCLG,15/07/2021,Current (non AEF) Grants to Local Authorities,Local Government Strategy and Analysis,BOLSOVER DC,,Large,,235516523,3700108319,,Grant payable by the Exchequer,S43 4JY,341.00,Yes
"Housing, Communities & Local Government",MHCLG,15/07/2021,Current (non AEF) Grants to Local Authorities,Local Government Strategy and Analysis,BOLSOVER DC,,Large,,235516523,3700108618,,Grant payable by the Exchequer,S43 4JY,"54,156.00",Yes
"Housing, Communities & Local Government",MHCLG,15/07/2021,Current (non AEF) Grants to Local Authorities,Local Government Strategy and Analysis,BOLSOVER DC,,Large,,235516523,3700108973,,Grant payable by the Exchequer,S43 4JY,"3,255.00",Yes
"Housing, Communities & Local Government",MHCLG,15/07/2021,Current (non AEF) Grants to Local Authorities,Local Government Strategy and Analysis,BOLSOVER DC,,Large,,235516523,3700109517,,Grant payable by the Exchequer,S43 4JY,713.00,Yes
"Housing, Communities & Local Government",MHCLG,15/07/2021,Current (non AEF) Grants to Local Authorities,Local Government Strategy and Analysis,BOLSOVER DC,,Large,,235516523,3700109619,,Grant payable by the Exchequer,S43 4JY,"24,458.00",Yes
"Housing, Communities & Local Government",MHCLG,15/07/2021,Current (non AEF) Grants to Local Authorities,Local Government Strategy and Analysis,BOLTON MBC,,,,,3700107257,,Grant payable by the Exchequer,BL1 1RU,"934,417.00",Yes
"Housing, Communities & Local Government",MHCLG,15/07/2021,Current (non AEF) Grants to Local Authorities,Local Government Strategy and Analysis,BOLTON MBC,,,,,3700107618,,Grant payable by the Exchequer,BL1 1RU,"1,203,101.00",Yes
"Housing, Communities & Local Government",MHCLG,15/07/2021,Current (non AEF) Grants to Local Authorities,Local Government Strategy and Analysis,BOLTON MBC,,,,,3700107139,,Grant payable by the Exchequer,BL1 1RU,"2,337,999.00",Yes
"Housing, Communities & Local Government",MHCLG,15/07/2021,Current (non AEF) Grants to Local Authorities,Local Government Strategy and Analysis,BOLTON MBC,,,,,3700108566,,Grant payable by the Exchequer,BL1 1RU,"750,431.00",Yes
"Housing, Communities & Local Government",MHCLG,15/07/2021,Current (non AEF) Grants to Local Authorities,Local Government Strategy and Analysis,BOLTON MBC,,,,,3700108632,,Grant payable by the Exchequer,BL1 1RU,"31,227.00",Yes
"Housing, Communities & Local Government",MHCLG,15/07/2021,Current (non AEF) Grants to Local Authorities,Local Government Strategy and Analysis,BOLTON MBC,,,,,3700108859,,Grant payable by the Exchequer,BL1 1RU,"4,340.00",Yes
"Housing, Communities & Local Government",MHCLG,15/07/2021,Current (non AEF) Grants to Local Authorities,Local Government Strategy and Analysis,BOLTON MBC,,,,,3700109442,,Grant payable by the Exchequer,BL1 1RU,"279,032.00",Yes
"Housing, Communities & Local Government",MHCLG,15/07/2021,Current (non AEF) Grants to Local Authorities,Local Government Strategy and Analysis,BOSTON BC,,,,236417713,3700107374,,Grant payable by the Exchequer,PE21 8QR,"573,638.00",Yes
"Housing, Communities & Local Government",MHCLG,15/07/2021,Current (non AEF) Grants to Local Authorities,Local Government Strategy and Analysis,BOSTON BC,,,,236417713,3700108058,,Grant payable by the Exchequer,PE21 8QR,"14,200.00",Yes
"Housing, Communities & Local Government",MHCLG,15/07/2021,Current (non AEF) Grants to Local Authorities,Local Government Strategy and Analysis,BOSTON BC,,,,236417713,3700108410,,Grant payable by the Exchequer,PE21 8QR,715.00,Yes
"Housing, Communities & Local Government",MHCLG,15/07/2021,Current (non AEF) Grants to Local Authorities,Local Government Strategy and Analysis,BOSTON BC,,,,236417713,3700108976,,Grant payable by the Exchequer,PE21 8QR,"70,314.00",Yes
"Housing, Communities & Local Government",MHCLG,15/07/2021,Current (non AEF) Grants to Local Authorities,Local Government Strategy and Analysis,BOSTON BC,,,,236417713,3700109190,,Grant payable by the Exchequer,PE21 8QR,378.00,Yes
"Housing, Communities & Local Government",MHCLG,15/07/2021,Current (non AEF) Grants to Local Authorities,Local Government Strategy and Analysis,BOSTON BC,,,,236417713,3700109206,,Grant payable by the Exchequer,PE21 8QR,"3,305.00",Yes
"Housing, Communities & Local Government",MHCLG,15/07/2021,Current (non AEF) Grants to Local Authorities,Local Government Strategy and Analysis,"Bournemouth, Christchurch and Poole",,,,,3700107513,,Grant payable by the Exchequer,BH2 6DY,"4,757,341.00",Yes
"Housing, Communities & Local Government",MHCLG,15/07/2021,Current (non AEF) Grants to Local Authorities,Local Government Strategy and Analysis,"Bournemouth, Christchurch and Poole",,,,,3700108375,,Grant payable by the Exchequer,BH2 6DY,"518,895.00",Yes
"Housing, Communities & Local Government",MHCLG,15/07/2021,Current (non AEF) Grants to Local Authorities,Local Government Strategy and Analysis,"Bournemouth, Christchurch and Poole",,,,,3700108377,,Grant payable by the Exchequer,BH2 6DY,"28,205.00",Yes
"Housing, Communities & Local Government",MHCLG,15/07/2021,Current (non AEF) Grants to Local Authorities,Local Government Strategy and Analysis,"Bournemouth, Christchurch and Poole",,,,,3700108934,,Grant payable by the Exchequer,BH2 6DY,"205,446.00",Yes
"Housing, Communities & Local Government",MHCLG,15/07/2021,Current (non AEF) Grants to Local Authorities,Local Government Strategy and Analysis,"Bournemouth, Christchurch and Poole",,,,,3700109633,,Grant payable by the Exchequer,BH2 6DY,"2,050.00",Yes
"Housing, Communities & Local Government",MHCLG,15/07/2021,Current (non AEF) Grants to Local Authorities,Local Government Strategy and Analysis,"Bournemouth, Christchurch and Poole",,,,,3700107305,,Grant payable by the Exchequer,BH2 6DY,"1,086,927.00",Yes
"Housing, Communities & Local Government",MHCLG,15/07/2021,Current (non AEF) Grants to Local Authorities,Local Government Strategy and Analysis,"Bournemouth, Christchurch and Poole",,,,,3700107568,,Grant payable by the Exchequer,BH2 6DY,"908,338.00",Yes
"Housing, Communities & Local Government",MHCLG,15/07/2021,Current (non AEF) Grants to Local Authorities,Local Government Strategy and Analysis,BRACKNELL FOREST DC,,,,236184867,3700107334,,Grant payable by the Exchequer,RG12 1AQ,"123,333.00",Yes
"Housing, Communities & Local Government",MHCLG,15/07/2021,Current (non AEF) Grants to Local Authorities,Local Government Strategy and Analysis,BRACKNELL FOREST DC,,,,236184867,3700107798,,Grant payable by the Exchequer,RG12 1AQ,"165,835.00",Yes
"Housing, Communities & Local Government",MHCLG,15/07/2021,Current (non AEF) Grants to Local Authorities,Local Government Strategy and Analysis,BRACKNELL FOREST DC,,,,236184867,3700107451,,Grant payable by the Exchequer,RG12 1JD,"1,465,278.00",Yes
"Housing, Communities & Local Government",MHCLG,15/07/2021,Current (non AEF) Grants to Local Authorities,Local Government Strategy and Analysis,BRACKNELL FOREST DC,,,,236184867,3700107557,,Grant payable by the Exchequer,RG12 1JD,"104,759.00",Yes
"Housing, Communities & Local Government",MHCLG,15/07/2021,Current (non AEF) Grants to Local Authorities,Local Government Strategy and Analysis,BRACKNELL FOREST DC,,,,236184867,3700108461,,Grant payable by the Exchequer,RG12 1JD,"65,539.00",Yes
"Housing, Communities & Local Government",MHCLG,15/07/2021,Current (non AEF) Grants to Local Authorities,Local Government Strategy and Analysis,BRACKNELL FOREST DC,,,,236184867,3700109078,,Grant payable by the Exchequer,RG12 1JD,"5,084.00",Yes
"Housing, Communities & Local Government",MHCLG,15/07/2021,Current (non AEF) Grants to Local Authorities,Local Government Strategy and Analysis,BRACKNELL FOREST DC,,,,236184867,3700109394,,Grant payable by the Exchequer,RG12 1JD,"2,956.00",Yes
"Housing, Communities & Local Government",MHCLG,15/07/2021,Current (non AEF) Grants to Local Authorities,Local Government Strategy and Analysis,BRADFORD MBC,,,,,3700107340,,Grant payable by the Exchequer,BD1 1HX,"1,491,134.00",Yes
"Housing, Communities & Local Government",MHCLG,15/07/2021,Current (non AEF) Grants to Local Authorities,Local Government Strategy and Analysis,BRADFORD MBC,,,,,3700107524,,Grant payable by the Exchequer,BD1 1HX,"1,891,643.00",Yes
"Housing, Communities & Local Government",MHCLG,15/07/2021,Current (non AEF) Grants to Local Authorities,Local Government Strategy and Analysis,BRADFORD MBC,,,,,3700107242,,Grant payable by the Exchequer,BD1 1HX,"3,260,644.00",Yes
"Housing, Communities & Local Government",MHCLG,15/07/2021,Current (non AEF) Grants to Local Authorities,Local Government Strategy and Analysis,BRADFORD MBC,,,,,3700107461,,Grant payable by the Exchequer,BD1 1HX,"800,276.00",Yes
"Housing, Communities & Local Government",MHCLG,15/07/2021,Current (non AEF) Grants to Local Authorities,Local Government Strategy and Analysis,BRADFORD MBC,,,,,3700108481,,Grant payable by the Exchequer,BD1 1HX,"2,212.00",Yes
"Housing, Communities & Local Government",MHCLG,15/07/2021,Current (non AEF) Grants to Local Authorities,Local Government Strategy and Analysis,BRADFORD MBC,,,,,3700109054,,Grant payable by the Exchequer,BD1 1HX,"584,189.00",Yes
"Housing, Communities & Local Government",MHCLG,15/07/2021,Current (non AEF) Grants to Local Authorities,Local Government Strategy and Analysis,BRADFORD MBC,,,,,3700109153,,Grant payable by the Exchequer,BD1 1HX,"27,289.00",Yes
"Housing, Communities & Local Government",MHCLG,15/07/2021,Current (non AEF) Grants to Local Authorities,Local Government Strategy and Analysis,BRADFORD MBC,,,,,3700109331,,Grant payable by the Exchequer,BD1 1HX,"18,676.00",Yes
"Housing, Communities & Local Government",MHCLG,15/07/2021,Current (non AEF) Grants to Local Authorities,Local Government Strategy and Analysis,BRAINTREE DC,,,,226941730,3700107540,,Grant payable by the Exchequer,CM7 9HB,"1,051,303.00",Yes
"Housing, Communities & Local Government",MHCLG,15/07/2021,Current (non AEF) Grants to Local Authorities,Local Government Strategy and Analysis,BRAINTREE DC,,,,226941730,3700107899,,Grant payable by the Exchequer,CM7 9HB,"17,608.00",Yes
"Housing, Communities & Local Government",MHCLG,15/07/2021,Current (non AEF) Grants to Local Authorities,Local Government Strategy and Analysis,BRAINTREE DC,,,,226941730,3700108843,,Grant payable by the Exchequer,CM7 9HB,337.00,Yes
"Housing, Communities & Local Government",MHCLG,15/07/2021,Current (non AEF) Grants to Local Authorities,Local Government Strategy and Analysis,BRAINTREE DC,,,,226941730,3700109100,,Grant payable by the Exchequer,CM7 9HB,273.00,Yes
"Housing, Communities & Local Government",MHCLG,15/07/2021,Current (non AEF) Grants to Local Authorities,Local Government Strategy and Analysis,BRAINTREE DC,,,,226941730,3700109116,,Grant payable by the Exchequer,CM7 9HB,"9,831.00",Yes
"Housing, Communities & Local Government",MHCLG,15/07/2021,Current (non AEF) Grants to Local Authorities,Local Government Strategy and Analysis,BRAINTREE DC,,,,226941730,3700109263,,Grant payable by the Exchequer,CM7 9HB,"141,676.00",Yes
"Housing, Communities & Local Government",MHCLG,15/07/2021,Current (non AEF) Grants to Local Authorities,Local Government Strategy and Analysis,BRECKLAND DC,,,,232611384,3700107740,,Grant payable by the Exchequer,NR19 1EE,"6,814.00",Yes
"Housing, Communities & Local Government",MHCLG,15/07/2021,Current (non AEF) Grants to Local Authorities,Local Government Strategy and Analysis,BRECKLAND DC,,,,232611384,3700107831,,Grant payable by the Exchequer,NR19 1EE,"804,095.00",Yes
"Housing, Communities & Local Government",MHCLG,15/07/2021,Current (non AEF) Grants to Local Authorities,Local Government Strategy and Analysis,BRECKLAND DC,,,,232611384,3700108778,,Grant payable by the Exchequer,NR19 1EE,"2,471.00",Yes
"Housing, Communities & Local Government",MHCLG,15/07/2021,Current (non AEF) Grants to Local Authorities,Local Government Strategy and Analysis,BRECKLAND DC,,,,232611384,3700108962,,Grant payable by the Exchequer,NR19 1EE,"26,375.00",Yes
"Housing, Communities & Local Government",MHCLG,15/07/2021,Current (non AEF) Grants to Local Authorities,Local Government Strategy and Analysis,BRECKLAND DC,,,,232611384,3700109371,,Grant payable by the Exchequer,NR19 1EE,923.00,Yes
"Housing, Communities & Local Government",MHCLG,15/07/2021,Current (non AEF) Grants to Local Authorities,Local Government Strategy and Analysis,BRECKLAND DC,,,,232611384,3700109634,,Grant payable by the Exchequer,NR19 1EE,"126,307.00",Yes
"Housing, Communities & Local Government",MHCLG,15/07/2021,Current (non AEF) Grants to Local Authorities,Local Government Strategy and Analysis,BRENT LB,,,,,3700107395,,Grant payable by the Exchequer,HA9 9EZ,"3,384,996.00",Yes
"Housing, Communities & Local Government",MHCLG,15/07/2021,Current (non AEF) Grants to Local Authorities,Local Government Strategy and Analysis,BRENT LB,,,,,3700107551,,Grant payable by the Exchequer,HA9 9EZ,"2,194.00",Yes
"Housing, Communities & Local Government",MHCLG,15/07/2021,Current (non AEF) Grants to Local Authorities,Local Government Strategy and Analysis,BRENT LB,,,,,3700108480,,Grant payable by the Exchequer,HA9 9EZ,"193,921.00",Yes
"Housing, Communities & Local Government",MHCLG,15/07/2021,Current (non AEF) Grants to Local Authorities,Local Government Strategy and Analysis,BRENT LB,,,,,3700109168,,Grant payable by the Exchequer,HA9 9EZ,"402,463.00",Yes
"Housing, Communities & Local Government",MHCLG,15/07/2021,Current (non AEF) Grants to Local Authorities,Local Government Strategy and Analysis,BRENT LB,,,,,3700109398,,Grant payable by the Exchequer,HA9 9EZ,"11,892.00",Yes
"Housing, Communities & Local Government",MHCLG,15/07/2021,Current (non AEF) Grants to Local Authorities,Local Government Strategy and Analysis,BRENT LB (HSG),,,,,3700107213,,Grant payable by the Exchequer,HA9 0FJ,"1,079,317.00",Yes
"Housing, Communities & Local Government",MHCLG,15/07/2021,Current (non AEF) Grants to Local Authorities,Local Government Strategy and Analysis,BRENT LB (HSG),,,,,3700107754,,Grant payable by the Exchequer,HA9 0FJ,"837,959.00",Yes
"Housing, Communities & Local Government",MHCLG,15/07/2021,Current (non AEF) Grants to Local Authorities,Local Government Strategy and Analysis,BRENTWOOD BC,,,,227473188,3700107436,,Grant payable by the Exchequer,CM15 8AY,"692,027.00",Yes
"Housing, Communities & Local Government",MHCLG,15/07/2021,Current (non AEF) Grants to Local Authorities,Local Government Strategy and Analysis,BRENTWOOD BC,,,,227473188,3700108659,,Grant payable by the Exchequer,CM15 8AY,"2,746.00",Yes
"Housing, Communities & Local Government",MHCLG,15/07/2021,Current (non AEF) Grants to Local Authorities,Local Government Strategy and Analysis,BRENTWOOD BC,,,,227473188,3700109083,,Grant payable by the Exchequer,CM15 8AY,"6,146.00",Yes
"Housing, Communities & Local Government",MHCLG,15/07/2021,Current (non AEF) Grants to Local Authorities,Local Government Strategy and Analysis,BRENTWOOD BC,,,,227473188,3700109388,,Grant payable by the Exchequer,CM15 8AY,"74,625.00",Yes
"Housing, Communities & Local Government",MHCLG,15/07/2021,Current (non AEF) Grants to Local Authorities,Local Government Strategy and Analysis,BRIGHTON & HOVE CITY COUNCIL,,Large,,228455218,3700107314,,Grant payable by the Exchequer,BN1 3JE,"765,053.00",Yes
"Housing, Communities & Local Government",MHCLG,15/07/2021,Current (non AEF) Grants to Local Authorities,Local Government Strategy and Analysis,BRIGHTON & HOVE CITY COUNCIL,,Large,,228455218,3700107789,,Grant payable by the Exchequer,BN1 3JE,"646,578.00",Yes
"Housing, Communities & Local Government",MHCLG,15/07/2021,Current (non AEF) Grants to Local Authorities,Local Government Strategy and Analysis,BRIGHTON & HOVE CITY COUNCIL,,Large,,228455218,3700107110,,Grant payable by the Exchequer,BN1 3JE,"4,053,698.00",Yes
"Housing, Communities & Local Government",MHCLG,15/07/2021,Current (non AEF) Grants to Local Authorities,Local Government Strategy and Analysis,BRIGHTON & HOVE CITY COUNCIL,,Large,,228455218,3700108242,,Grant payable by the Exchequer,BN1 3JE,"26,385.00",Yes
"Housing, Communities & Local Government",MHCLG,15/07/2021,Current (non AEF) Grants to Local Authorities,Local Government Strategy and Analysis,BRIGHTON & HOVE CITY COUNCIL,,Large,,228455218,3700108487,,Grant payable by the Exchequer,BN1 3JE,"257,798.00",Yes
"Housing, Communities & Local Government",MHCLG,15/07/2021,Current (non AEF) Grants to Local Authorities,Local Government Strategy and Analysis,BRIGHTON & HOVE CITY COUNCIL,,Large,,228455218,3700108989,,Grant payable by the Exchequer,BN1 3JE,"347,650.00",Yes
"Housing, Communities & Local Government",MHCLG,15/07/2021,Current (non AEF) Grants to Local Authorities,Local Government Strategy and Analysis,BRIGHTON & HOVE CITY COUNCIL,,Large,,228455218,3700109287,,Grant payable by the Exchequer,BN1 3JE,"8,830.00",Yes
"Housing, Communities & Local Government",MHCLG,15/07/2021,Current (non AEF) Grants to Local Authorities,Local Government Strategy and Analysis,BRIGHTON & HOVE CITY COUNCIL,,Large,,228455218,3700109687,,Grant payable by the Exchequer,BN1 3JE,"1,889.00",Yes
"Housing, Communities & Local Government",MHCLG,15/07/2021,Current (non AEF) Grants to Local Authorities,Local Government Strategy and Analysis,BRISTOL CITY CNCL,,,,211103882,3700107660,,Grant payable by the Exchequer,BS99 7BL,"5,108,036.00",Yes
"Housing, Communities & Local Government",MHCLG,15/07/2021,Current (non AEF) Grants to Local Authorities,Local Government Strategy and Analysis,BRISTOL CITY CNCL,,,,211103882,3700107869,,Grant payable by the Exchequer,BS99 7BL,"4,921.00",Yes
"Housing, Communities & Local Government",MHCLG,15/07/2021,Current (non AEF) Grants to Local Authorities,Local Government Strategy and Analysis,BRISTOL CITY CNCL,,,,211103882,3700108341,,Grant payable by the Exchequer,BS99 7BL,"449,814.00",Yes
"Housing, Communities & Local Government",MHCLG,15/07/2021,Current (non AEF) Grants to Local Authorities,Local Government Strategy and Analysis,BRISTOL CITY CNCL,,,,211103882,3700108658,,Grant payable by the Exchequer,BS99 7BL,"71,503.00",Yes
"Housing, Communities & Local Government",MHCLG,15/07/2021,Current (non AEF) Grants to Local Authorities,Local Government Strategy and Analysis,BRISTOL CITY CNCL,,,,211103882,3700108687,,Grant payable by the Exchequer,BS99 7BL,"917,722.00",Yes
"Housing, Communities & Local Government",MHCLG,15/07/2021,Current (non AEF) Grants to Local Authorities,Local Government Strategy and Analysis,BRISTOL CITY CNCL,,,,211103882,3700108877,,Grant payable by the Exchequer,BS99 7BL,"1,508.00",Yes
"Housing, Communities & Local Government",MHCLG,15/07/2021,Current (non AEF) Grants to Local Authorities,Local Government Strategy and Analysis,BRISTOL CITY COUNCIL (HSG),,,,211103882,3700107479,,Grant payable by the Exchequer,BS3 9FS,"1,376,231.00",Yes
"Housing, Communities & Local Government",MHCLG,15/07/2021,Current (non AEF) Grants to Local Authorities,Local Government Strategy and Analysis,BRISTOL CITY COUNCIL (HSG),,,,211103882,3700107809,,Grant payable by the Exchequer,BS3 9FS,"1,153,289.00",Yes
"Housing, Communities & Local Government",MHCLG,15/07/2021,Current (non AEF) Grants to Local Authorities,Local Government Strategy and Analysis,BROADLAND DC,,,,219737785,3700107481,,Grant payable by the Exchequer,NR7 0DU,"788,434.00",Yes
"Housing, Communities & Local Government",MHCLG,15/07/2021,Current (non AEF) Grants to Local Authorities,Local Government Strategy and Analysis,BROADLAND DC,,,,219737785,3700108346,,Grant payable by the Exchequer,NR7 0DU,"5,480.00",Yes
"Housing, Communities & Local Government",MHCLG,15/07/2021,Current (non AEF) Grants to Local Authorities,Local Government Strategy and Analysis,BROADLAND DC,,,,219737785,3700108549,,Grant payable by the Exchequer,NR7 0DU,477.00,Yes
"Housing, Communities & Local Government",MHCLG,15/07/2021,Current (non AEF) Grants to Local Authorities,Local Government Strategy and Analysis,BROADLAND DC,,,,219737785,3700109242,,Grant payable by the Exchequer,NR7 0DU,"15,239.00",Yes
"Housing, Communities & Local Government",MHCLG,15/07/2021,Current (non AEF) Grants to Local Authorities,Local Government Strategy and Analysis,BROADLAND DC,,,,219737785,3700109714,,Grant payable by the Exchequer,NR7 0DU,"104,414.00",Yes
"Housing, Communities & Local Government",MHCLG,15/07/2021,Current (non AEF) Grants to Local Authorities,Local Government Strategy and Analysis,BROMLEY LB,,,,211331954,3700107107,,Grant payable by the Exchequer,BR1 3UH,"549,400.00",Yes
"Housing, Communities & Local Government",MHCLG,15/07/2021,Current (non AEF) Grants to Local Authorities,Local Government Strategy and Analysis,BROMLEY LB,,,,211331954,3700107547,,Grant payable by the Exchequer,BR1 3UH,"625,245.00",Yes
"Housing, Communities & Local Government",MHCLG,15/07/2021,Current (non AEF) Grants to Local Authorities,Local Government Strategy and Analysis,BROMLEY LB,,,,211331954,3700107180,,Grant payable by the Exchequer,BR1 3UH,"3,232,581.00",Yes
"Housing, Communities & Local Government",MHCLG,15/07/2021,Current (non AEF) Grants to Local Authorities,Local Government Strategy and Analysis,BROMLEY LB,,,,211331954,3700108456,,Grant payable by the Exchequer,BR1 3UH,"161,246.00",Yes
"Housing, Communities & Local Government",MHCLG,15/07/2021,Current (non AEF) Grants to Local Authorities,Local Government Strategy and Analysis,BROMLEY LB,,,,211331954,3700108710,,Grant payable by the Exchequer,BR1 3UH,"168,219.00",Yes
"Housing, Communities & Local Government",MHCLG,15/07/2021,Current (non AEF) Grants to Local Authorities,Local Government Strategy and Analysis,BROMLEY LB,,,,211331954,3700108953,,Grant payable by the Exchequer,BR1 3UH,"7,878.00",Yes
"Housing, Communities & Local Government",MHCLG,15/07/2021,Current (non AEF) Grants to Local Authorities,Local Government Strategy and Analysis,BROMLEY LB,,,,211331954,3700109149,,Grant payable by the Exchequer,BR1 3UH,"1,985.00",Yes
"Housing, Communities & Local Government",MHCLG,15/07/2021,Current (non AEF) Grants to Local Authorities,Local Government Strategy and Analysis,BROMSGROVE DC,,,,236654745,3700107298,,Grant payable by the Exchequer,B60 1AA,"620,361.00",Yes
"Housing, Communities & Local Government",MHCLG,15/07/2021,Current (non AEF) Grants to Local Authorities,Local Government Strategy and Analysis,BROMSGROVE DC,,,,236654745,3700107709,,Grant payable by the Exchequer,B60 1AA,869.00,Yes
"Housing, Communities & Local Government",MHCLG,15/07/2021,Current (non AEF) Grants to Local Authorities,Local Government Strategy and Analysis,BROMSGROVE DC,,,,236654745,3700108559,,Grant payable by the Exchequer,B60 1AA,"106,255.00",Yes
"Housing, Communities & Local Government",MHCLG,15/07/2021,Current (non AEF) Grants to Local Authorities,Local Government Strategy and Analysis,BROMSGROVE DC,,,,236654745,3700108669,,Grant payable by the Exchequer,B60 1AA,"8,785.00",Yes
"Housing, Communities & Local Government",MHCLG,15/07/2021,Current (non AEF) Grants to Local Authorities,Local Government Strategy and Analysis,BROXBOURNE BOROUGH COUNCIL,,,,239931918,3700107212,,Grant payable by the Exchequer,EN8 9XQ,"909,724.00",Yes
"Housing, Communities & Local Government",MHCLG,15/07/2021,Current (non AEF) Grants to Local Authorities,Local Government Strategy and Analysis,BROXBOURNE BOROUGH COUNCIL,,,,239931918,3700107670,,Grant payable by the Exchequer,EN8 9XQ,626.00,Yes
"Housing, Communities & Local Government",MHCLG,15/07/2021,Current (non AEF) Grants to Local Authorities,Local Government Strategy and Analysis,BROXBOURNE BOROUGH COUNCIL,,,,239931918,3700108437,,Grant payable by the Exchequer,EN8 9XQ,"5,263.00",Yes
"Housing, Communities & Local Government",MHCLG,15/07/2021,Current (non AEF) Grants to Local Authorities,Local Government Strategy and Analysis,BROXBOURNE BOROUGH COUNCIL,,,,239931918,3700109125,,Grant payable by the Exchequer,EN8 9XQ,"79,055.00",Yes
"Housing, Communities & Local Government",MHCLG,15/07/2021,Current (non AEF) Grants to Local Authorities,Local Government Strategy and Analysis,BROXBOURNE BOROUGH COUNCIL,,,,239931918,3700109700,,Grant payable by the Exchequer,EN8 9XQ,"7,957.00",Yes
"Housing, Communities & Local Government",MHCLG,15/07/2021,Current (non AEF) Grants to Local Authorities,Local Government Strategy and Analysis,BROXTOWE BC,,,,239877640,3700107315,,Grant payable by the Exchequer,NG9 1AB,"960,497.00",Yes
"Housing, Communities & Local Government",MHCLG,15/07/2021,Current (non AEF) Grants to Local Authorities,Local Government Strategy and Analysis,BROXTOWE BC,,,,239877640,3700107743,,Grant payable by the Exchequer,NG9 1AB,"3,869.00",Yes
"Housing, Communities & Local Government",MHCLG,15/07/2021,Current (non AEF) Grants to Local Authorities,Local Government Strategy and Analysis,BROXTOWE BC,,,,239877640,3700108112,,Grant payable by the Exchequer,NG9 1AB,"72,651.00",Yes
"Housing, Communities & Local Government",MHCLG,15/07/2021,Current (non AEF) Grants to Local Authorities,Local Government Strategy and Analysis,BROXTOWE BC,,,,239877640,3700108288,,Grant payable by the Exchequer,NG9 1AB,278.00,Yes
"Housing, Communities & Local Government",MHCLG,15/07/2021,Current (non AEF) Grants to Local Authorities,Local Government Strategy and Analysis,BROXTOWE BC,,,,239877640,3700109479,,Grant payable by the Exchequer,NG9 1AB,"16,305.00",Yes
"Housing, Communities & Local Government",MHCLG,15/07/2021,Current (non AEF) Grants to Local Authorities,Local Government Strategy and Analysis,Buckinghamshire Council,,,,,3700107112,,Grant payable by the Exchequer,HP19 8FF,"4,573,591.00",Yes
"Housing, Communities & Local Government",MHCLG,15/07/2021,Current (non AEF) Grants to Local Authorities,Local Government Strategy and Analysis,Buckinghamshire Council,,,,,3700107952,,Grant payable by the Exchequer,HP19 8FF,"212,653.00",Yes
"Housing, Communities & Local Government",MHCLG,15/07/2021,Current (non AEF) Grants to Local Authorities,Local Government Strategy and Analysis,Buckinghamshire Council,,,,,3700108245,,Grant payable by the Exchequer,HP19 8FF,"39,139.00",Yes
"Housing, Communities & Local Government",MHCLG,15/07/2021,Current (non AEF) Grants to Local Authorities,Local Government Strategy and Analysis,Buckinghamshire Council,,,,,3700108500,,Grant payable by the Exchequer,HP19 8FF,"2,521.00",Yes
"Housing, Communities & Local Government",MHCLG,15/07/2021,Current (non AEF) Grants to Local Authorities,Local Government Strategy and Analysis,Buckinghamshire Council,,,,,3700108957,,Grant payable by the Exchequer,HP19 8FF,"486,806.00",Yes
"Housing, Communities & Local Government",MHCLG,15/07/2021,Current (non AEF) Grants to Local Authorities,Local Government Strategy and Analysis,Buckinghamshire Council,,,,,3700109017,,Grant payable by the Exchequer,HP19 8FF,"3,143.00",Yes
"Housing, Communities & Local Government",MHCLG,15/07/2021,Current (non AEF) Grants to Local Authorities,Local Government Strategy and Analysis,Buckinghamshire Council,,,,,3700109437,,Grant payable by the Exchequer,HP19 8FF,"3,473.00",Yes
"Housing, Communities & Local Government",MHCLG,15/07/2021,Current (non AEF) Grants to Local Authorities,Local Government Strategy and Analysis,BUCKINGHAMSHIRE COUNCIL,,,,,3700107187,,Grant payable by the Exchequer,HP19 8FF,"407,707.00",Yes
"Housing, Communities & Local Government",MHCLG,15/07/2021,Current (non AEF) Grants to Local Authorities,Local Government Strategy and Analysis,BUCKINGHAMSHIRE COUNCIL,,,,,3700107255,,Grant payable by the Exchequer,HP19 8FF,"765,990.00",Yes
"Housing, Communities & Local Government",MHCLG,15/07/2021,Current (non AEF) Grants to Local Authorities,Local Government Strategy and Analysis,BUCKS & MILTON KEYNES FIRE AUTH,,Public Bodies,,423679463,3700108491,,Grant payable by the Exchequer,HP20 1BD,"14,895.00",Yes
"Housing, Communities & Local Government",MHCLG,15/07/2021,Current (non AEF) Grants to Local Authorities,Local Government Strategy and Analysis,BUCKS & MILTON KEYNES FIRE AUTH,,Public Bodies,,423679463,3700108671,,Grant payable by the Exchequer,HP20 1BD,"1,173.00",Yes
"Housing, Communities & Local Government",MHCLG,15/07/2021,Current (non AEF) Grants to Local Authorities,Local Government Strategy and Analysis,BUCKS & MILTON KEYNES FIRE AUTH,,Public Bodies,,423679463,3700108889,,Grant payable by the Exchequer,HP20 1BD,"21,781.00",Yes
"Housing, Communities & Local Government",MHCLG,15/07/2021,Current (non AEF) Grants to Local Authorities,Local Government Strategy and Analysis,BURNLEY BC,,,,229413281,3700107533,,Grant payable by the Exchequer,BB11 1JA,"95,780.00",Yes
"Housing, Communities & Local Government",MHCLG,15/07/2021,Current (non AEF) Grants to Local Authorities,Local Government Strategy and Analysis,BURNLEY BC,,,,229413281,3700107567,,Grant payable by the Exchequer,BB11 1JA,"659,923.00",Yes
"Housing, Communities & Local Government",MHCLG,15/07/2021,Current (non AEF) Grants to Local Authorities,Local Government Strategy and Analysis,BURNLEY BC,,,,229413281,3700108219,,Grant payable by the Exchequer,BB11 1JA,"4,024.00",Yes
"Housing, Communities & Local Government",MHCLG,15/07/2021,Current (non AEF) Grants to Local Authorities,Local Government Strategy and Analysis,BURNLEY BC,,,,229413281,3700108315,,Grant payable by the Exchequer,BB11 1JA,"23,133.00",Yes
"Housing, Communities & Local Government",MHCLG,15/07/2021,Current (non AEF) Grants to Local Authorities,Local Government Strategy and Analysis,BURNLEY BC,,,,229413281,3700108809,,Grant payable by the Exchequer,BB11 1JA,603.00,Yes
"Housing, Communities & Local Government",MHCLG,15/07/2021,Current (non AEF) Grants to Local Authorities,Local Government Strategy and Analysis,BURNLEY BC,,,,229413281,3700109182,,Grant payable by the Exchequer,BB11 1JA,491.00,Yes
"Housing, Communities & Local Government",MHCLG,15/07/2021,Current (non AEF) Grants to Local Authorities,Local Government Strategy and Analysis,BURY MBC,,,,,3700107165,,Grant payable by the Exchequer,BL9 0SW,"474,644.00",Yes
"Housing, Communities & Local Government",MHCLG,15/07/2021,Current (non AEF) Grants to Local Authorities,Local Government Strategy and Analysis,BURY MBC,,,,,3700107623,,Grant payable by the Exchequer,BL9 0SW,"616,988.00",Yes
"Housing, Communities & Local Government",MHCLG,15/07/2021,Current (non AEF) Grants to Local Authorities,Local Government Strategy and Analysis,BURY MBC,,,,236491114,3700107178,,Grant payable by the Exchequer,BL9 0SP,"1,460,773.00",Yes
"Housing, Communities & Local Government",MHCLG,15/07/2021,Current (non AEF) Grants to Local Authorities,Local Government Strategy and Analysis,BURY MBC,,,,236491114,3700108285,,Grant payable by the Exchequer,BL9 0SP,"528,043.00",Yes
"Housing, Communities & Local Government",MHCLG,15/07/2021,Current (non AEF) Grants to Local Authorities,Local Government Strategy and Analysis,BURY MBC,,,,236491114,3700109357,,Grant payable by the Exchequer,BL9 0SP,"24,315.00",Yes
"Housing, Communities & Local Government",MHCLG,15/07/2021,Current (non AEF) Grants to Local Authorities,Local Government Strategy and Analysis,BURY MBC,,,,236491114,3700109429,,Grant payable by the Exchequer,BL9 0SP,328.00,Yes
"Housing, Communities & Local Government",MHCLG,15/07/2021,Current (non AEF) Grants to Local Authorities,Local Government Strategy and Analysis,BURY MBC,,,,236491114,3700109503,,Grant payable by the Exchequer,BL9 0SP,"1,321.00",Yes
"Housing, Communities & Local Government",MHCLG,15/07/2021,Current (non AEF) Grants to Local Authorities,Local Government Strategy and Analysis,BURY MBC,,,,236491114,3700109549,,Grant payable by the Exchequer,BL9 0SP,"152,056.00",Yes
"Housing, Communities & Local Government",MHCLG,15/07/2021,Current (non AEF) Grants to Local Authorities,Local Government Strategy and Analysis,CALDERDALE MBC,,,,,3700107650,,Grant payable by the Exchequer,HX1 1YP,"544,341.00",Yes
"Housing, Communities & Local Government",MHCLG,15/07/2021,Current (non AEF) Grants to Local Authorities,Local Government Strategy and Analysis,CALDERDALE MBC,,,,,3700107674,,Grant payable by the Exchequer,HX1 1YP,"682,336.00",Yes
"Housing, Communities & Local Government",MHCLG,15/07/2021,Current (non AEF) Grants to Local Authorities,Local Government Strategy and Analysis,CALDERDALE MBC,,Public Bodies,,,3700107152,,Grant payable by the Exchequer,HX1 1YP,"1,282,434.00",Yes
"Housing, Communities & Local Government",MHCLG,15/07/2021,Current (non AEF) Grants to Local Authorities,Local Government Strategy and Analysis,CALDERDALE MBC,,Public Bodies,,,3700108757,,Grant payable by the Exchequer,HX1 1YP,"173,948.00",Yes
"Housing, Communities & Local Government",MHCLG,15/07/2021,Current (non AEF) Grants to Local Authorities,Local Government Strategy and Analysis,CALDERDALE MBC,,Public Bodies,,,3700108854,,Grant payable by the Exchequer,HX1 1YP,332.00,Yes
"Housing, Communities & Local Government",MHCLG,15/07/2021,Current (non AEF) Grants to Local Authorities,Local Government Strategy and Analysis,CALDERDALE MBC,,Public Bodies,,,3700109106,,Grant payable by the Exchequer,HX1 1YP,"12,551.00",Yes
"Housing, Communities & Local Government",MHCLG,15/07/2021,Current (non AEF) Grants to Local Authorities,Local Government Strategy and Analysis,CALDERDALE MBC,,Public Bodies,,,3700109123,,Grant payable by the Exchequer,HX1 1YP,"338,847.00",Yes
"Housing, Communities & Local Government",MHCLG,15/07/2021,Current (non AEF) Grants to Local Authorities,Local Government Strategy and Analysis,CALDERDALE MBC,,Public Bodies,,,3700109469,,Grant payable by the Exchequer,HX1 1YP,"2,062.00",Yes
"Housing, Communities & Local Government",MHCLG,15/07/2021,Current (non AEF) Grants to Local Authorities,Local Government Strategy and Analysis,CAMBRIDGE CITY COUNCIL,,,,210357534,3700107873,,Grant payable by the Exchequer,CB1 0JH,"3,006,673.00",Yes
"Housing, Communities & Local Government",MHCLG,15/07/2021,Current (non AEF) Grants to Local Authorities,Local Government Strategy and Analysis,CAMBRIDGE CITY COUNCIL,,,,210357534,3700108851,,Grant payable by the Exchequer,CB1 0JH,"74,517.00",Yes
"Housing, Communities & Local Government",MHCLG,15/07/2021,Current (non AEF) Grants to Local Authorities,Local Government Strategy and Analysis,CAMBRIDGE CITY COUNCIL,,,,210357534,3700109064,,Grant payable by the Exchequer,CB1 0JH,"10,739.00",Yes
"Housing, Communities & Local Government",MHCLG,15/07/2021,Current (non AEF) Grants to Local Authorities,Local Government Strategy and Analysis,CAMBRIDGE CITY COUNCIL,,,,210357534,3700109118,,Grant payable by the Exchequer,CB1 0JH,"25,395.00",Yes
"Housing, Communities & Local Government",MHCLG,15/07/2021,Current (non AEF) Grants to Local Authorities,Local Government Strategy and Analysis,CAMBRIDGE CITY COUNCIL,,,,210357534,3700109691,,Grant payable by the Exchequer,CB1 0JH,386.00,Yes
"Housing, Communities & Local Government",MHCLG,15/07/2021,Current (non AEF) Grants to Local Authorities,Local Government Strategy and Analysis,CAMBRIDGESHIRE COUNTY CNCL,,,,219047347,3700107494,,Grant payable by the Exchequer,CB3 0AP,"1,227,057.00",Yes
"Housing, Communities & Local Government",MHCLG,15/07/2021,Current (non AEF) Grants to Local Authorities,Local Government Strategy and Analysis,CAMBRIDGESHIRE COUNTY CNCL,,,,219047347,3700107800,,Grant payable by the Exchequer,CB3 0AP,"1,115,249.00",Yes
"Housing, Communities & Local Government",MHCLG,15/07/2021,Current (non AEF) Grants to Local Authorities,Local Government Strategy and Analysis,CAMBRIDGESHIRE COUNTY CNCL,,,,219047347,3700107614,,Grant payable by the Exchequer,CB3 0AP,"294,396.00",Yes
"Housing, Communities & Local Government",MHCLG,15/07/2021,Current (non AEF) Grants to Local Authorities,Local Government Strategy and Analysis,CAMBRIDGESHIRE COUNTY CNCL,,,,219047347,3700108357,,Grant payable by the Exchequer,CB3 0AP,"1,004.00",Yes
"Housing, Communities & Local Government",MHCLG,15/07/2021,Current (non AEF) Grants to Local Authorities,Local Government Strategy and Analysis,CAMBRIDGESHIRE COUNTY CNCL,,,,219047347,3700108932,,Grant payable by the Exchequer,CB3 0AP,"1,018.00",Yes
"Housing, Communities & Local Government",MHCLG,15/07/2021,Current (non AEF) Grants to Local Authorities,Local Government Strategy and Analysis,CAMBRIDGESHIRE COUNTY CNCL,,,,219047347,3700109232,,Grant payable by the Exchequer,CB3 0AP,446.00,Yes
"Housing, Communities & Local Government",MHCLG,15/07/2021,Current (non AEF) Grants to Local Authorities,Local Government Strategy and Analysis,CAMBRIDGESHIRE COUNTY CNCL,,,,219047347,3700109426,,Grant payable by the Exchequer,CB3 0AP,"115,201.00",Yes
"Housing, Communities & Local Government",MHCLG,15/07/2021,Current (non AEF) Grants to Local Authorities,Local Government Strategy and Analysis,CAMBRIDGESHIRE COUNTY CNCL,,,,219047347,3700109427,,Grant payable by the Exchequer,CB3 0AP,"9,570.00",Yes
"Housing, Communities & Local Government",MHCLG,15/07/2021,Current (non AEF) Grants to Local Authorities,Local Government Strategy and Analysis,CAMBS & PETERBOROUGH FIRE AUTHORITY,,,,235999737,3700108126,,Grant payable by the Exchequer,PE29 2NA,"17,014.00",Yes
"Housing, Communities & Local Government",MHCLG,15/07/2021,Current (non AEF) Grants to Local Authorities,Local Government Strategy and Analysis,CAMBS & PETERBOROUGH FIRE AUTHORITY,,,,235999737,3700108167,,Grant payable by the Exchequer,PE29 2NA,"1,372.00",Yes
"Housing, Communities & Local Government",MHCLG,15/07/2021,Current (non AEF) Grants to Local Authorities,Local Government Strategy and Analysis,CAMBS & PETERBOROUGH FIRE AUTHORITY,,,,235999737,3700109525,,Grant payable by the Exchequer,PE29 2NA,"28,097.00",Yes
"Housing, Communities & Local Government",MHCLG,15/07/2021,Current (non AEF) Grants to Local Authorities,Local Government Strategy and Analysis,CAMDEN LB,,,,211651836,3700107145,,Grant payable by the Exchequer,N1C 4AG,"1,041,252.00",Yes
"Housing, Communities & Local Government",MHCLG,15/07/2021,Current (non AEF) Grants to Local Authorities,Local Government Strategy and Analysis,CAMDEN LB,,,,211651836,3700107728,,Grant payable by the Exchequer,N1C 4AG,"822,590.00",Yes
"Housing, Communities & Local Government",MHCLG,15/07/2021,Current (non AEF) Grants to Local Authorities,Local Government Strategy and Analysis,CAMDEN LONDON BOROUGH,,,,,3700107442,,Grant payable by the Exchequer,N1C 4AG,"11,294,083.00",Yes
"Housing, Communities & Local Government",MHCLG,15/07/2021,Current (non AEF) Grants to Local Authorities,Local Government Strategy and Analysis,CAMDEN LONDON BOROUGH,,,,,3700107734,,Grant payable by the Exchequer,N1C 4AG,"126,554.00",Yes
"Housing, Communities & Local Government",MHCLG,15/07/2021,Current (non AEF) Grants to Local Authorities,Local Government Strategy and Analysis,CAMDEN LONDON BOROUGH,,,,,3700108407,,Grant payable by the Exchequer,N1C 4AG,"3,321.00",Yes
"Housing, Communities & Local Government",MHCLG,15/07/2021,Current (non AEF) Grants to Local Authorities,Local Government Strategy and Analysis,CAMDEN LONDON BOROUGH,,,,,3700108504,,Grant payable by the Exchequer,N1C 4AG,"413,227.00",Yes
"Housing, Communities & Local Government",MHCLG,15/07/2021,Current (non AEF) Grants to Local Authorities,Local Government Strategy and Analysis,CAMDEN LONDON BOROUGH,,,,,3700109516,,Grant payable by the Exchequer,N1C 4AG,"30,729.00",Yes
"Housing, Communities & Local Government",MHCLG,15/07/2021,Current (non AEF) Grants to Local Authorities,Local Government Strategy and Analysis,CANNOCK CHASE DC,,,,215064770,3700107861,,Grant payable by the Exchequer,WS11 1BG,"839,622.00",Yes
"Housing, Communities & Local Government",MHCLG,15/07/2021,Current (non AEF) Grants to Local Authorities,Local Government Strategy and Analysis,CANNOCK CHASE DC,,,,215064770,3700108212,,Grant payable by the Exchequer,WS11 1BG,"20,718.00",Yes
"Housing, Communities & Local Government",MHCLG,15/07/2021,Current (non AEF) Grants to Local Authorities,Local Government Strategy and Analysis,CANNOCK CHASE DC,,,,215064770,3700109012,,Grant payable by the Exchequer,WS11 1BG,"112,802.00",Yes
"Housing, Communities & Local Government",MHCLG,15/07/2021,Current (non AEF) Grants to Local Authorities,Local Government Strategy and Analysis,CANNOCK CHASE DC,,,,215064770,3700109166,,Grant payable by the Exchequer,WS11 1BG,"5,719.00",Yes
"Housing, Communities & Local Government",MHCLG,15/07/2021,Current (non AEF) Grants to Local Authorities,Local Government Strategy and Analysis,CANTERBURY CITY CNCL,,,,,3700107531,,Grant payable by the Exchequer,CT1 1YW,"1,916,016.00",Yes
"Housing, Communities & Local Government",MHCLG,15/07/2021,Current (non AEF) Grants to Local Authorities,Local Government Strategy and Analysis,CANTERBURY CITY CNCL,,,,,3700107779,,Grant payable by the Exchequer,CT1 1YW,"12,213.00",Yes
"Housing, Communities & Local Government",MHCLG,15/07/2021,Current (non AEF) Grants to Local Authorities,Local Government Strategy and Analysis,CANTERBURY CITY CNCL,,,,,3700108282,,Grant payable by the Exchequer,CT1 1YW,"8,529.00",Yes
"Housing, Communities & Local Government",MHCLG,15/07/2021,Current (non AEF) Grants to Local Authorities,Local Government Strategy and Analysis,CANTERBURY CITY CNCL,,,,,3700108316,,Grant payable by the Exchequer,CT1 1YW,"150,764.00",Yes
"Housing, Communities & Local Government",MHCLG,15/07/2021,Current (non AEF) Grants to Local Authorities,Local Government Strategy and Analysis,CANTERBURY CITY CNCL,,,,,3700108911,,Grant payable by the Exchequer,CT1 1YW,424.00,Yes
"Housing, Communities & Local Government",MHCLG,15/07/2021,Current (non AEF) Grants to Local Authorities,Local Government Strategy and Analysis,CANTERBURY CITY CNCL,,,,,3700108916,,Grant payable by the Exchequer,CT1 1YW,"2,452.00",Yes
"Housing, Communities & Local Government",MHCLG,15/07/2021,Current (non AEF) Grants to Local Authorities,Local Government Strategy and Analysis,CARLISLE CITY CNCL,,,,227471059,3700107344,,Grant payable by the Exchequer,CA3 8QG,"1,084.00",Yes
"Housing, Communities & Local Government",MHCLG,15/07/2021,Current (non AEF) Grants to Local Authorities,Local Government Strategy and Analysis,CARLISLE CITY CNCL,,,,227471059,3700107645,,Grant payable by the Exchequer,CA3 8QG,"1,287,174.00",Yes
"Housing, Communities & Local Government",MHCLG,15/07/2021,Current (non AEF) Grants to Local Authorities,Local Government Strategy and Analysis,CARLISLE CITY CNCL,,,,227471059,3700108788,,Grant payable by the Exchequer,CA3 8QG,"24,023.00",Yes
"Housing, Communities & Local Government",MHCLG,15/07/2021,Current (non AEF) Grants to Local Authorities,Local Government Strategy and Analysis,CARLISLE CITY CNCL,,,,227471059,3700108818,,Grant payable by the Exchequer,CA3 8QG,"114,590.00",Yes
"Housing, Communities & Local Government",MHCLG,15/07/2021,Current (non AEF) Grants to Local Authorities,Local Government Strategy and Analysis,CARLISLE CITY CNCL,,,,227471059,3700108933,,Grant payable by the Exchequer,CA3 8QG,788.00,Yes
"Housing, Communities & Local Government",MHCLG,15/07/2021,Current (non AEF) Grants to Local Authorities,Local Government Strategy and Analysis,CARLISLE CITY CNCL,,,,227471059,3700109049,,Grant payable by the Exchequer,CA3 8QG,"7,458.00",Yes
"Housing, Communities & Local Government",MHCLG,15/07/2021,Current (non AEF) Grants to Local Authorities,Local Government Strategy and Analysis,CARLISLE CITY CNCL,,,,227471059,3700109347,,Grant payable by the Exchequer,CA3 8QG,351.00,Yes
"Housing, Communities & Local Government",MHCLG,15/07/2021,Current (non AEF) Grants to Local Authorities,Local Government Strategy and Analysis,CASTLE POINT BC,,Public Bodies,,228217931,3700107504,,Grant payable by the Exchequer,SS7 1TF,"501,912.00",Yes
"Housing, Communities & Local Government",MHCLG,15/07/2021,Current (non AEF) Grants to Local Authorities,Local Government Strategy and Analysis,CASTLE POINT BC,,Public Bodies,,228217931,3700107951,,Grant payable by the Exchequer,SS7 1TF,"85,249.00",Yes
"Housing, Communities & Local Government",MHCLG,15/07/2021,Current (non AEF) Grants to Local Authorities,Local Government Strategy and Analysis,CASTLE POINT BC,,Public Bodies,,228217931,3700108135,,Grant payable by the Exchequer,SS7 1TF,399.00,Yes
"Housing, Communities & Local Government",MHCLG,15/07/2021,Current (non AEF) Grants to Local Authorities,Local Government Strategy and Analysis,CASTLE POINT BC,,Public Bodies,,228217931,3700108174,,Grant payable by the Exchequer,SS7 1TF,"2,797.00",Yes
"Housing, Communities & Local Government",MHCLG,15/07/2021,Current (non AEF) Grants to Local Authorities,Local Government Strategy and Analysis,CASTLE POINT BC,,Public Bodies,,228217931,3700109556,,Grant payable by the Exchequer,SS7 1TF,"8,561.00",Yes
"Housing, Communities & Local Government",MHCLG,15/07/2021,Current (non AEF) Grants to Local Authorities,Local Government Strategy and Analysis,CENTRAL BEDFORDSHIRE COUNCIL,,,,232624882,3700107144,,Grant payable by the Exchequer,SG17 5TQ,"2,018,534.00",Yes
"Housing, Communities & Local Government",MHCLG,15/07/2021,Current (non AEF) Grants to Local Authorities,Local Government Strategy and Analysis,CENTRAL BEDFORDSHIRE COUNCIL,,,,232624882,3700108016,,Grant payable by the Exchequer,SG17 5TQ,"270,759.00",Yes
"Housing, Communities & Local Government",MHCLG,15/07/2021,Current (non AEF) Grants to Local Authorities,Local Government Strategy and Analysis,CENTRAL BEDFORDSHIRE COUNCIL,,,,232624882,3700108349,,Grant payable by the Exchequer,SG17 5TQ,402.00,Yes
"Housing, Communities & Local Government",MHCLG,15/07/2021,Current (non AEF) Grants to Local Authorities,Local Government Strategy and Analysis,CENTRAL BEDFORDSHIRE COUNCIL,,,,232624882,3700108475,,Grant payable by the Exchequer,SG17 5TQ,906.00,Yes
"Housing, Communities & Local Government",MHCLG,15/07/2021,Current (non AEF) Grants to Local Authorities,Local Government Strategy and Analysis,CENTRAL BEDFORDSHIRE COUNCIL,,,,232624882,3700108610,,Grant payable by the Exchequer,SG17 5TQ,"213,345.00",Yes
"Housing, Communities & Local Government",MHCLG,15/07/2021,Current (non AEF) Grants to Local Authorities,Local Government Strategy and Analysis,CENTRAL BEDFORDSHIRE COUNCIL,,,,232624882,3700109485,,Grant payable by the Exchequer,SG17 5TQ,"16,442.00",Yes
"Housing, Communities & Local Government",MHCLG,15/07/2021,Current (non AEF) Grants to Local Authorities,Local Government Strategy and Analysis,CENTRAL BEDFORDSHIRE COUNCIL,,,,232624882,3700107598,,Grant payable by the Exchequer,SG17 5TQ,"396,888.00",Yes
"Housing, Communities & Local Government",MHCLG,15/07/2021,Current (non AEF) Grants to Local Authorities,Local Government Strategy and Analysis,CENTRAL BEDFORDSHIRE COUNCIL,,,,232624882,3700107686,,Grant payable by the Exchequer,SG17 5TQ,"225,034.00",Yes
"Housing, Communities & Local Government",MHCLG,15/07/2021,Current (non AEF) Grants to Local Authorities,Local Government Strategy and Analysis,CHARNWOOD BC,,,,,3700107156,,Grant payable by the Exchequer,LE11 2TU,"1,077,556.00",Yes
"Housing, Communities & Local Government",MHCLG,15/07/2021,Current (non AEF) Grants to Local Authorities,Local Government Strategy and Analysis,CHARNWOOD BC,,,,,3700108243,,Grant payable by the Exchequer,LE11 2TU,"156,952.00",Yes
"Housing, Communities & Local Government",MHCLG,15/07/2021,Current (non AEF) Grants to Local Authorities,Local Government Strategy and Analysis,CHARNWOOD BC,,,,,3700108921,,Grant payable by the Exchequer,LE11 2TU,"1,327.00",Yes
"Housing, Communities & Local Government",MHCLG,15/07/2021,Current (non AEF) Grants to Local Authorities,Local Government Strategy and Analysis,CHARNWOOD BC,,,,,3700109079,,Grant payable by the Exchequer,LE11 2TU,"8,729.00",Yes
"Housing, Communities & Local Government",MHCLG,15/07/2021,Current (non AEF) Grants to Local Authorities,Local Government Strategy and Analysis,CHARNWOOD BC,,,,,3700109115,,Grant payable by the Exchequer,LE11 2TU,"16,760.00",Yes
"Housing, Communities & Local Government",MHCLG,15/07/2021,Current (non AEF) Grants to Local Authorities,Local Government Strategy and Analysis,CHELMSFORD BC,,,,,3700107526,,Grant payable by the Exchequer,CM1 1JE,755.00,Yes
"Housing, Communities & Local Government",MHCLG,15/07/2021,Current (non AEF) Grants to Local Authorities,Local Government Strategy and Analysis,CHELMSFORD BC,,,,,3700107642,,Grant payable by the Exchequer,CM1 1JE,"2,255,959.00",Yes
"Housing, Communities & Local Government",MHCLG,15/07/2021,Current (non AEF) Grants to Local Authorities,Local Government Strategy and Analysis,CHELMSFORD BC,,,,,3700108423,,Grant payable by the Exchequer,CM1 1JE,"15,535.00",Yes
"Housing, Communities & Local Government",MHCLG,15/07/2021,Current (non AEF) Grants to Local Authorities,Local Government Strategy and Analysis,CHELMSFORD BC,,,,,3700108929,,Grant payable by the Exchequer,CM1 1JE,"10,492.00",Yes
"Housing, Communities & Local Government",MHCLG,15/07/2021,Current (non AEF) Grants to Local Authorities,Local Government Strategy and Analysis,CHELMSFORD BC,,,,,3700109428,,Grant payable by the Exchequer,CM1 1JE,"148,182.00",Yes
"Housing, Communities & Local Government",MHCLG,15/07/2021,Current (non AEF) Grants to Local Authorities,Local Government Strategy and Analysis,CHELTENHAM BC,,,,,3700107216,,Grant payable by the Exchequer,GL50 1PW,"1,900,308.00",Yes
"Housing, Communities & Local Government",MHCLG,15/07/2021,Current (non AEF) Grants to Local Authorities,Local Government Strategy and Analysis,CHELTENHAM BC,,,,,3700107655,,Grant payable by the Exchequer,GL50 1PW,"7,815.00",Yes
"Housing, Communities & Local Government",MHCLG,15/07/2021,Current (non AEF) Grants to Local Authorities,Local Government Strategy and Analysis,CHELTENHAM BC,,,,,3700108902,,Grant payable by the Exchequer,GL50 1PW,"11,723.00",Yes
"Housing, Communities & Local Government",MHCLG,15/07/2021,Current (non AEF) Grants to Local Authorities,Local Government Strategy and Analysis,CHELTENHAM BC,,,,,3700108924,,Grant payable by the Exchequer,GL50 1PW,278.00,Yes
"Housing, Communities & Local Government",MHCLG,15/07/2021,Current (non AEF) Grants to Local Authorities,Local Government Strategy and Analysis,CHELTENHAM BC,,,,,3700109631,,Grant payable by the Exchequer,GL50 1PW,"98,304.00",Yes
"Housing, Communities & Local Government",MHCLG,15/07/2021,Current (non AEF) Grants to Local Authorities,Local Government Strategy and Analysis,CHERWELL DC,,,,,3700107104,,Grant payable by the Exchequer,OX15 4AA,"3,201,857.00",Yes
"Housing, Communities & Local Government",MHCLG,15/07/2021,Current (non AEF) Grants to Local Authorities,Local Government Strategy and Analysis,CHERWELL DC,,,,,3700107548,,Grant payable by the Exchequer,OX15 4AA,"39,375.00",Yes
"Housing, Communities & Local Government",MHCLG,15/07/2021,Current (non AEF) Grants to Local Authorities,Local Government Strategy and Analysis,CHERWELL DC,,,,,3700108353,,Grant payable by the Exchequer,OX15 4AA,"120,151.00",Yes
"Housing, Communities & Local Government",MHCLG,15/07/2021,Current (non AEF) Grants to Local Authorities,Local Government Strategy and Analysis,CHERWELL DC,,,,,3700108561,,Grant payable by the Exchequer,OX15 4AA,"1,985.00",Yes
"Housing, Communities & Local Government",MHCLG,15/07/2021,Current (non AEF) Grants to Local Authorities,Local Government Strategy and Analysis,CHERWELL DC,,,,,3700109091,,Grant payable by the Exchequer,OX15 4AA,"11,315.00",Yes
"Housing, Communities & Local Government",MHCLG,15/07/2021,Current (non AEF) Grants to Local Authorities,Local Government Strategy and Analysis,CHERWELL DC,,,,,3700109361,,Grant payable by the Exchequer,OX15 4AA,"1,586.00",Yes
"Housing, Communities & Local Government",MHCLG,15/07/2021,Current (non AEF) Grants to Local Authorities,Local Government Strategy and Analysis,CHESHIRE EAST BOROUGH COUNCIL,,,,293699450,3700107802,,Grant payable by the Exchequer,CW11 1HZ,"3,516,247.00",Yes
"Housing, Communities & Local Government",MHCLG,15/07/2021,Current (non AEF) Grants to Local Authorities,Local Government Strategy and Analysis,CHESHIRE EAST BOROUGH COUNCIL,,,,293699450,3700108007,,Grant payable by the Exchequer,CW11 1HZ,"3,517.00",Yes
"Housing, Communities & Local Government",MHCLG,15/07/2021,Current (non AEF) Grants to Local Authorities,Local Government Strategy and Analysis,CHESHIRE EAST BOROUGH COUNCIL,,,,293699450,3700108054,,Grant payable by the Exchequer,CW11 1HZ,614.00,Yes
"Housing, Communities & Local Government",MHCLG,15/07/2021,Current (non AEF) Grants to Local Authorities,Local Government Strategy and Analysis,CHESHIRE EAST BOROUGH COUNCIL,,,,293699450,3700108946,,Grant payable by the Exchequer,CW11 1HZ,"477,744.00",Yes
"Housing, Communities & Local Government",MHCLG,15/07/2021,Current (non AEF) Grants to Local Authorities,Local Government Strategy and Analysis,CHESHIRE EAST BOROUGH COUNCIL,,,,293699450,3700108956,,Grant payable by the Exchequer,CW11 1HZ,"29,074.00",Yes
"Housing, Communities & Local Government",MHCLG,15/07/2021,Current (non AEF) Grants to Local Authorities,Local Government Strategy and Analysis,CHESHIRE EAST BOROUGH COUNCIL,,,,293699450,3700109251,,Grant payable by the Exchequer,CW11 1HZ,"203,725.00",Yes
"Housing, Communities & Local Government",MHCLG,15/07/2021,Current (non AEF) Grants to Local Authorities,Local Government Strategy and Analysis,CHESHIRE EAST BOROUGH COUNCIL,,,,293699450,3700109605,,Grant payable by the Exchequer,CW11 1HZ,"2,463.00",Yes
"Housing, Communities & Local Government",MHCLG,15/07/2021,Current (non AEF) Grants to Local Authorities,Local Government Strategy and Analysis,CHESHIRE EAST COUNCIL,,Large,,,3700107147,,Grant payable by the Exchequer,CW11 1HZ,"664,849.00",Yes
"Housing, Communities & Local Government",MHCLG,15/07/2021,Current (non AEF) Grants to Local Authorities,Local Government Strategy and Analysis,CHESHIRE EAST COUNCIL,,Large,,,3700107644,,Grant payable by the Exchequer,CW11 1HZ,"704,132.00",Yes
"Housing, Communities & Local Government",MHCLG,15/07/2021,Current (non AEF) Grants to Local Authorities,Local Government Strategy and Analysis,CHESHIRE FIRE AUTHORITY,,,,424872737,3700108414,,Grant payable by the Exchequer,CW7 2FQ,"42,103.00",Yes
"Housing, Communities & Local Government",MHCLG,15/07/2021,Current (non AEF) Grants to Local Authorities,Local Government Strategy and Analysis,CHESHIRE FIRE AUTHORITY,,,,424872737,3700109034,,Grant payable by the Exchequer,CW7 2FQ,"1,567.00",Yes
"Housing, Communities & Local Government",MHCLG,15/07/2021,Current (non AEF) Grants to Local Authorities,Local Government Strategy and Analysis,CHESHIRE FIRE AUTHORITY,,,,424872737,3700109290,,Grant payable by the Exchequer,CW7 2FQ,"23,204.00",Yes
"Housing, Communities & Local Government",MHCLG,15/07/2021,Current (non AEF) Grants to Local Authorities,Local Government Strategy and Analysis,CHESHIRE WEST & CHESTER UA,,Large,,215584383,3700107722,,Grant payable by the Exchequer,CH1 2NP,"712,551.00",Yes
"Housing, Communities & Local Government",MHCLG,15/07/2021,Current (non AEF) Grants to Local Authorities,Local Government Strategy and Analysis,CHESHIRE WEST & CHESTER UA,,Large,,215584383,3700107812,,Grant payable by the Exchequer,CH1 2NP,"875,526.00",Yes
"Housing, Communities & Local Government",MHCLG,15/07/2021,Current (non AEF) Grants to Local Authorities,Local Government Strategy and Analysis,CHESHIRE WEST AND CHESTER,,Large,,215584383,3700107613,,Grant payable by the Exchequer,CH1 2NP,"4,606,854.00",Yes
"Housing, Communities & Local Government",MHCLG,15/07/2021,Current (non AEF) Grants to Local Authorities,Local Government Strategy and Analysis,CHESHIRE WEST AND CHESTER,,Large,,215584383,3700107961,,Grant payable by the Exchequer,CH1 2NP,"22,977.00",Yes
"Housing, Communities & Local Government",MHCLG,15/07/2021,Current (non AEF) Grants to Local Authorities,Local Government Strategy and Analysis,CHESHIRE WEST AND CHESTER,,Large,,215584383,3700108343,,Grant payable by the Exchequer,CH1 2NP,"1,074.00",Yes
"Housing, Communities & Local Government",MHCLG,15/07/2021,Current (non AEF) Grants to Local Authorities,Local Government Strategy and Analysis,CHESHIRE WEST AND CHESTER,,Large,,215584383,3700108460,,Grant payable by the Exchequer,CH1 2NP,"353,932.00",Yes
"Housing, Communities & Local Government",MHCLG,15/07/2021,Current (non AEF) Grants to Local Authorities,Local Government Strategy and Analysis,CHESHIRE WEST AND CHESTER,,Large,,215584383,3700108995,,Grant payable by the Exchequer,CH1 2NP,"235,624.00",Yes
"Housing, Communities & Local Government",MHCLG,15/07/2021,Current (non AEF) Grants to Local Authorities,Local Government Strategy and Analysis,CHESHIRE WEST AND CHESTER,,Large,,215584383,3700109459,,Grant payable by the Exchequer,CH1 2NP,"2,148.00",Yes
"Housing, Communities & Local Government",MHCLG,15/07/2021,Current (non AEF) Grants to Local Authorities,Local Government Strategy and Analysis,CHESTERFIELD BC,,,,232102301,3700107759,,Grant payable by the Exchequer,S40 1LP,"1,057,897.00",Yes
"Housing, Communities & Local Government",MHCLG,15/07/2021,Current (non AEF) Grants to Local Authorities,Local Government Strategy and Analysis,CHESTERFIELD BC,,,,232102301,3700107925,,Grant payable by the Exchequer,S40 1LP,304.00,Yes
"Housing, Communities & Local Government",MHCLG,15/07/2021,Current (non AEF) Grants to Local Authorities,Local Government Strategy and Analysis,CHESTERFIELD BC,,,,232102301,3700108451,,Grant payable by the Exchequer,S40 1LP,"118,502.00",Yes
"Housing, Communities & Local Government",MHCLG,15/07/2021,Current (non AEF) Grants to Local Authorities,Local Government Strategy and Analysis,CHESTERFIELD BC,,,,232102301,3700108836,,Grant payable by the Exchequer,S40 1LP,"25,461.00",Yes
"Housing, Communities & Local Government",MHCLG,15/07/2021,Current (non AEF) Grants to Local Authorities,Local Government Strategy and Analysis,CHESTERFIELD BC,,,,232102301,3700109538,,Grant payable by the Exchequer,S40 1LP,"7,428.00",Yes
"Housing, Communities & Local Government",MHCLG,15/07/2021,Current (non AEF) Grants to Local Authorities,Local Government Strategy and Analysis,CHICHESTER DC,,,,739800998,3700107371,,Grant payable by the Exchequer,PO19 1TY,"1,677,911.00",Yes
"Housing, Communities & Local Government",MHCLG,15/07/2021,Current (non AEF) Grants to Local Authorities,Local Government Strategy and Analysis,CHICHESTER DC,,,,739800998,3700107860,,Grant payable by the Exchequer,PO19 1TY,"1,929.00",Yes
"Housing, Communities & Local Government",MHCLG,15/07/2021,Current (non AEF) Grants to Local Authorities,Local Government Strategy and Analysis,CHICHESTER DC,,,,739800998,3700107937,,Grant payable by the Exchequer,PO19 1TY,"7,784.00",Yes
"Housing, Communities & Local Government",MHCLG,15/07/2021,Current (non AEF) Grants to Local Authorities,Local Government Strategy and Analysis,CHICHESTER DC,,,,739800998,3700107964,,Grant payable by the Exchequer,PO19 1TY,"1,634.00",Yes
"Housing, Communities & Local Government",MHCLG,15/07/2021,Current (non AEF) Grants to Local Authorities,Local Government Strategy and Analysis,CHICHESTER DC,,,,739800998,3700108299,,Grant payable by the Exchequer,PO19 1TY,"162,626.00",Yes
"Housing, Communities & Local Government",MHCLG,15/07/2021,Current (non AEF) Grants to Local Authorities,Local Government Strategy and Analysis,CHICHESTER DC,,,,739800998,3700109048,,Grant payable by the Exchequer,PO19 1TY,533.00,Yes
"Housing, Communities & Local Government",MHCLG,15/07/2021,Current (non AEF) Grants to Local Authorities,Local Government Strategy and Analysis,CHICHESTER DC,,,,739800998,3700109224,,Grant payable by the Exchequer,PO19 1TY,"8,494.00",Yes
"Housing, Communities & Local Government",MHCLG,15/07/2021,Current (non AEF) Grants to Local Authorities,Local Government Strategy and Analysis,CHORLEY DC,,,,236415576,3700107316,,Grant payable by the Exchequer,PR7 1DP,346.00,Yes
"Housing, Communities & Local Government",MHCLG,15/07/2021,Current (non AEF) Grants to Local Authorities,Local Government Strategy and Analysis,CHORLEY DC,,,,236415576,3700107864,,Grant payable by the Exchequer,PR7 1DP,"711,877.00",Yes
"Housing, Communities & Local Government",MHCLG,15/07/2021,Current (non AEF) Grants to Local Authorities,Local Government Strategy and Analysis,CHORLEY DC,,,,236415576,3700107881,,Grant payable by the Exchequer,PR7 1DP,"16,442.00",Yes
"Housing, Communities & Local Government",MHCLG,15/07/2021,Current (non AEF) Grants to Local Authorities,Local Government Strategy and Analysis,CHORLEY DC,,,,236415576,3700108582,,Grant payable by the Exchequer,PR7 1DP,"4,619.00",Yes
"Housing, Communities & Local Government",MHCLG,15/07/2021,Current (non AEF) Grants to Local Authorities,Local Government Strategy and Analysis,CHORLEY DC,,,,236415576,3700109165,,Grant payable by the Exchequer,PR7 1DP,"89,749.00",Yes
"Housing, Communities & Local Government",MHCLG,15/07/2021,Current (non AEF) Grants to Local Authorities,Local Government Strategy and Analysis,CHORLEY DC,,,,236415576,3700109172,,Grant payable by the Exchequer,PR7 1DP,887.00,Yes
"Housing, Communities & Local Government",MHCLG,15/07/2021,Current (non AEF) Grants to Local Authorities,Local Government Strategy and Analysis,CITY OF LINCOLN COUNCIL,,,,,3700107220,,Grant payable by the Exchequer,LN1 1DB,"1,502,132.00",Yes
"Housing, Communities & Local Government",MHCLG,15/07/2021,Current (non AEF) Grants to Local Authorities,Local Government Strategy and Analysis,CITY OF LINCOLN COUNCIL,,,,,3700108088,,Grant payable by the Exchequer,LN1 1DB,"87,664.00",Yes
"Housing, Communities & Local Government",MHCLG,15/07/2021,Current (non AEF) Grants to Local Authorities,Local Government Strategy and Analysis,CITY OF LINCOLN COUNCIL,,,,,3700108171,,Grant payable by the Exchequer,LN1 1DB,"17,672.00",Yes
"Housing, Communities & Local Government",MHCLG,15/07/2021,Current (non AEF) Grants to Local Authorities,Local Government Strategy and Analysis,CITY OF LINCOLN COUNCIL,,,,,3700108228,,Grant payable by the Exchequer,LN1 1DB,"6,041.00",Yes
"Housing, Communities & Local Government",MHCLG,15/07/2021,Current (non AEF) Grants to Local Authorities,Local Government Strategy and Analysis,CITY OF LINCOLN COUNCIL,,,,,3700108720,,Grant payable by the Exchequer,LN1 1DB,991.00,Yes
"Housing, Communities & Local Government",MHCLG,15/07/2021,Current (non AEF) Grants to Local Authorities,Local Government Strategy and Analysis,CITY OF LONDON (HSG),,,,217471460,3700107731,,Grant payable by the Exchequer,EC2P 2EJ,"26,177.00",Yes
"Housing, Communities & Local Government",MHCLG,15/07/2021,Current (non AEF) Grants to Local Authorities,Local Government Strategy and Analysis,CITY OF LONDON (HSG),,,,217471460,3700107883,,Grant payable by the Exchequer,EC2P 2EJ,"22,361.00",Yes
"Housing, Communities & Local Government",MHCLG,15/07/2021,Current (non AEF) Grants to Local Authorities,Local Government Strategy and Analysis,CITY OF SUNDERLAND (HSG),,,,215599312,3700107680,,Grant payable by the Exchequer,SR2 7DN,"1,511,142.00",Yes
"Housing, Communities & Local Government",MHCLG,15/07/2021,Current (non AEF) Grants to Local Authorities,Local Government Strategy and Analysis,CITY OF SUNDERLAND (HSG),,,,215599312,3700107806,,Grant payable by the Exchequer,SR2 7DN,"1,155,046.00",Yes
"Housing, Communities & Local Government",MHCLG,15/07/2021,Current (non AEF) Grants to Local Authorities,Local Government Strategy and Analysis,CITY OF WAKEFIELD MDC,,,,,3700107815,,Grant payable by the Exchequer,WF1 2QW,"1,409,128.00",Yes
"Housing, Communities & Local Government",MHCLG,15/07/2021,Current (non AEF) Grants to Local Authorities,Local Government Strategy and Analysis,CITY OF WAKEFIELD MDC,,,,,3700107901,,Grant payable by the Exchequer,WF1 2QW,"1,065,758.00",Yes
"Housing, Communities & Local Government",MHCLG,15/07/2021,Current (non AEF) Grants to Local Authorities,Local Government Strategy and Analysis,CITY OF WAKEFIELD MDC,,,,,3700107283,,Grant payable by the Exchequer,WF1 2QW,"2,506,549.00",Yes
"Housing, Communities & Local Government",MHCLG,15/07/2021,Current (non AEF) Grants to Local Authorities,Local Government Strategy and Analysis,CITY OF WAKEFIELD MDC,,,,,3700108241,,Grant payable by the Exchequer,WF1 2QW,"416,075.00",Yes
"Housing, Communities & Local Government",MHCLG,15/07/2021,Current (non AEF) Grants to Local Authorities,Local Government Strategy and Analysis,CITY OF WAKEFIELD MDC,,,,,3700108969,,Grant payable by the Exchequer,WF1 2QW,"3,428.00",Yes
"Housing, Communities & Local Government",MHCLG,15/07/2021,Current (non AEF) Grants to Local Authorities,Local Government Strategy and Analysis,CITY OF WAKEFIELD MDC,,,,,3700109150,,Grant payable by the Exchequer,WF1 2QW,"24,951.00",Yes
"Housing, Communities & Local Government",MHCLG,15/07/2021,Current (non AEF) Grants to Local Authorities,Local Government Strategy and Analysis,CITY OF WAKEFIELD MDC,,,,,3700109349,,Grant payable by the Exchequer,WF1 2QW,"357,855.00",Yes
"Housing, Communities & Local Government",MHCLG,15/07/2021,Current (non AEF) Grants to Local Authorities,Local Government Strategy and Analysis,CLEVELAND FIRE AUTHORITY,,,,424872778,3700108087,,Grant payable by the Exchequer,TS25 5TB,"40,417.00",Yes
"Housing, Communities & Local Government",MHCLG,15/07/2021,Current (non AEF) Grants to Local Authorities,Local Government Strategy and Analysis,CLEVELAND FIRE AUTHORITY,,,,424872778,3700108779,,Grant payable by the Exchequer,TS25 5TB,"10,136.00",Yes
"Housing, Communities & Local Government",MHCLG,15/07/2021,Current (non AEF) Grants to Local Authorities,Local Government Strategy and Analysis,CLEVELAND FIRE AUTHORITY,,,,424872778,3700109677,,Grant payable by the Exchequer,TS25 5TB,584.00,Yes
"Housing, Communities & Local Government",MHCLG,15/07/2021,Current (non AEF) Grants to Local Authorities,Local Government Strategy and Analysis,CO DURHAM & DARLINGTON FIRE & RESCU,,,,424872851,3700108392,,Grant payable by the Exchequer,DH1 1TW,"12,537.00",Yes
"Housing, Communities & Local Government",MHCLG,15/07/2021,Current (non AEF) Grants to Local Authorities,Local Government Strategy and Analysis,CO DURHAM & DARLINGTON FIRE & RESCU,,,,424872851,3700109241,,Grant payable by the Exchequer,DH1 1TW,"31,389.00",Yes
"Housing, Communities & Local Government",MHCLG,15/07/2021,Current (non AEF) Grants to Local Authorities,Local Government Strategy and Analysis,CO DURHAM & DARLINGTON FIRE & RESCU,,,,424872851,3700109626,,Grant payable by the Exchequer,DH1 1TW,611.00,Yes
"Housing, Communities & Local Government",MHCLG,15/07/2021,Current (non AEF) Grants to Local Authorities,Local Government Strategy and Analysis,COLCHESTER BC,,,,,3700107129,,Grant payable by the Exchequer,CO3 3WG,"1,948,969.00",Yes
"Housing, Communities & Local Government",MHCLG,15/07/2021,Current (non AEF) Grants to Local Authorities,Local Government Strategy and Analysis,COLCHESTER BC,,,,,3700107682,,Grant payable by the Exchequer,CO3 3WG,"156,968.00",Yes
"Housing, Communities & Local Government",MHCLG,15/07/2021,Current (non AEF) Grants to Local Authorities,Local Government Strategy and Analysis,COLCHESTER BC,,,,,3700108713,,Grant payable by the Exchequer,CO3 3WG,"22,531.00",Yes
"Housing, Communities & Local Government",MHCLG,15/07/2021,Current (non AEF) Grants to Local Authorities,Local Government Strategy and Analysis,COLCHESTER BC,,,,,3700109085,,Grant payable by the Exchequer,CO3 3WG,254.00,Yes
"Housing, Communities & Local Government",MHCLG,15/07/2021,Current (non AEF) Grants to Local Authorities,Local Government Strategy and Analysis,COLCHESTER BC,,,,,3700109335,,Grant payable by the Exchequer,CO3 3WG,"10,537.00",Yes
"Housing, Communities & Local Government",MHCLG,15/07/2021,Current (non AEF) Grants to Local Authorities,Local Government Strategy and Analysis,COPELAND BC,,,,236414827,3700107885,,Grant payable by the Exchequer,CA28 7NY,"311,988.00",Yes
"Housing, Communities & Local Government",MHCLG,15/07/2021,Current (non AEF) Grants to Local Authorities,Local Government Strategy and Analysis,COPELAND BC,,,,236414827,3700108651,,Grant payable by the Exchequer,CA28 7NY,"60,889.00",Yes
"Housing, Communities & Local Government",MHCLG,15/07/2021,Current (non AEF) Grants to Local Authorities,Local Government Strategy and Analysis,COPELAND BC,,,,236414827,3700108737,,Grant payable by the Exchequer,CA28 7NY,"2,996.00",Yes
"Housing, Communities & Local Government",MHCLG,15/07/2021,Current (non AEF) Grants to Local Authorities,Local Government Strategy and Analysis,COPELAND BC,,,,236414827,3700108905,,Grant payable by the Exchequer,CA28 7NY,351.00,Yes
"Housing, Communities & Local Government",MHCLG,15/07/2021,Current (non AEF) Grants to Local Authorities,Local Government Strategy and Analysis,COPELAND BC,,,,236414827,3700108912,,Grant payable by the Exchequer,CA28 7NY,"12,096.00",Yes
"Housing, Communities & Local Government",MHCLG,15/07/2021,Current (non AEF) Grants to Local Authorities,Local Government Strategy and Analysis,COPELAND BC,,,,236414827,3700109551,,Grant payable by the Exchequer,CA28 7NY,623.00,Yes
"Housing, Communities & Local Government",MHCLG,15/07/2021,Current (non AEF) Grants to Local Authorities,Local Government Strategy and Analysis,CORNWALL COUNCIL,,,,211334404,3700107148,,Grant payable by the Exchequer,TR1 3AY,"5,546,194.00",Yes
"Housing, Communities & Local Government",MHCLG,15/07/2021,Current (non AEF) Grants to Local Authorities,Local Government Strategy and Analysis,CORNWALL COUNCIL,,,,211334404,3700108082,,Grant payable by the Exchequer,TR1 3AY,"14,154.00",Yes
"Housing, Communities & Local Government",MHCLG,15/07/2021,Current (non AEF) Grants to Local Authorities,Local Government Strategy and Analysis,CORNWALL COUNCIL,,,,211334404,3700108108,,Grant payable by the Exchequer,TR1 3AY,"435,114.00",Yes
